Workbook

Sheet 基本
C7: 発注タイマーが起動しても、その時間に上のボタンで、アクションは ＯＦＦ・スルーが 有効です。
C8: よって、左記 225手配による手作業の各処理の折、上記ボタンをＯＮにする必要があります。
F9: タイマー予約 | H9: アクション記録
F10: 2017-02-08T08:18:30 | H10: 2017/02/08 7:31:02---実行 起動 | I10: 2017/02/06 8:28:15---実行 起動 | J10: 2016/12/08 7:37:17---実行 起動 | K10: 2016/12/06 8:01:12---実行 起動 | L10: 2016/11/08 7:56:36---実行 起動 | M10: 2016/09/18 9:54:46---実行 起動
F11: 2017-02-08T08:23:30 | H11: 2017/02/08基本シート 開始月日 ＯＫ | I11: 2017/02/06基本シート 開始月日 ＯＫ | J11: 2016/12/08基本シート 開始月日 ＯＫ | K11: 2016/12/06基本シート 開始月日 ＯＫ | L11: 2016/11/08基本シート 開始月日 ＯＫ | M11: 2016/09/17基本シート 開始月日 不一致
A12: 検索・冒頭ストリング | B12: 本日の私のシステムは | C12: 現在のアクション | D12: LC | F12: 2017-02-08T08:28:30 | H12: 2017/02/08 7:31:02昨日 データ コンプリート | I12: 2017/02/06 8:28:15昨日 データ コンプリート | J12: 2016/12/08 7:37:19昨日 データ未処理？月日 LC | K12: 2016/12/06 8:01:22昨日 データ未処理？月日 LC | L12: 2016/11/08 7:56:42昨日 データ未処理？月日 LC | M12: 2016/09/18 12:26:27---とりあえず--起動
A13: ＥＮＤストリング | B13: 方向で | C13: メンテナンスモード | D13: 75 | F13: 2017-02-08T08:33:30 | H13: 巡回タイマーセット--2017/02/08 8:43:30 | I13: 遅刻 実行されません--2017/02/06 8:28:18 | J13: 巡回タイマーセット--2016/12/08 8:43:30 | K13: 巡回タイマーセット--2016/12/06 8:43:30 | L13: 巡回タイマーセット--2016/11/08 8:43:30 | M13: 2016/09/18 12:26:35---メンテナンス 起動
A14: 総受信数＝ | B14: 40 | C14: 適用月日 | D14: 2017-12-29 | F14: 2017-02-08T08:38:30 | H14: endtimejob--2017/02/08 16:20:30 ／ 2017/02/08 7:31:02 | I14: 買い 注文タイマーセット | J14: endtimejob--2016/12/08 16:20:30 ／ 2016/12/08 7:37:19 | K14: endtimejob--2016/12/06 16:20:30 ／ 2016/12/06 8:01:22 | L14: endtimejob--2016/11/08 16:20:30 ／ 2016/11/08 7:56:42 | M14: 2016/09/18 19:28:01---とりあえず--起動
A15: 送信者 | B15: タイトル | C15: 送信日&時間 | D15: 本 文 | F15: 2017-02-08T16:20:30 | H15: 売り 注文タイマーセット | I15: 2017/02/06 19:13:28---とりあえず--起動 | J15: 買い 注文タイマーセット | K15: 売り 注文タイマーセット | L15: 売り 注文タイマーセット | M15: 2016/09/18 19:28:05---メンテナンス 起動
F16: 売り 注文タイマーセット | H16: 2017/02/10 17:10:00---とりあえず--起動 | I16: 2017/02/06 19:13:30---メンテナンス 起動 | J16: 新規注文 IN。 - -2016/12/08 8:40:00 | K16: 2016/12/06 17:54:10---とりあえず--起動 | L16: 2016/11/13 10:25:06---とりあえず--起動 | M16: 2016/09/19 19:37:26---とりあえず--起動
A17: 17年負けなし日経225 | B17: 今日のひとこと | C17: 2017-02-08T08:18:00 | D17: す。 本日の私のシステムは「売り」方向です | H17: 2017/02/10 17:10:02---メンテナンス 起動 | I17: 2017/02/06 19:13:38手作業ＡＰＰ --IN | J17: setFormValue--:https://mobile.rakuten-sec.co.jp/?l-id=top_upper_login_member::goto:0:IN。 - -2016/12/08 8:40:00 | K17: 2016/12/06 17:54:13---メンテナンス 起動 | L17: 2016/11/13 10:25:08---メンテナンス 起動 | M17: 2016/09/19 19:37:30---メンテナンス 起動
A18: 松井証券 | B18: 松井証券【約定通知】先物・オプション取引 | C18: 2017-02-08T07:29:00 | D18: お客様の注文が約定しました。 ［約 | H18: 2017/02/10 17:10:10手作業ＡＰＰ --IN | I18: 2017/02/07 17:07:46---とりあえず--起動 | J18: setFormValue--:loginId:WPWA1234:SetFromForm:0:IN。 - -2016/12/08 8:40:01 | K18: 2016/12/06 17:54:19手作業ＡＰＰ --IN | L18: 2016/11/13 10:25:25手作業ＡＰＰ --IN | M18: 2016/09/20 9:42:45---とりあえず--起動
A19: 松井証券 | B19: 松井証券【約定通知】先物・オプション取引 | C19: 2017-02-07T16:35:00 | D19: お客様の注文が約定しました。 ［約 | H19: 2017/02/13 19:14:36---とりあえず--起動 | I19: 2017/02/07 17:07:48---メンテナンス 起動 | J19: setFormValue--:loginPassword:62831234:SetFromForm:0:IN。 - -2016/12/08 8:40:01 | K19: 2016/12/07 17:05:23---とりあえず--起動 | L19: 2016/11/15 19:43:42---とりあえず--起動 | M19: 2016/09/20 9:42:49---メンテナンス 起動
A20: 松井証券 | B20: 松井証券【約定通知】先物・オプション取引 | C20: 2017-02-07T15:27:00 | D20: お客様の注文が約定しました。 ［約 | H20: 2017/02/13 19:14:38---メンテナンス 起動 | I20: 2017/02/07 17:07:53手作業ＡＰＰ --IN | J20: setFormValue--::ﾛｸﾞｲﾝ:goto:0:IN。 - -2016/12/08 8:40:01 | K20: 2016/12/07 17:05:25---メンテナンス 起動 | L20: 2016/11/15 19:43:45---メンテナンス 起動 | M20: 2016/09/21 20:13:57---とりあえず--起動
A21: takamo@qg8.so-net.ne.jp | B21: ontimeRAKU-BOOK | C21: 2017-02-07T15:11:00 | D21: 訂正・取消可能な注文 | H21: 2017/02/13 19:14:40手作業ＡＰＰ --IN | I21: 2017/02/08 7:31:00---とりあえず--起動 | J21: setFormValue--:ﾛｸﾞｲﾝ:::0:IN。 - -2016/12/08 8:40:01 | K21: 2016/12/07 17:05:49手作業ＡＰＰ --IN | L21: 2016/11/15 19:43:49手作業ＡＰＰ --IN | M21: 2016/09/21 20:14:00---メンテナンス 起動
A22: takamo@qg8.so-net.ne.jp | B22: ontimeRAKU-BOOK | C22: 2017-02-07T15:11:00 | D22: 訂正・取消可能な注文 | H22: 2017/02/14 19:52:00---とりあえず--起動 | J22: setFormValue--::/mm900000.do:link:0:IN。 - -2016/12/08 8:40:02 | K22: 2016/12/08 7:37:15---とりあえず--起動 | L22: 2016/11/16 19:57:19---とりあえず--起動 | M22: 2016/09/21 20:14:16手作業ＡＰＰ --IN
A23: takamo@qg8.so-net.ne.jp | B23: ontimeRAKU-BOOK | C23: 2017-02-07T15:11:00 | D23: 該当する建玉は存在し | H23: 2017/02/14 19:52:01---メンテナンス 起動 | J23: setFormValue--:https://mobile.rakuten-sec.co.jp/?l-id=top_upper_login_member::goto:0:IN。 - -2016/12/08 8:40:32 | L23: 2016/11/16 19:57:21---メンテナンス 起動 | M23: 2016/09/23 21:32:02---とりあえず--起動
A24: 松井証券 | B24: 松井証券【約定通知】先物・オプション取引 | C24: 2017-02-07T09:00:00 | D24: お客様の注文が約定しました。 ［約 | H24: 2017/02/14 19:52:03手作業ＡＰＰ --IN | J24: setFormValue--:loginId:WPWA1234:SetFromForm:0:IN。 - -2016/12/08 8:40:34 | L24: 2016/11/16 19:57:23手作業ＡＰＰ --IN | M24: 2016/09/23 21:32:04---メンテナンス 起動
A25: 楽天株式会社 | B25: ［重要］「個人情報保護方針」ならびに「楽天会員規約」「楽天スーパーポイント利用規約」改定のお知らせ | C25: 2017-02-07T09:00:00 | D25: <http://r.rakuten.c | H25: 2017/02/15 20:03:31---とりあえず--起動 | J25: setFormValue--:loginPassword:62831234:SetFromForm:0:IN。 - -2016/12/08 8:40:34 | L25: 2016/11/17 19:10:38---とりあえず--起動 | M25: 2016/09/23 21:32:09手作業ＡＰＰ --IN
A26: 17年負けなし日経225 | B26: 今日のひとこと | C26: 2017-02-07T08:18:00 | D26: こんばんは。 本日の私のシステムは | H26: 2017/02/15 20:03:33---メンテナンス 起動 | J26: setFormValue--::ﾛｸﾞｲﾝ:goto:0:IN。 - -2016/12/08 8:40:34 | L26: 2016/11/17 19:10:40---メンテナンス 起動 | M26: 2016/09/24 21:28:21---とりあえず--起動
A27: 松井証券 | B27: 松井証券【約定通知】先物・オプション取引 | C27: 2017-02-07T07:47:00 | D27: お客様の注文が約定しました。 ［約 | H27: 2017/02/15 20:03:38手作業ＡＰＰ --IN | J27: setFormValue--:ﾛｸﾞｲﾝ:::0:IN。 - -2016/12/08 8:40:34 | L27: 2016/11/17 19:10:43手作業ＡＰＰ --IN | M27: 2016/09/24 21:28:29---メンテナンス 起動
A28: 松井証券 | B28: 松井証券【約定通知】先物・オプション取引 | C28: 2017-02-06T18:18:00 | D28: お客様の注文が約定しました。 ［約 | H28: 2017/02/16 19:28:00---とりあえず--起動 | J28: setFormValue--::/mm900000.do:link:0:IN。 - -2016/12/08 8:40:35 | L28: 2016/11/18 20:40:51---とりあえず--起動 | M28: 2016/09/25 12:12:01---とりあえず--起動
A29: takamo@qg8.so-net.ne.jp | B29: ontimeRAKU-BOOK | C29: 2017-02-06T18:18:00 | D29: 先物OP新規注文 受付完了 通常 | H29: 2017/02/16 19:28:04---メンテナンス 起動 | J29: 新規注文 を実行しています。 - -2016/12/08 8:48:07 | L29: 2016/11/18 20:40:54---メンテナンス 起動 | M29: 2016/09/25 12:12:04---メンテナンス 起動
A30: takamo@qg8.so-net.ne.jp | B30: 成約価格：19010 | C30: 2017-02-06T18:18:00 | D30: 先物OP転売・買戻注文 受付完了 | H30: 2017/02/16 19:28:09手作業ＡＰＰ --IN | J30: 返済注文 IN。 - -2016/12/08 8:50:00 | L30: 2016/11/18 20:40:59手作業ＡＰＰ --IN | M30: 2016/09/25 15:11:22---とりあえず--起動
A31: 松井証券 | B31: 松井証券【約定通知】先物・オプション取引 | C31: 2017-02-06T18:18:00 | D31: お客様の注文が約定しました。 ［約 | H31: 2017/02/17 19:06:41---とりあえず--起動 | J31: setFormValue--:https://mobile.rakuten-sec.co.jp/?l-id=top_upper_login_member::goto:0:IN。 - -2016/12/08 8:50:00 | L31: 2016/11/19 17:10:24---とりあえず--起動 | M31: 2016/09/25 15:11:25---メンテナンス 起動
A32: takamo@qg8.so-net.ne.jp | B32: ontimeRAKU-BOOK | C32: 2017-02-06T18:18:00 | D32: 先物OP転売・買戻注文 受付完了 | H32: 2017/02/17 19:06:43---メンテナンス 起動 | J32: setFormValue--:loginId:WPWA1234:SetFromForm:0:IN。 - -2016/12/08 8:50:01 | L32: 2016/11/19 17:10:27---メンテナンス 起動 | M32: 2016/09/25 15:55:23---とりあえず--起動
A33: 松井証券 | B33: 松井証券【約定通知】先物・オプション取引 | C33: 2017-02-06T18:18:00 | D33: お客様の注文が約定しました。 ［約 | H33: 2017/02/17 19:07:03手作業ＡＰＰ --IN | J33: setFormValue--:loginPassword:62831234:SetFromForm:0:IN。 - -2016/12/08 8:50:01 | L33: 2016/11/21 19:27:01---とりあえず--起動 | M33: 2016/09/25 15:55:25---メンテナンス 起動
A34: 17年負けなし日経225 | B34: 今日のひとこと | C34: 2017-02-06T08:27:00 | D34: こんばんは。 本日の私のシステムは | H34: 2017/02/20 19:21:14---とりあえず--起動 | J34: setFormValue--::ﾛｸﾞｲﾝ:goto:0:IN。 - -2016/12/08 8:50:01 | L34: 2016/11/21 19:27:04---メンテナンス 起動 | M34: 2016/09/26 17:47:52---とりあえず--起動
H35: 2017/02/20 19:21:16---メンテナンス 起動 | J35: setFormValue--:ﾛｸﾞｲﾝ:::0:IN。 - -2016/12/08 8:50:01 | L35: 2016/11/21 19:27:07手作業ＡＰＰ --IN | M35: 2016/09/26 17:47:54---メンテナンス 起動
H36: 2017/02/20 19:21:22手作業ＡＰＰ --IN | J36: setFormValue--::/mm900000.do:link:0:IN。 - -2016/12/08 8:50:02 | L36: 2016/11/22 19:57:46---とりあえず--起動 | M36: 2016/09/28 19:09:49---とりあえず--起動
H37: 2017/02/21 19:14:40---とりあえず--起動 | J37: setFormValue--::fopweb/doSearchOrd.do:link:0:IN。 - -2016/12/08 8:50:02 | L37: 2016/11/22 19:57:48---メンテナンス 起動 | M37: 2016/09/28 19:09:52---メンテナンス 起動
H38: 2017/02/21 19:14:46---メンテナンス 起動 | J38: setFormValue--::fopweb/doMenu.do:link:0:IN。 - -2016/12/08 8:50:02 | L38: 2016/11/22 19:57:54手作業ＡＰＰ --IN | M38: 2016/09/28 19:10:21手作業ＡＰＰ --IN
H39: 2017/02/21 19:14:48手作業ＡＰＰ --IN | J39: setFormValue--:https://mobile.rakuten-sec.co.jp/?l-id=top_upper_login_member::goto:0:IN。 - -2016/12/08 8:50:32 | L39: 2016/11/24 19:07:22---とりあえず--起動 | M39: 2016/10/27 19:06:20---とりあえず--起動
H40: 2017/02/22 19:07:26---とりあえず--起動 | J40: setFormValue--:loginId:WPWA1234:SetFromForm:0:IN。 - -2016/12/08 8:50:34 | L40: 2016/11/24 19:07:29---メンテナンス 起動 | M40: 2016/10/27 19:06:22---メンテナンス 起動
H41: 2017/02/22 19:07:28---メンテナンス 起動 | J41: setFormValue--:loginPassword:62831234:SetFromForm:0:IN。 - -2016/12/08 8:50:34 | L41: 2016/11/24 19:07:32手作業ＡＰＰ --IN | M41: 2016/10/27 19:06:37手作業ＡＰＰ --IN
H42: 2017/02/22 19:07:38手作業ＡＰＰ --IN | J42: setFormValue--::ﾛｸﾞｲﾝ:goto:0:IN。 - -2016/12/08 8:50:34 | L42: 2016/11/25 19:49:28---とりあえず--起動 | M42: 2016/10/27 20:34:46---とりあえず--起動
H43: 2017/02/23 19:04:39---とりあえず--起動 | J43: setFormValue--:ﾛｸﾞｲﾝ:::0:IN。 - -2016/12/08 8:50:34 | L43: 2016/11/25 19:49:31---メンテナンス 起動 | M43: 2016/10/27 20:34:48---メンテナンス 起動
H44: 2017/02/23 19:04:41---メンテナンス 起動 | J44: setFormValue--::/mm900000.do:link:0:IN。 - -2016/12/08 8:50:35 | L44: 2016/11/25 19:49:39手作業ＡＰＰ --IN | M44: 2016/10/28 10:29:46---とりあえず--起動
H45: 2017/02/23 19:04:47手作業ＡＰＰ --IN | J45: setFormValue--::fopweb/doSearchOrd.do:link:0:IN。 - -2016/12/08 8:50:35 | L45: 2016/11/26 10:07:58---とりあえず--起動 | M45: 2016/10/28 10:29:48---メンテナンス 起動
H46: 2017/02/23 19:38:04---とりあえず--起動 | J46: setFormValue--::fopweb/doMenu.do:link:0:IN。 - -2016/12/08 8:50:35 | L46: 2016/11/26 10:08:02---メンテナンス 起動 | M46: 2016/10/28 19:39:25---とりあえず--起動
H47: 2017/02/23 19:38:16---メンテナンス 起動 | J47: 返済注文 を実行しています。 - -2016/12/08 8:52:12 | L47: 2016/11/26 10:21:53---とりあえず--起動 | M47: 2016/10/28 19:39:27---メンテナンス 起動
H48: 2017/02/24 19:43:53---とりあえず--起動 | J48: 2016/12/08 17:38:26---とりあえず--起動 | L48: 2016/11/26 10:21:55---メンテナンス 起動 | M48: 2016/10/28 19:39:52手作業ＡＰＰ --IN
H49: 2017/02/24 19:43:57---メンテナンス 起動 | J49: 2016/12/08 17:38:28---メンテナンス 起動 | L49: 2016/11/28 20:21:32---とりあえず--起動 | M49: 2016/10/30 10:14:26---とりあえず--起動
H50: 2017/02/24 19:44:14手作業ＡＰＰ --IN | J50: 2016/12/08 17:38:52手作業ＡＰＰ --IN | L50: 2016/11/28 20:21:35---メンテナンス 起動 | M50: 2016/10/30 10:14:29---メンテナンス 起動
H51: 2017/02/27 19:24:43---とりあえず--起動 | J51: 2016/12/08 17:47:43手作業ＡＰＰ --IN | L51: 2016/11/28 20:21:39手作業ＡＰＰ --IN | M51: 2016/10/31 20:26:14---とりあえず--起動
H52: 2017/02/27 19:24:45---メンテナンス 起動 | J52: 2016/12/08 17:49:12手作業ＡＰＰ --IN | L52: 2016/11/29 19:23:02---とりあえず--起動 | M52: 2016/10/31 20:26:17---メンテナンス 起動
H53: 2017/02/27 19:24:48手作業ＡＰＰ --IN | J53: 2016/12/08 17:52:24手作業ＡＰＰ --IN | L53: 2016/11/29 19:23:04---メンテナンス 起動 | M53: 2016/10/31 20:26:20手作業ＡＰＰ --IN
H54: 2017/02/28 20:22:48---とりあえず--起動 | J54: 2016/12/08 17:53:13手作業ＡＰＰ --IN | L54: 2016/11/29 19:23:06手作業ＡＰＰ --IN | M54: 2016/11/01 19:22:09---とりあえず--起動
H55: 2017/02/28 20:22:51---メンテナンス 起動 | J55: 2016/12/08 17:54:37手作業ＡＰＰ --IN | L55: 2016/11/30 19:05:47---とりあえず--起動 | M55: 2016/11/01 19:22:13---メンテナンス 起動
H56: 2017/02/28 20:22:53手作業ＡＰＰ --IN | J56: 2016/12/23 11:12:14---とりあえず--起動 | L56: 2016/11/30 19:05:49---メンテナンス 起動 | M56: 2016/11/01 19:22:16手作業ＡＰＰ --IN
H57: 2017/03/01 19:08:16---とりあえず--起動 | J57: 2016/12/23 11:12:15---メンテナンス 起動 | L57: 2016/11/30 19:05:52手作業ＡＰＰ --IN | M57: 2016/11/02 19:38:25---とりあえず--起動
H58: 2017/03/01 19:08:19---メンテナンス 起動 | J58: 2016/12/23 11:12:38手作業ＡＰＰ --IN | L58: 2016/12/01 20:06:05---とりあえず--起動 | M58: 2016/11/02 19:38:30---メンテナンス 起動
H59: 2017/03/01 19:08:21手作業ＡＰＰ --IN | J59: 2016/12/26 19:22:57---とりあえず--起動 | L59: 2016/12/01 20:06:10---メンテナンス 起動 | M59: 2016/11/02 19:38:36手作業ＡＰＰ --IN
H60: 2017/03/02 19:09:40---とりあえず--起動 | J60: 2016/12/26 19:22:59---メンテナンス 起動 | L60: 2016/12/01 20:06:14手作業ＡＰＰ --IN | M60: 2016/11/04 19:10:10---とりあえず--起動
H61: 2017/03/02 19:09:45---メンテナンス 起動 | J61: 2016/12/26 19:23:09手作業ＡＰＰ --IN | L61: 2016/12/02 19:06:38---とりあえず--起動 | M61: 2016/11/04 19:10:12---メンテナンス 起動
H62: 2017/03/02 19:09:47手作業ＡＰＰ --IN | J62: 2016/12/27 19:06:50---とりあえず--起動 | L62: 2016/12/02 19:06:42---メンテナンス 起動 | M62: 2016/11/04 19:10:17手作業ＡＰＰ --IN
H63: 2017/03/03 19:54:36---とりあえず--起動 | J63: 2016/12/27 19:06:52---メンテナンス 起動 | L63: 2016/12/02 19:06:46手作業ＡＰＰ --IN | M63: 2016/11/07 17:53:37---とりあえず--起動
H64: 2017/03/03 19:54:39---メンテナンス 起動 | J64: 2016/12/27 19:06:56手作業ＡＰＰ --IN | L64: 2016/12/05 18:40:23---とりあえず--起動 | M64: 2016/11/07 17:53:40---メンテナンス 起動
H65: 2017/03/03 19:54:41手作業ＡＰＰ --IN | J65: 2016/12/28 19:13:00---とりあえず--起動 | L65: 2016/12/05 18:40:26---メンテナンス 起動 | M65: 2016/11/07 17:53:48手作業ＡＰＰ --IN
H66: 2017/03/07 20:14:00---とりあえず--起動 | J66: 2016/12/28 19:13:02---メンテナンス 起動 | L66: 2016/12/05 18:40:43手作業ＡＰＰ --IN | M66: 2016/11/08 7:56:34---とりあえず--起動
H67: 2017/03/07 20:14:03---メンテナンス 起動 | J67: 2016/12/28 19:13:05手作業ＡＰＰ --IN | L67: 2016/12/06 8:01:11---とりあえず--起動
H68: 2017/03/07 20:14:14手作業ＡＰＰ --IN | J68: 2016/12/29 19:20:03---とりあえず--起動
H69: 2017/03/13 19:19:56---とりあえず--起動 | J69: 2016/12/29 19:20:05---メンテナンス 起動
H70: 2017/03/13 19:19:58---メンテナンス 起動 | J70: 2016/12/29 19:20:07手作業ＡＰＰ --IN
H71: 2017/03/13 19:20:01手作業ＡＰＰ --IN | J71: 2016/12/30 19:20:37---とりあえず--起動
H72: 2017/03/14 19:34:19---とりあえず--起動 | J72: 2016/12/30 19:20:38---メンテナンス 起動
H73: 2017/03/14 19:34:22---メンテナンス 起動 | J73: 2016/12/30 19:20:45手作業ＡＰＰ --IN
H74: 2017/03/14 19:34:26手作業ＡＰＰ --IN | J74: 2016/12/31 10:29:07---とりあえず--起動
H75: 2017/03/15 19:46:25---とりあえず--起動 | J75: 2016/12/31 10:29:10---メンテナンス 起動
H76: 2017/03/15 19:46:28---メンテナンス 起動 | J76: 2017/01/03 21:02:38---とりあえず--起動
H77: 2017/03/15 19:46:31手作業ＡＰＰ --IN | J77: 2017/01/03 21:02:41---メンテナンス 起動
H78: 2017/03/16 20:09:39---とりあえず--起動 | J78: 2017/01/04 19:16:31---とりあえず--起動
H79: 2017/03/16 20:09:42---メンテナンス 起動 | J79: 2017/01/04 19:16:34---メンテナンス 起動
H80: 2017/03/16 20:09:44手作業ＡＰＰ --IN | J80: 2017/01/04 19:16:41手作業ＡＰＰ --IN
H81: 2017/03/17 19:12:38---とりあえず--起動 | J81: 2017/01/05 19:01:46---とりあえず--起動
H82: 2017/03/17 19:12:40---メンテナンス 起動 | J82: 2017/01/05 19:01:49---メンテナンス 起動
H83: 2017/03/17 19:12:42手作業ＡＰＰ --IN | J83: 2017/01/05 19:01:51手作業ＡＰＰ --IN
H84: 2017/03/21 19:22:07---とりあえず--起動 | J84: 2017/01/06 16:39:28---とりあえず--起動
H85: 2017/03/21 19:22:11---メンテナンス 起動 | J85: 2017/01/06 16:39:31---メンテナンス 起動
H86: 2017/03/21 19:22:14手作業ＡＰＰ --IN | J86: 2017/01/06 16:40:25手作業ＡＰＰ --IN
H87: 2017/03/22 20:04:51---とりあえず--起動 | J87: 2017/01/12 9:40:29---とりあえず--起動
H88: 2017/03/22 20:04:54---メンテナンス 起動 | J88: 2017/01/12 9:40:31---メンテナンス 起動
H89: 2017/03/22 20:04:57手作業ＡＰＰ --IN | J89: 2017/01/12 9:40:53手作業ＡＰＰ --IN
H90: 2017/03/23 19:15:05---とりあえず--起動 | J90: 2017/01/13 17:15:32---とりあえず--起動
H91: 2017/03/23 19:15:07---メンテナンス 起動 | J91: 2017/01/13 17:15:35---メンテナンス 起動
H92: 2017/03/23 19:15:09手作業ＡＰＰ --IN | J92: 2017/01/13 17:15:41手作業ＡＰＰ --IN
H93: 2017/03/27 19:47:49---とりあえず--起動 | J93: 2017/01/16 20:13:25---とりあえず--起動
H94: 2017/03/27 19:47:52---メンテナンス 起動 | J94: 2017/01/16 20:13:27---メンテナンス 起動
H95: 2017/03/27 19:47:55手作業ＡＰＰ --IN | J95: 2017/01/16 20:13:34手作業ＡＰＰ --IN
H96: 2017/03/28 19:07:49---とりあえず--起動 | J96: 2017/01/17 19:25:28---とりあえず--起動
H97: 2017/03/28 19:07:51---メンテナンス 起動 | J97: 2017/01/17 19:25:30---メンテナンス 起動
H98: 2017/03/28 19:07:56手作業ＡＰＰ --IN | J98: 2017/01/17 19:25:38手作業ＡＰＰ --IN
H99: 2017/03/29 19:04:25---とりあえず--起動 | J99: 2017/01/18 20:22:09---とりあえず--起動
H100: 2017/03/29 19:04:28---メンテナンス 起動 | J100: 2017/01/18 20:22:11---メンテナンス 起動
H101: 2017/03/29 19:04:31手作業ＡＰＰ --IN | J101: 2017/01/18 20:22:13手作業ＡＰＰ --IN
H102: 2017/03/30 19:42:37---とりあえず--起動 | J102: 2017/01/19 20:29:51---とりあえず--起動
H103: 2017/03/30 19:42:40---メンテナンス 起動 | J103: 2017/01/19 20:30:15---メンテナンス 起動
H104: 2017/03/30 19:43:08手作業ＡＰＰ --IN | J104: 2017/01/19 20:30:20手作業ＡＰＰ --IN
H105: 2017/03/31 19:46:12---とりあえず--起動 | J105: 2017/01/20 20:15:08---とりあえず--起動
H106: 2017/03/31 19:46:18---メンテナンス 起動 | J106: 2017/01/20 20:15:10---メンテナンス 起動
H107: 2017/03/31 19:46:21手作業ＡＰＰ --IN | J107: 2017/01/20 20:15:12手作業ＡＰＰ --IN
H108: 2017/04/03 17:05:30---とりあえず--起動 | J108: 2017/01/23 19:47:58---とりあえず--起動
H109: 2017/04/03 17:05:33---メンテナンス 起動 | J109: 2017/01/23 19:48:03---メンテナンス 起動
H110: 2017/04/03 17:05:35手作業ＡＰＰ --IN | J110: 2017/01/23 19:48:13手作業ＡＰＰ --IN
H111: 2017/04/07 19:59:55---とりあえず--起動 | J111: 2017/01/24 20:04:52---とりあえず--起動
H112: 2017/04/07 19:59:57---メンテナンス 起動 | J112: 2017/01/24 20:04:55---メンテナンス 起動
H113: 2017/04/07 20:00:01手作業ＡＰＰ --IN | J113: 2017/01/24 20:05:15手作業ＡＰＰ --IN
H114: 2017/04/10 19:10:40---とりあえず--起動 | J114: 2017/01/25 19:06:38---とりあえず--起動
H115: 2017/04/10 19:10:51---メンテナンス 起動 | J115: 2017/01/25 19:06:40---メンテナンス 起動
H116: 2017/04/10 19:10:55手作業ＡＰＰ --IN | J116: 2017/01/25 19:07:10手作業ＡＰＰ --IN
H117: 2017/04/11 19:09:18---とりあえず--起動 | J117: 2017/01/26 19:07:41---とりあえず--起動
H118: 2017/04/11 19:09:21---メンテナンス 起動 | J118: 2017/01/26 19:07:43---メンテナンス 起動
H119: 2017/04/11 19:09:24手作業ＡＰＰ --IN | J119: 2017/01/26 19:07:53手作業ＡＰＰ --IN
H120: 2017/04/12 19:18:00---とりあえず--起動 | J120: 2017/01/27 19:59:55---とりあえず--起動
H121: 2017/04/12 19:18:03---メンテナンス 起動 | J121: 2017/01/27 19:59:57---メンテナンス 起動
H122: 2017/04/12 19:18:05手作業ＡＰＰ --IN | J122: 2017/01/27 20:00:01手作業ＡＰＰ --IN
H123: 2017/04/13 19:22:38---とりあえず--起動 | J123: 2017/01/30 19:07:40---とりあえず--起動
H124: 2017/04/13 19:22:41---メンテナンス 起動 | J124: 2017/01/30 19:07:44---メンテナンス 起動
H125: 2017/04/13 19:22:44手作業ＡＰＰ --IN | J125: 2017/01/30 19:07:46手作業ＡＰＰ --IN
H126: 2017/04/14 19:23:43---とりあえず--起動 | J126: 2017/01/31 19:25:48---とりあえず--起動
H127: 2017/04/14 19:23:46---メンテナンス 起動 | J127: 2017/01/31 19:25:52---メンテナンス 起動
H128: 2017/04/14 19:23:49手作業ＡＰＰ --IN | J128: 2017/01/31 19:25:59手作業ＡＰＰ --IN
H129: 2017/04/17 19:32:43---とりあえず--起動 | J129: 2017/02/01 19:03:05---とりあえず--起動
H130: 2017/04/17 19:32:54---メンテナンス 起動 | J130: 2017/02/01 19:03:08---メンテナンス 起動
H131: 2017/04/17 19:32:56手作業ＡＰＰ --IN | J131: 2017/02/01 19:03:14手作業ＡＰＰ --IN
H132: 2017/04/18 22:40:29---とりあえず--起動 | J132: 2017/02/02 19:17:36---とりあえず--起動
H133: 2017/04/18 22:40:31---メンテナンス 起動 | J133: 2017/02/02 19:17:38---メンテナンス 起動
H134: 2017/04/18 22:40:33手作業ＡＰＰ --IN | J134: 2017/02/02 19:17:44手作業ＡＰＰ --IN
H135: 2017/04/19 19:11:44---とりあえず--起動 | J135: 2017/02/03 19:26:40---とりあえず--起動
H136: 2017/04/19 19:12:08---メンテナンス 起動 | J136: 2017/02/03 19:26:47---メンテナンス 起動
H137: 2017/04/19 19:12:10手作業ＡＰＰ --IN | J137: 2017/02/03 19:26:52手作業ＡＰＰ --IN
H138: 2017/04/20 19:08:27---とりあえず--起動 | J138: 2017/02/03 19:27:57---とりあえず--起動
H139: 2017/04/20 19:08:30---メンテナンス 起動 | J139: 2017/02/03 19:27:59---メンテナンス 起動
H140: 2017/04/20 19:08:32手作業ＡＰＰ --IN | J140: 2017/02/06 8:28:14---とりあえず--起動
H141: 2017/04/21 19:46:43---とりあえず--起動
H142: 2017/04/21 19:46:49---メンテナンス 起動
H143: 2017/04/21 19:46:52手作業ＡＰＰ --IN
H144: 2017/04/24 19:03:35---とりあえず--起動
H145: 2017/04/24 19:03:38---メンテナンス 起動
H146: 2017/04/24 19:03:40手作業ＡＰＰ --IN
H147: 2017/04/25 19:28:59---とりあえず--起動
H148: 2017/04/25 19:29:10---メンテナンス 起動
H149: 2017/04/25 19:29:12手作業ＡＰＰ --IN
H150: 2017/04/26 19:34:15---とりあえず--起動
H151: 2017/04/26 19:34:18---メンテナンス 起動
H152: 2017/04/26 19:34:21手作業ＡＰＰ --IN
H153: 2017/04/27 19:34:29---とりあえず--起動
H154: 2017/04/27 19:34:31---メンテナンス 起動
H155: 2017/04/27 19:34:34手作業ＡＰＰ --IN
H156: 2017/04/28 19:40:45---とりあえず--起動
H157: 2017/04/28 19:40:48---メンテナンス 起動
H158: 2017/04/28 19:40:51手作業ＡＰＰ --IN
H159: 2017/05/01 19:27:04---とりあえず--起動
H160: 2017/05/01 19:27:13---メンテナンス 起動
H161: 2017/05/01 19:27:18手作業ＡＰＰ --IN
H162: 2017/05/02 22:12:00---とりあえず--起動
H163: 2017/05/02 22:12:02---メンテナンス 起動
H164: 2017/05/02 22:12:05手作業ＡＰＰ --IN
H165: 2017/05/09 9:36:36---とりあえず--起動
H166: 2017/05/09 9:36:38---メンテナンス 起動
H167: 2017/05/09 9:36:39手作業ＡＰＰ --IN
H168: 2017/05/15 19:51:13---とりあえず--起動
H169: 2017/05/15 19:51:20---メンテナンス 起動
H170: 2017/05/15 19:51:27手作業ＡＰＰ --IN
H171: 2017/05/16 19:34:27---とりあえず--起動
H172: 2017/05/16 19:34:40---メンテナンス 起動
H173: 2017/05/16 19:34:42手作業ＡＰＰ --IN
H174: 2017/05/17 19:42:11---とりあえず--起動
H175: 2017/05/17 19:42:16---メンテナンス 起動
H176: 2017/05/17 19:42:18手作業ＡＰＰ --IN
H177: 2017/05/18 19:12:31---とりあえず--起動
H178: 2017/05/18 19:12:34---メンテナンス 起動
H179: 2017/05/18 19:12:35手作業ＡＰＰ --IN
H180: 2017/05/19 19:30:18---とりあえず--起動
H181: 2017/05/19 19:30:23---メンテナンス 起動
H182: 2017/05/19 19:30:26手作業ＡＰＰ --IN
H183: 2017/05/22 20:23:08---とりあえず--起動
H184: 2017/05/22 20:23:12---メンテナンス 起動
H185: 2017/05/22 20:23:14手作業ＡＰＰ --IN
H186: 2017/05/23 20:47:19---とりあえず--起動
H187: 2017/05/23 20:47:22---メンテナンス 起動
H188: 2017/05/23 20:47:24手作業ＡＰＰ --IN
H189: 2017/05/24 19:04:14---とりあえず--起動
H190: 2017/05/24 19:04:33---メンテナンス 起動
H191: 2017/05/24 19:04:35手作業ＡＰＰ --IN
H192: 2017/05/25 19:17:31---とりあえず--起動
H193: 2017/05/25 19:17:34---メンテナンス 起動
H194: 2017/05/25 19:17:36手作業ＡＰＰ --IN
H195: 2017/05/26 22:43:29---とりあえず--起動
H196: 2017/05/26 22:43:33---メンテナンス 起動
H197: 2017/05/26 22:43:36手作業ＡＰＰ --IN
H198: 2017/05/29 20:25:20---とりあえず--起動
H199: 2017/05/29 20:25:29---メンテナンス 起動
H200: 2017/05/29 20:25:33手作業ＡＰＰ --IN
H201: 2017/05/30 19:23:49---とりあえず--起動
H202: 2017/05/30 19:23:53---メンテナンス 起動
H203: 2017/05/30 19:23:55手作業ＡＰＰ --IN
H204: 2017/05/31 19:17:52---とりあえず--起動
H205: 2017/05/31 19:17:54---メンテナンス 起動
H206: 2017/05/31 19:17:56手作業ＡＰＰ --IN
... 400 more rows

Sheet データ
A1: 日付 | D1: 始値 | E1: 高値 | F1: 安値 | G1: 終値 | H1: ＬＣ価格 | I1: 手配 | J1: 損益 | K1: 積算損益 | L1: 年初リセット | M1: 定数 | N1: 損益ＭＡＸ | O1: ＭＡＸからの ＋－ | Q1: =$J$9 -> 10555 | R1: =MATCH(10^7,A:A) -> 1480 | AF1: 32 | AK1: 日経225ミニ日足データ
H2: 58.25 | I2: 58.25 | P2: =MAX(INDIRECT("p255:p"&$R$1)) & "日" -> 226日 | Q2: =$Q$1/$R$1 -> 7.131756757 | R2: =CORREL(INDIRECT("k255:k"&$R$1),INDIRECT("q255:q"&$R$1)) -> 0.9620794234 | AK2: 2017-12-28 | AL2: 日中 | AM2: 22945 | AN2: 22955 | AO2: 22730 | AP2: 22790 | AQ2: 12497 | AR2: 285774785
H3: 7 | P3: ↑最大水平飛行日数 | AK3: 2017-12-27 | AL3: 夜間 | AM3: 22895 | AN3: 22960 | AO3: 22890 | AP3: 22905 | AQ3: 5768 | AR3: 132190405
H4: 11 | S4: 最大ドローダウン | AK4: 2017-12-27 | AL4: 日中 | AM4: 22880 | AN4: 22945 | AO4: 22870 | AP4: 22900 | AQ4: 11396 | AR4: 261060330
B5: データ追加が１日なら有効です | H5: ＬＣ生加算 | S5: dn | T5: hi-利益 | U5: hi-位置 | V5: lo-利益 | W5: lo-位置 | X5: その期間 | AK5: 2017-12-26 | AL5: 夜間 | AM5: 22880 | AN5: 22895 | AO5: 22870 | AP5: 22875 | AQ5: 1575 | AR5: 36037080
A6: 追加日の指示 | B6: 1 | G6: ５単位➡ | H6: 0 | S6: 1985 | T6: 7015 | U6: 2016-03-01 | V6: 5030 | W6: 2016-04-28 | X6: =W6-U6 & "日" -> 58日 | AK6: 2017-12-26 | AL6: 日中 | AM6: 22905 | AN6: 22925 | AO6: 22850 | AP6: 22870 | AQ6: 8403 | AR6: 192321455
A7: 買い＝1、売り＝-1、見送り＝0 | G7: ｈ-2の最小→ | H7: 20 | I7: 100 | J7: ←ｈ-9の最小 | K7: 通年損益 | L7: 本年損益 | S7: 1705 | T7: 3730 | U7: 2015-02-16 | V7: 2025 | W7: 2015-07-07 | X7: =W7-U7 & "日" -> 141日 | AK7: 2017-12-25 | AL7: 夜間 | AM7: 22900 | AN7: 22905 | AO7: 22880 | AP7: 22890 | AQ7: 890 | AR7: 20376725
G8: 最大→ | H8: 100 | I8: 300 | J8: ←最大 | K8: 14-16年 | L8: 16年のみ | S8: 1590 | T8: 5620 | U8: 2015-10-19 | V8: 4030 | W8: 2015-11-30 | X8: 42日 | AK8: 2017-12-25 | AL8: 日中 | AM8: 22880 | AN8: 22930 | AO8: 22850 | AP8: 22890 | AQ8: 7119 | AR8: 162948250
A9: 17年さんは ＬＣ 190らしい | G9: LC-MAX | H9: 230 | I9: 230 | J9: =SUM(J200:J2000) -> 10555 | K9: =SUM(J200:J1799) -> 10555 | L9: =SUM(J743:J1798) -> 5905 | S9: 935 | T9: 595 | U9: 2014-05-07 | V9: -340 | W9: 2014-07-29 | X9: 83日 | AK9: 2017-12-22 | AL9: 夜間 | AM9: 22865 | AN9: 22885 | AO9: 22830 | AP9: 22880 | AQ9: 5279 | AR9: 120685945
A10: 2013-01-04 | D10: 10750 | E10: 10765 | F10: 10650 | G10: 10685 | H10: =IF(INT((ROUND((AVERAGE(E10:OFFSET(E10,1-$H$3,0))-AVERAGE(F10:OFFSET(F10,1-$H$3,0)))*$H$2/100/10,0)*$H$4+2.5)/5)*5>$H$9,$H$9, INT((ROUND((AVERAGE(E10:OFFSET(E10,1-$H$3,0))-AVERAGE(F10:OFFSET(F10,1-$H$3,0)))*$H$2/100/10,0)*$H$4+2.5)/5)*5)+$H$6 -> 75 | S10: 780 | T10: 350 | U10: 2014-01-31 | V10: -430 | W10: 2014-03-14 | X10: 42日 | AK10: 2017-12-22 | AL10: 日中 | AM10: 22825 | AN10: 22890 | AO10: 22780 | AP10: 22865 | AQ10: 19837 | AR10: 453127125
A11: 2013-01-07 | D11: 10740 | E11: 10745 | F11: 10585 | G11: 10620 | H11: =IF(INT((ROUND((AVERAGE(E11:OFFSET(E11,1-$H$3,0))-AVERAGE(F11:OFFSET(F11,1-$H$3,0)))*$H$2/100/10,0)*$H$4+2.5)/5)*5>$H$9,$H$9, INT((ROUND((AVERAGE(E11:OFFSET(E11,1-$H$3,0))-AVERAGE(F11:OFFSET(F11,1-$H$3,0)))*$H$2/100/10,0)*$H$4+2.5)/5)*5)+$H$6 -> 90 | S11: 535 | T11: 4920 | U11: 2015-09-28 | V11: 4385 | W11: 2015-10-05 | X11: 7日 | AK11: 2017-12-21 | AL11: 夜間 | AM11: 22835 | AN11: 22920 | AO11: 22790 | AP11: 22865 | AQ11: 9416 | AR11: 215234770
A12: 2013-01-08 | D12: 10545 | E12: 10600 | F12: 10465 | G12: 10480 | H12: =IF(INT((ROUND((AVERAGE(E12:OFFSET(E12,1-$H$3,0))-AVERAGE(F12:OFFSET(F12,1-$H$3,0)))*$H$2/100/10,0)*$H$4+2.5)/5)*5>$H$9,$H$9, INT((ROUND((AVERAGE(E12:OFFSET(E12,1-$H$3,0))-AVERAGE(F12:OFFSET(F12,1-$H$3,0)))*$H$2/100/10,0)*$H$4+2.5)/5)*5)+$H$6 -> 90 | S12: 505 | T12: 2270 | U12: 2014-11-20 | V12: 1765 | W12: 2014-12-15 | X12: 25日 | AK12: 2017-12-21 | AL12: 日中 | AM12: 22830 | AN12: 22880 | AO12: 22700 | AP12: 22815 | AQ12: 14044 | AR12: 320338870
A13: 2013-01-09 | D13: 10395 | E13: 10625 | F13: 10395 | G13: 10565 | H13: =IF(INT((ROUND((AVERAGE(E13:OFFSET(E13,1-$H$3,0))-AVERAGE(F13:OFFSET(F13,1-$H$3,0)))*$H$2/100/10,0)*$H$4+2.5)/5)*5>$H$9,$H$9, INT((ROUND((AVERAGE(E13:OFFSET(E13,1-$H$3,0))-AVERAGE(F13:OFFSET(F13,1-$H$3,0)))*$H$2/100/10,0)*$H$4+2.5)/5)*5)+$H$6 -> 100 | S13: 460 | T13: 6910 | U13: 2016-02-09 | V13: 6450 | W13: 2016-02-12 | X13: 3日 | AK13: 2017-12-20 | AL13: 夜間 | AM13: 22895 | AN13: 22910 | AO13: 22785 | AP13: 22850 | AQ13: 11687 | AR13: 267181747
A14: 2013-01-10 | D14: 10640 | E14: 10690 | F14: 10620 | G14: 10665 | H14: =IF(INT((ROUND((AVERAGE(E14:OFFSET(E14,1-$H$3,0))-AVERAGE(F14:OFFSET(F14,1-$H$3,0)))*$H$2/100/10,0)*$H$4+2.5)/5)*5>$H$9,$H$9, INT((ROUND((AVERAGE(E14:OFFSET(E14,1-$H$3,0))-AVERAGE(F14:OFFSET(F14,1-$H$3,0)))*$H$2/100/10,0)*$H$4+2.5)/5)*5)+$H$6 -> 90 | S14: 450 | T14: 1840 | U14: 2014-11-06 | V14: 1390 | W14: 2014-11-12 | X14: 6日 | AK14: 2017-12-20 | AL14: 日中 | AM14: 22805 | AN14: 22910 | AO14: 22780 | AP14: 22870 | AQ14: 13917 | AR14: 318009013
A15: 2013-01-11 | D15: 10810 | E15: 10835 | F15: 10745 | G15: 10820 | H15: =IF(INT((ROUND((AVERAGE(E15:OFFSET(E15,1-$H$3,0))-AVERAGE(F15:OFFSET(F15,1-$H$3,0)))*$H$2/100/10,0)*$H$4+2.5)/5)*5>$H$9,$H$9, INT((ROUND((AVERAGE(E15:OFFSET(E15,1-$H$3,0))-AVERAGE(F15:OFFSET(F15,1-$H$3,0)))*$H$2/100/10,0)*$H$4+2.5)/5)*5)+$H$6 -> 90 | S15: 375 | T15: 1360 | U15: 2014-10-28 | V15: 985 | W15: 2014-10-31 | X15: 3日 | AK15: 2017-12-19 | AL15: 夜間 | AM15: 22815 | AN15: 22860 | AO15: 22780 | AP15: 22815 | AQ15: 10431 | AR15: 238064885
A16: 2013-01-15 | D16: 10920 | E16: 10960 | F16: 10850 | G16: 10885 | H16: =IF(INT((ROUND((AVERAGE(E16:OFFSET(E16,1-$H$3,0))-AVERAGE(F16:OFFSET(F16,1-$H$3,0)))*$H$2/100/10,0)*$H$4+2.5)/5)*5>$H$9,$H$9, INT((ROUND((AVERAGE(E16:OFFSET(E16,1-$H$3,0))-AVERAGE(F16:OFFSET(F16,1-$H$3,0)))*$H$2/100/10,0)*$H$4+2.5)/5)*5)+$H$6 -> 90 | S16: 345 | T16: 4585 | U16: 2015-09-09 | V16: 4240 | W16: 2015-09-11 | X16: 2日 | AK16: 2017-12-19 | AL16: 日中 | AM16: 22945 | AN16: 22975 | AO16: 22805 | AP16: 22815 | AQ16: 18637 | AR16: 426589345
A17: 2013-01-16 | D17: 10820 | E17: 10825 | F17: 10580 | G17: 10585 | H17: =IF(INT((ROUND((AVERAGE(E17:OFFSET(E17,1-$H$3,0))-AVERAGE(F17:OFFSET(F17,1-$H$3,0)))*$H$2/100/10,0)*$H$4+2.5)/5)*5>$H$9,$H$9, INT((ROUND((AVERAGE(E17:OFFSET(E17,1-$H$3,0))-AVERAGE(F17:OFFSET(F17,1-$H$3,0)))*$H$2/100/10,0)*$H$4+2.5)/5)*5)+$H$6 -> 100 | S17: 345 | T17: 8720 | U17: 2016-07-27 | V17: 8375 | W17: 2016-07-29 | X17: 2日 | AK17: 2017-12-18 | AL17: 夜間 | AM17: 22910 | AN17: 22985 | AO17: 22895 | AP17: 22960 | AQ17: 13745 | AR17: 315356485
A18: 2013-01-17 | D18: 10665 | E18: 10700 | F18: 10425 | G18: 10620 | H18: =IF(INT((ROUND((AVERAGE(E18:OFFSET(E18,1-$H$3,0))-AVERAGE(F18:OFFSET(F18,1-$H$3,0)))*$H$2/100/10,0)*$H$4+2.5)/5)*5>$H$9,$H$9, INT((ROUND((AVERAGE(E18:OFFSET(E18,1-$H$3,0))-AVERAGE(F18:OFFSET(F18,1-$H$3,0)))*$H$2/100/10,0)*$H$4+2.5)/5)*5)+$H$6 -> 110 | S18: 325 | T18: 6880 | U18: 2016-01-27 | V18: 6555 | W18: 2016-02-02 | X18: 6日 | AK18: 2017-12-18 | AL18: 日中 | AM18: 22760 | AN18: 22900 | AO18: 22720 | AP18: 22890 | AQ18: 21317 | AR18: 486255500
A19: 2013-01-18 | D19: 10845 | E19: 10925 | F19: 10800 | G19: 10920 | H19: =IF(INT((ROUND((AVERAGE(E19:OFFSET(E19,1-$H$3,0))-AVERAGE(F19:OFFSET(F19,1-$H$3,0)))*$H$2/100/10,0)*$H$4+2.5)/5)*5>$H$9,$H$9, INT((ROUND((AVERAGE(E19:OFFSET(E19,1-$H$3,0))-AVERAGE(F19:OFFSET(F19,1-$H$3,0)))*$H$2/100/10,0)*$H$4+2.5)/5)*5)+$H$6 -> 110 | S19: 310 | T19: 3000 | U19: 2015-01-15 | V19: 2690 | W19: 2015-01-27 | X19: 12日 | AK19: 2017-12-15 | AL19: 夜間 | AM19: 22535 | AN19: 22725 | AO19: 22480 | AP19: 22655 | AQ19: 16830 | AR19: 380493545
A20: 2013-01-21 | D20: 10950 | E20: 10955 | F20: 10710 | G20: 10715 | H20: =IF(INT((ROUND((AVERAGE(E20:OFFSET(E20,1-$H$3,0))-AVERAGE(F20:OFFSET(F20,1-$H$3,0)))*$H$2/100/10,0)*$H$4+2.5)/5)*5>$H$9,$H$9, INT((ROUND((AVERAGE(E20:OFFSET(E20,1-$H$3,0))-AVERAGE(F20:OFFSET(F20,1-$H$3,0)))*$H$2/100/10,0)*$H$4+2.5)/5)*5)+$H$6 -> 110 | S20: 280 | T20: 305 | U20: 2014-01-20 | V20: 25 | W20: 2014-01-29 | AK20: 2017-12-15 | AL20: 日中 | AM20: 22590 | AN20: 22730 | AO20: 22455 | AP20: 22530 | AQ20: 26913 | AR20: 607267475
A21: 2013-01-22 | D21: 10765 | E21: 10860 | F21: 10605 | G21: 10710 | H21: =IF(INT((ROUND((AVERAGE(E21:OFFSET(E21,1-$H$3,0))-AVERAGE(F21:OFFSET(F21,1-$H$3,0)))*$H$2/100/10,0)*$H$4+2.5)/5)*5>$H$9,$H$9, INT((ROUND((AVERAGE(E21:OFFSET(E21,1-$H$3,0))-AVERAGE(F21:OFFSET(F21,1-$H$3,0)))*$H$2/100/10,0)*$H$4+2.5)/5)*5)+$H$6 -> 120 | S21: 280 | T21: 7975 | U21: 2016-06-27 | V21: 7695 | W21: 2016-06-29 | Z21: 合計利益 | AA21: 勝利益 | AB21: 負け合計 | AC21: 勝数 | AD21: 負け数 | AE21: 勝率 | AF21: ＰＦ | AG21: ＰＯＲ | AH21: 1回利益 | AI21: 1回ロス | AJ21: ずれ年間 | AK21: 2017-12-14 | AL21: 夜間 | AM21: 22670 | AN21: 22710 | AO21: 22520 | AP21: 22545 | AQ21: 14035 | AR21: 317890725
A22: 2013-01-23 | D22: 10565 | E22: 10660 | F22: 10460 | G22: 10460 | H22: =IF(INT((ROUND((AVERAGE(E22:OFFSET(E22,1-$H$3,0))-AVERAGE(F22:OFFSET(F22,1-$H$3,0)))*$H$2/100/10,0)*$H$4+2.5)/5)*5>$H$9,$H$9, INT((ROUND((AVERAGE(E22:OFFSET(E22,1-$H$3,0))-AVERAGE(F22:OFFSET(F22,1-$H$3,0)))*$H$2/100/10,0)*$H$4+2.5)/5)*5)+$H$6 -> 130 | S22: 230 | T22: 6580 | U22: 2016-01-20 | V22: 6350 | W22: 2016-01-21 | Y22: GT | Z22: =SUM(Z24:Z114)-Z36-Z49-Z62 -> 10395 | AA22: =SUM(AA24:AA114)-AA36-AA49-AA62 -> 46485 | AB22: =SUM(AB24:AB114)-AB36-AB49-AB62 -> -36090 | AC22: =SUM(AC24:AC114)-AC36-AC49-AC62 -> 370 | AD22: =SUM(AD24:AD114)-AD36-AD49-AD62 -> 364 | AE22: =IF(AC22=0,0,AC22/(AC22+AD22))*100 -> 50.40871935 | AF22: =IF(OR(AA22=0,AB22=0),"",AA22/ABS(AB22)) -> 1.288029925 | AG22: =IF(OR(AA22=0,AB22=0),"",(AA22/AC22)/ABS(AB22/AD22)) -> 1.267142953 | AH22: =IF(AC22<>0,INT(AA22/AC22),"") -> 125 | AI22: =IF(AD22<>0,INT(AB22/AD22),"") -> -100 | AK22: 2017-12-14 | AL22: 日中 | AM22: 22690 | AN22: 22760 | AO22: 22610 | AP22: 22640 | AQ22: 17598 | AR22: 399243390
A23: 2013-01-24 | D23: 10440 | E23: 10640 | F23: 10435 | G23: 10625 | H23: =IF(INT((ROUND((AVERAGE(E23:OFFSET(E23,1-$H$3,0))-AVERAGE(F23:OFFSET(F23,1-$H$3,0)))*$H$2/100/10,0)*$H$4+2.5)/5)*5>$H$9,$H$9, INT((ROUND((AVERAGE(E23:OFFSET(E23,1-$H$3,0))-AVERAGE(F23:OFFSET(F23,1-$H$3,0)))*$H$2/100/10,0)*$H$4+2.5)/5)*5)+$H$6 -> 145 | S23: 230 | T23: 6905 | U23: 2016-02-05 | V23: 6675 | W23: 2016-02-08 | X23: 255 | Z23: 損益 | AA23: ＋ | AB23: － | AC23: 勝数 | AD23: 負け数 | AE23: 勝率 % | AF23: ＰＦ | AG23: ＰＯＲ | AK23: 2017-12-13 | AL23: 夜間 | AM23: 22745 | AN23: 22810 | AO23: 22670 | AP23: 22670 | AQ23: 13911 | AR23: 316321455
A24: 2013-01-25 | D24: 10835 | E24: 10935 | F24: 10805 | G24: 10925 | H24: =IF(INT((ROUND((AVERAGE(E24:OFFSET(E24,1-$H$3,0))-AVERAGE(F24:OFFSET(F24,1-$H$3,0)))*$H$2/100/10,0)*$H$4+2.5)/5)*5>$H$9,$H$9, INT((ROUND((AVERAGE(E24:OFFSET(E24,1-$H$3,0))-AVERAGE(F24:OFFSET(F24,1-$H$3,0)))*$H$2/100/10,0)*$H$4+2.5)/5)*5)+$H$6 -> 130 | S24: 190 | T24: 640 | U24: 2014-10-10 | V24: 450 | W24: 2014-10-16 | X24: 255 | Y24: 2014-01-06 | Z24: =SUM(INDIRECT("データ!J"&X24&":j"&X25-1)) -> 350 | AA24: =SUMIF(OFFSET($J$1,X24-1,0):OFFSET($J$1,X25-2,0),">0") -> 1125 | AB24: =SUMIF(OFFSET($J$1,X24-1,0):OFFSET($J$1,X25-2,0),"<=0") -> -775 | AC24: =COUNTIF(OFFSET($J$1,X24-1,0):OFFSET($J$1,X25-2,0),">0") -> 11 | AD24: =COUNTIF(OFFSET($J$1,X24-1,0):OFFSET($J$1,X25-2,0),"<0") -> 7 | AE24: =IF(AC24=0,0,AC24/(AC24+AD24))*100 -> 61.11111111 | AF24: =IF(OR(AA24=0,AB24=0),"",AA24/ABS(AB24)) -> 1.451612903 | AG24: =IF(OR(AA24=0,AB24=0),"",(AA24/AC24)/ABS(AB24/AD24)) -> 0.9237536657 | AH24: 102 | AI24: -111 | AK24: 2017-12-13 | AL24: 日中 | AM24: 22890 | AN24: 22890 | AO24: 22670 | AP24: 22710 | AQ24: 20430 | AR24: 465444723
A25: 2013-01-28 | D25: 11000 | E25: 11005 | F25: 10805 | G25: 10820 | H25: =IF(INT((ROUND((AVERAGE(E25:OFFSET(E25,1-$H$3,0))-AVERAGE(F25:OFFSET(F25,1-$H$3,0)))*$H$2/100/10,0)*$H$4+2.5)/5)*5>$H$9,$H$9, INT((ROUND((AVERAGE(E25:OFFSET(E25,1-$H$3,0))-AVERAGE(F25:OFFSET(F25,1-$H$3,0)))*$H$2/100/10,0)*$H$4+2.5)/5)*5)+$H$6 -> 120 | S25: 180 | T25: 0 | U25: 2014-01-06 | V25: -180 | W25: 2014-01-10 | X25: 274 | Y25: 2014-02-03 | Z25: =SUM(INDIRECT("データ!J"&X25&":j"&X26-1)) -> -440 | AA25: =SUMIF(OFFSET($J$1,X25-1,0):OFFSET($J$1,X26-2,0),">0") -> 955 | AB25: =SUMIF(OFFSET($J$1,X25-1,0):OFFSET($J$1,X26-2,0),"<=0") -> -1395 | AC25: =COUNTIF(OFFSET($J$1,X25-1,0):OFFSET($J$1,X26-2,0),">0") -> 6 | AD25: =COUNTIF(OFFSET($J$1,X25-1,0):OFFSET($J$1,X26-2,0),"<0") -> 13 | AE25: 31.57894737 | AF25: 0.6845878136 | AG25: 1.483273596 | AH25: 159 | AI25: -108 | AK25: 2017-12-12 | AL25: 夜間 | AM25: 22840 | AN25: 22945 | AO25: 22790 | AP25: 22920 | AQ25: 10933 | AR25: 250005000
A26: 2013-01-29 | D26: 10740 | E26: 10945 | F26: 10735 | G26: 10885 | H26: =IF(INT((ROUND((AVERAGE(E26:OFFSET(E26,1-$H$3,0))-AVERAGE(F26:OFFSET(F26,1-$H$3,0)))*$H$2/100/10,0)*$H$4+2.5)/5)*5>$H$9,$H$9, INT((ROUND((AVERAGE(E26:OFFSET(E26,1-$H$3,0))-AVERAGE(F26:OFFSET(F26,1-$H$3,0)))*$H$2/100/10,0)*$H$4+2.5)/5)*5)+$H$6 -> 130 | S26: 175 | T26: 2395 | U26: 2015-01-07 | V26: 2220 | W26: 2015-01-08 | X26: 293 | Y26: 2014-03-03 | Z26: -125 | AA26: =SUMIF(OFFSET($J$1,X26-1,0):OFFSET($J$1,X27-2,0),">0") -> 1045 | AB26: =SUMIF(OFFSET($J$1,X26-1,0):OFFSET($J$1,X27-2,0),"<=0") -> -1170 | AC26: =COUNTIF(OFFSET($J$1,X26-1,0):OFFSET($J$1,X27-2,0),">0") -> 10 | AD26: =COUNTIF(OFFSET($J$1,X26-1,0):OFFSET($J$1,X27-2,0),"<0") -> 10 | AE26: 50 | AF26: 0.8931623932 | AG26: 0.8931623932 | AH26: 104 | AI26: -117 | AK26: 2017-12-12 | AL26: 日中 | AM26: 22910 | AN26: 22975 | AO26: 22815 | AP26: 22855 | AQ26: 17844 | AR26: 408646485
A27: 2013-01-30 | D27: 10915 | E27: 11115 | F27: 10900 | G27: 11110 | H27: =IF(INT((ROUND((AVERAGE(E27:OFFSET(E27,1-$H$3,0))-AVERAGE(F27:OFFSET(F27,1-$H$3,0)))*$H$2/100/10,0)*$H$4+2.5)/5)*5>$H$9,$H$9, INT((ROUND((AVERAGE(E27:OFFSET(E27,1-$H$3,0))-AVERAGE(F27:OFFSET(F27,1-$H$3,0)))*$H$2/100/10,0)*$H$4+2.5)/5)*5)+$H$6 -> 130 | S27: 175 | T27: 5320 | U27: 2015-10-13 | V27: 5145 | W27: 2015-10-14 | X27: 313 | Y27: 2014-04-01 | Z27: 505 | AA27: =SUMIF(OFFSET($J$1,X27-1,0):OFFSET($J$1,X28-2,0),">0") -> 1355 | AB27: =SUMIF(OFFSET($J$1,X27-1,0):OFFSET($J$1,X28-2,0),"<=0") -> -850 | AC27: =COUNTIF(OFFSET($J$1,X27-1,0):OFFSET($J$1,X28-2,0),">0") -> 12 | AD27: =COUNTIF(OFFSET($J$1,X27-1,0):OFFSET($J$1,X28-2,0),"<0") -> 9 | AE27: 57.14285714 | AF27: 1.594117647 | AG27: 1.195588235 | AH27: 112 | AI27: -95 | AK27: 2017-12-11 | AL27: 夜間 | AM27: 22900 | AN27: 22905 | AO27: 22830 | AP27: 22875 | AQ27: 9170 | AR27: 209654620
A28: 2013-01-31 | D28: 11055 | E28: 11150 | F28: 10995 | G28: 11115 | H28: =IF(INT((ROUND((AVERAGE(E28:OFFSET(E28,1-$H$3,0))-AVERAGE(F28:OFFSET(F28,1-$H$3,0)))*$H$2/100/10,0)*$H$4+2.5)/5)*5>$H$9,$H$9, INT((ROUND((AVERAGE(E28:OFFSET(E28,1-$H$3,0))-AVERAGE(F28:OFFSET(F28,1-$H$3,0)))*$H$2/100/10,0)*$H$4+2.5)/5)*5)+$H$6 -> 120 | S28: 170 | T28: 6065 | U28: 2016-01-18 | V28: 5895 | W28: 2016-01-19 | X28: 334 | Y28: 2014-05-01 | Z28: -330 | AA28: =SUMIF(OFFSET($J$1,X28-1,0):OFFSET($J$1,X29-2,0),">0") -> 505 | AB28: =SUMIF(OFFSET($J$1,X28-1,0):OFFSET($J$1,X29-2,0),"<=0") -> -835 | AC28: =COUNTIF(OFFSET($J$1,X28-1,0):OFFSET($J$1,X29-2,0),">0") -> 4 | AD28: =COUNTIF(OFFSET($J$1,X28-1,0):OFFSET($J$1,X29-2,0),"<0") -> 15 | AE28: 21.05263158 | AF28: 0.6047904192 | AG28: 2.267964072 | AH28: 126 | AI28: -56 | AK28: 2017-12-11 | AL28: 日中 | AM28: 22890 | AN28: 22925 | AO28: 22770 | AP28: 22905 | AQ28: 19222 | AR28: 439147180
A29: 2013-02-01 | D29: 11180 | E29: 11245 | F29: 11135 | G29: 11180 | H29: =IF(INT((ROUND((AVERAGE(E29:OFFSET(E29,1-$H$3,0))-AVERAGE(F29:OFFSET(F29,1-$H$3,0)))*$H$2/100/10,0)*$H$4+2.5)/5)*5>$H$9,$H$9, INT((ROUND((AVERAGE(E29:OFFSET(E29,1-$H$3,0))-AVERAGE(F29:OFFSET(F29,1-$H$3,0)))*$H$2/100/10,0)*$H$4+2.5)/5)*5)+$H$6 -> 110 | S29: 170 | T29: 8520 | U29: 2016-07-15 | V29: 8350 | W29: 2016-07-22 | X29: 354 | Y29: 2014-06-02 | Z29: 195 | AA29: =SUMIF(OFFSET($J$1,X29-1,0):OFFSET($J$1,X30-2,0),">0") -> 895 | AB29: =SUMIF(OFFSET($J$1,X29-1,0):OFFSET($J$1,X30-2,0),"<=0") -> -700 | AC29: =COUNTIF(OFFSET($J$1,X29-1,0):OFFSET($J$1,X30-2,0),">0") -> 13 | AD29: =COUNTIF(OFFSET($J$1,X29-1,0):OFFSET($J$1,X30-2,0),"<0") -> 8 | AE29: 61.9047619 | AF29: 1.278571429 | AG29: 0.7868131868 | AH29: 68 | AI29: -88 | AK29: 2017-12-08 | AL29: 夜間 | AM29: 22820 | AN29: 22880 | AO29: 22765 | AP29: 22835 | AQ29: 17714 | AR29: 404492710
A30: 2013-02-04 | D30: 11250 | E30: 11290 | F30: 11185 | G30: 11265 | H30: =IF(INT((ROUND((AVERAGE(E30:OFFSET(E30,1-$H$3,0))-AVERAGE(F30:OFFSET(F30,1-$H$3,0)))*$H$2/100/10,0)*$H$4+2.5)/5)*5>$H$9,$H$9, INT((ROUND((AVERAGE(E30:OFFSET(E30,1-$H$3,0))-AVERAGE(F30:OFFSET(F30,1-$H$3,0)))*$H$2/100/10,0)*$H$4+2.5)/5)*5)+$H$6 -> 100 | S30: 155 | T30: 4685 | U30: 2015-09-18 | V30: 4530 | W30: 2015-09-24 | X30: 375 | Y30: 2014-07-01 | Z30: -380 | AA30: =SUMIF(OFFSET($J$1,X30-1,0):OFFSET($J$1,X31-2,0),">0") -> 465 | AB30: =SUMIF(OFFSET($J$1,X30-1,0):OFFSET($J$1,X31-2,0),"<=0") -> -845 | AC30: =COUNTIF(OFFSET($J$1,X30-1,0):OFFSET($J$1,X31-2,0),">0") -> 9 | AD30: =COUNTIF(OFFSET($J$1,X30-1,0):OFFSET($J$1,X31-2,0),"<0") -> 13 | AE30: 40.90909091 | AF30: 0.550295858 | AG30: 0.7948717949 | AH30: 51 | AI30: -65 | AK30: 2017-12-08 | AL30: 日中 | AM30: 22620 | AN30: 22815 | AO30: 22530 | AP30: 22800 | AQ30: 25486 | AR30: 578459324
A31: 2013-02-05 | D31: 11095 | E31: 11170 | F31: 11040 | G31: 11070 | H31: =IF(INT((ROUND((AVERAGE(E31:OFFSET(E31,1-$H$3,0))-AVERAGE(F31:OFFSET(F31,1-$H$3,0)))*$H$2/100/10,0)*$H$4+2.5)/5)*5>$H$9,$H$9, INT((ROUND((AVERAGE(E31:OFFSET(E31,1-$H$3,0))-AVERAGE(F31:OFFSET(F31,1-$H$3,0)))*$H$2/100/10,0)*$H$4+2.5)/5)*5)+$H$6 -> 100 | S31: 155 | T31: 8190 | U31: 2016-07-11 | V31: 8035 | W31: 2016-07-12 | X31: 397 | Y31: 2014-08-01 | Z31: 570 | AA31: =SUMIF(OFFSET($J$1,X31-1,0):OFFSET($J$1,X32-2,0),">0") -> 875 | AB31: =SUMIF(OFFSET($J$1,X31-1,0):OFFSET($J$1,X32-2,0),"<=0") -> -305 | AC31: =COUNTIF(OFFSET($J$1,X31-1,0):OFFSET($J$1,X32-2,0),">0") -> 13 | AD31: =COUNTIF(OFFSET($J$1,X31-1,0):OFFSET($J$1,X32-2,0),"<0") -> 8 | AE31: 61.9047619 | AF31: 2.868852459 | AG31: 1.765447667 | AH31: 67 | AI31: -39 | AK31: 2017-12-07 | AL31: 夜間 | AM31: 22550 | AN31: 22630 | AO31: 22445 | AP31: 22630 | AQ31: 18236 | AR31: 411021196
A32: 2013-02-06 | D32: 11290 | E32: 11505 | F32: 11280 | G32: 11435 | H32: =IF(INT((ROUND((AVERAGE(E32:OFFSET(E32,1-$H$3,0))-AVERAGE(F32:OFFSET(F32,1-$H$3,0)))*$H$2/100/10,0)*$H$4+2.5)/5)*5>$H$9,$H$9, INT((ROUND((AVERAGE(E32:OFFSET(E32,1-$H$3,0))-AVERAGE(F32:OFFSET(F32,1-$H$3,0)))*$H$2/100/10,0)*$H$4+2.5)/5)*5)+$H$6 -> 110 | S32: 145 | T32: 4640 | U32: 2015-09-14 | V32: 4495 | W32: 2015-09-17 | X32: 418 | Y32: 2014-09-01 | Z32: -95 | AA32: =SUMIF(OFFSET($J$1,X32-1,0):OFFSET($J$1,X33-2,0),">0") -> 490 | AB32: =SUMIF(OFFSET($J$1,X32-1,0):OFFSET($J$1,X33-2,0),"<=0") -> -585 | AC32: =COUNTIF(OFFSET($J$1,X32-1,0):OFFSET($J$1,X33-2,0),">0") -> 7 | AD32: =COUNTIF(OFFSET($J$1,X32-1,0):OFFSET($J$1,X33-2,0),"<0") -> 13 | AE32: 35 | AF32: 0.8376068376 | AG32: 1.555555556 | AH32: 70 | AI32: -45 | AK32: 2017-12-07 | AL32: 日中 | AM32: 22340 | AN32: 22570 | AO32: 22305 | AP32: 22520 | AQ32: 193428 | AR32: 4340769413
A33: 2013-02-07 | D33: 11360 | E33: 11450 | F33: 11285 | G33: 11390 | H33: =IF(INT((ROUND((AVERAGE(E33:OFFSET(E33,1-$H$3,0))-AVERAGE(F33:OFFSET(F33,1-$H$3,0)))*$H$2/100/10,0)*$H$4+2.5)/5)*5>$H$9,$H$9, INT((ROUND((AVERAGE(E33:OFFSET(E33,1-$H$3,0))-AVERAGE(F33:OFFSET(F33,1-$H$3,0)))*$H$2/100/10,0)*$H$4+2.5)/5)*5)+$H$6 -> 100 | S33: 110 | T33: 5700 | U33: 2016-01-13 | V33: 5590 | W33: 2016-01-14 | X33: 438 | Y33: 2014-10-01 | Z33: 735 | AA33: =SUMIF(OFFSET($J$1,X33-1,0):OFFSET($J$1,X34-2,0),">0") -> 1490 | AB33: =SUMIF(OFFSET($J$1,X33-1,0):OFFSET($J$1,X34-2,0),"<=0") -> -755 | AC33: =COUNTIF(OFFSET($J$1,X33-1,0):OFFSET($J$1,X34-2,0),">0") -> 10 | AD33: =COUNTIF(OFFSET($J$1,X33-1,0):OFFSET($J$1,X34-2,0),"<0") -> 11 | AE33: 47.61904762 | AF33: 1.973509934 | AG33: 2.170860927 | AH33: 149 | AI33: -69 | AK33: 2017-12-06 | AL33: 夜間 | AM33: 22140 | AN33: 22320 | AO33: 22055 | AP33: 22285 | AQ33: 465489 | AR33: 10325264992
A34: 2013-02-08 | D34: 11240 | E34: 11300 | F34: 11125 | G34: 11170 | H34: =IF(INT((ROUND((AVERAGE(E34:OFFSET(E34,1-$H$3,0))-AVERAGE(F34:OFFSET(F34,1-$H$3,0)))*$H$2/100/10,0)*$H$4+2.5)/5)*5>$H$9,$H$9, INT((ROUND((AVERAGE(E34:OFFSET(E34,1-$H$3,0))-AVERAGE(F34:OFFSET(F34,1-$H$3,0)))*$H$2/100/10,0)*$H$4+2.5)/5)*5)+$H$6 -> 100 | S34: 100 | T34: 8770 | U34: 2016-08-26 | V34: 8670 | W34: 2016-08-29 | X34: 460 | Y34: 2014-11-04 | Z34: 1125 | AA34: =SUMIF(OFFSET($J$1,X34-1,0):OFFSET($J$1,X35-2,0),">0") -> 1885 | AB34: =SUMIF(OFFSET($J$1,X34-1,0):OFFSET($J$1,X35-2,0),"<=0") -> -760 | AC34: =COUNTIF(OFFSET($J$1,X34-1,0):OFFSET($J$1,X35-2,0),">0") -> 10 | AD34: =COUNTIF(OFFSET($J$1,X34-1,0):OFFSET($J$1,X35-2,0),"<0") -> 7 | AE34: 58.82352941 | AF34: 2.480263158 | AG34: 1.736184211 | AH34: 188 | AI34: -109 | AK34: 2017-12-06 | AL34: 日中 | AM34: 22510 | AN34: 22540 | AO34: 22110 | AP34: 22200 | AQ34: 725311 | AR34: 16190604068
A35: 2013-02-12 | D35: 11405 | E35: 11465 | F35: 11360 | G35: 11370 | H35: =IF(INT((ROUND((AVERAGE(E35:OFFSET(E35,1-$H$3,0))-AVERAGE(F35:OFFSET(F35,1-$H$3,0)))*$H$2/100/10,0)*$H$4+2.5)/5)*5>$H$9,$H$9, INT((ROUND((AVERAGE(E35:OFFSET(E35,1-$H$3,0))-AVERAGE(F35:OFFSET(F35,1-$H$3,0)))*$H$2/100/10,0)*$H$4+2.5)/5)*5)+$H$6 -> 90 | S35: 40 | T35: 425 | U35: 2014-05-01 | V35: 385 | W35: 2014-05-02 | X35: 478 | Y35: 2014-12-01 | Z35: =SUM(INDIRECT("データ!J"&X35&":j"&X37-1)) -> -90 | AA35: =SUMIF(OFFSET($J$1,X35-1,0):OFFSET($J$1,X37-2,0),">0") -> 905 | AB35: =SUMIF(OFFSET($J$1,X35-1,0):OFFSET($J$1,X37-2,0),"<=0") -> -995 | AC35: =COUNTIF(OFFSET($J$1,X35-1,0):OFFSET($J$1,X37-2,0),">0") -> 11 | AD35: =COUNTIF(OFFSET($J$1,X35-1,0):OFFSET($J$1,X37-2,0),"<0") -> 9 | AE35: 55 | AF35: 0.9095477387 | AG35: 0.7441754226 | AH35: 82 | AI35: -111 | AK35: 2017-12-05 | AL35: 夜間 | AM35: 22630 | AN35: 22665 | AO35: 22510 | AP35: 22530 | AQ35: 404144 | AR35: 9128060363
A36: 2013-02-13 | D36: 11325 | E36: 11370 | F36: 11190 | G36: 11265 | H36: =IF(INT((ROUND((AVERAGE(E36:OFFSET(E36,1-$H$3,0))-AVERAGE(F36:OFFSET(F36,1-$H$3,0)))*$H$2/100/10,0)*$H$4+2.5)/5)*5>$H$9,$H$9, INT((ROUND((AVERAGE(E36:OFFSET(E36,1-$H$3,0))-AVERAGE(F36:OFFSET(F36,1-$H$3,0)))*$H$2/100/10,0)*$H$4+2.5)/5)*5)+$H$6 -> 100 | S36: 35 | T36: 1340 | U36: 2014-10-22 | V36: 1305 | W36: 2014-10-23 | Y36: 2014 | Z36: =SUM(Z24:Z35) -> 2020 | AA36: =SUM(AA24:AA35) -> 11990 | AB36: =SUM(AB24:AB35) -> -9970 | AC36: =SUM(AC24:AC35) -> 116 | AD36: =SUM(AD24:AD35) -> 123 | AE36: =IF(AC36=0,0,AC36/(AC36+AD36))*100 -> 48.53556485 | AF36: =IF(OR(AA36=0,AB36=0),"",AA36/ABS(AB36)) -> 1.202607823 | AG36: =IF(OR(AA36=0,AB36=0),"",(AA36/AC36)/ABS(AB36/AD36)) -> 1.275178985 | AH36: 103 | AI36: -82 | AJ36: =SUM(Z24:Z35) -> 2020 | AK36: 2017-12-05 | AL36: 日中 | AM36: 22590 | AN36: 22690 | AO36: 22520 | AP36: 22610 | AQ36: 449501 | AR36: 10163616424
A37: 2013-02-14 | D37: 11275 | E37: 11360 | F37: 11240 | G37: 11330 | H37: =IF(INT((ROUND((AVERAGE(E37:OFFSET(E37,1-$H$3,0))-AVERAGE(F37:OFFSET(F37,1-$H$3,0)))*$H$2/100/10,0)*$H$4+2.5)/5)*5>$H$9,$H$9, INT((ROUND((AVERAGE(E37:OFFSET(E37,1-$H$3,0))-AVERAGE(F37:OFFSET(F37,1-$H$3,0)))*$H$2/100/10,0)*$H$4+2.5)/5)*5)+$H$6 -> 100 | S37: 30 | T37: 3480 | U37: 2015-02-05 | V37: 3450 | W37: 2015-02-06 | X37: 499 | Y37: 2015-01-05 | Z37: =SUM(INDIRECT("データ!J"&X37&":j"&X38-1)) -> 905 | AA37: =SUMIF(OFFSET($J$1,X37-1,0):OFFSET($J$1,X38-2,0),">0") -> 1670 | AB37: =SUMIF(OFFSET($J$1,X37-1,0):OFFSET($J$1,X38-2,0),"<=0") -> -765 | AC37: =COUNTIF(OFFSET($J$1,X37-1,0):OFFSET($J$1,X38-2,0),">0") -> 12 | AD37: =COUNTIF(OFFSET($J$1,X37-1,0):OFFSET($J$1,X38-2,0),"<0") -> 7 | AE37: =IF(AC37=0,0,AC37/(AC37+AD37))*100 -> 63.15789474 | AF37: =IF(OR(AA37=0,AB37=0),"",AA37/ABS(AB37)) -> 2.183006536 | AG37: =IF(OR(AA37=0,AB37=0),"",(AA37/AC37)/ABS(AB37/AD37)) -> 1.273420479 | AH37: 139 | AI37: -110 | AJ37: =SUM(Z25:Z37)-$Z$36 -> 2575 | AK37: 2017-12-04 | AL37: 夜間 | AM37: 22765 | AN37: 22805 | AO37: 22630 | AP37: 22630 | AQ37: 347934 | AR37: 7909580814
A38: 2013-02-15 | D38: 11235 | E38: 11265 | F38: 11060 | G38: 11170 | H38: =IF(INT((ROUND((AVERAGE(E38:OFFSET(E38,1-$H$3,0))-AVERAGE(F38:OFFSET(F38,1-$H$3,0)))*$H$2/100/10,0)*$H$4+2.5)/5)*5>$H$9,$H$9, INT((ROUND((AVERAGE(E38:OFFSET(E38,1-$H$3,0))-AVERAGE(F38:OFFSET(F38,1-$H$3,0)))*$H$2/100/10,0)*$H$4+2.5)/5)*5)+$H$6 -> 110 | S38: 20 | T38: 6630 | U38: 2016-01-22 | V38: 6610 | W38: 2016-01-25 | X38: 518 | Y38: 2015-02-02 | Z38: =SUM(INDIRECT("データ!J"&X38&":j"&X39-1)) -> 625 | AA38: =SUMIF(OFFSET($J$1,X38-1,0):OFFSET($J$1,X39-2,0),">0") -> 960 | AB38: =SUMIF(OFFSET($J$1,X38-1,0):OFFSET($J$1,X39-2,0),"<=0") -> -335 | AC38: =COUNTIF(OFFSET($J$1,X38-1,0):OFFSET($J$1,X39-2,0),">0") -> 13 | AD38: =COUNTIF(OFFSET($J$1,X38-1,0):OFFSET($J$1,X39-2,0),"<0") -> 5 | AE38: 72.22222222 | AF38: 2.865671642 | AG38: 1.102181401 | AH38: 73 | AI38: -67 | AJ38: =SUM(Z26:Z38)-$Z$36 -> 3640 | AK38: 2017-12-04 | AL38: 日中 | AM38: 22810 | AN38: 22870 | AO38: 22700 | AP38: 22710 | AQ38: 509973 | AR38: 11619514728
A39: 2013-02-18 | D39: 11335 | E39: 11460 | F39: 11320 | G39: 11405 | H39: =IF(INT((ROUND((AVERAGE(E39:OFFSET(E39,1-$H$3,0))-AVERAGE(F39:OFFSET(F39,1-$H$3,0)))*$H$2/100/10,0)*$H$4+2.5)/5)*5>$H$9,$H$9, INT((ROUND((AVERAGE(E39:OFFSET(E39,1-$H$3,0))-AVERAGE(F39:OFFSET(F39,1-$H$3,0)))*$H$2/100/10,0)*$H$4+2.5)/5)*5)+$H$6 -> 100 | S39: 5 | T39: 5445 | U39: 2015-10-15 | V39: 5440 | W39: 2015-10-16 | X39: 537 | Y39: 2015-03-02 | Z39: -325 | AA39: =SUMIF(OFFSET($J$1,X39-1,0):OFFSET($J$1,X40-2,0),">0") -> 1250 | AB39: =SUMIF(OFFSET($J$1,X39-1,0):OFFSET($J$1,X40-2,0),"<=0") -> -1575 | AC39: =COUNTIF(OFFSET($J$1,X39-1,0):OFFSET($J$1,X40-2,0),">0") -> 8 | AD39: =COUNTIF(OFFSET($J$1,X39-1,0):OFFSET($J$1,X40-2,0),"<0") -> 14 | AE39: 36.36363636 | AF39: 0.7936507937 | AG39: 1.388888889 | AH39: 156 | AI39: -113 | AJ39: 3440 | AK39: 2017-12-01 | AL39: 夜間 | AM39: 22830 | AN39: 22845 | AO39: 22370 | AP39: 22630 | AQ39: 986317 | AR39: 22341816042
A40: 2013-02-19 | D40: 11345 | E40: 11415 | F40: 11340 | G40: 11370 | H40: =IF(INT((ROUND((AVERAGE(E40:OFFSET(E40,1-$H$3,0))-AVERAGE(F40:OFFSET(F40,1-$H$3,0)))*$H$2/100/10,0)*$H$4+2.5)/5)*5>$H$9,$H$9, INT((ROUND((AVERAGE(E40:OFFSET(E40,1-$H$3,0))-AVERAGE(F40:OFFSET(F40,1-$H$3,0)))*$H$2/100/10,0)*$H$4+2.5)/5)*5)+$H$6 -> 90 | S40: 5 | T40: 5445 | U40: 2015-10-15 | V40: 5440 | W40: 2015-10-16 | X40: 559 | Y40: 2015-04-01 | Z40: -465 | AA40: =SUMIF(OFFSET($J$1,X40-1,0):OFFSET($J$1,X41-2,0),">0") -> 890 | AB40: =SUMIF(OFFSET($J$1,X40-1,0):OFFSET($J$1,X41-2,0),"<=0") -> -1355 | AC40: =COUNTIF(OFFSET($J$1,X40-1,0):OFFSET($J$1,X41-2,0),">0") -> 9 | AD40: =COUNTIF(OFFSET($J$1,X40-1,0):OFFSET($J$1,X41-2,0),"<0") -> 12 | AE40: 42.85714286 | AF40: 0.6568265683 | AG40: 0.8757687577 | AH40: 98 | AI40: -113 | AJ40: 2470 | AK40: 2017-12-01 | AL40: 日中 | AM40: 22905 | AN40: 23000 | AO40: 22670 | AP40: 22790 | AQ40: 804875 | AR40: 18361937315
A41: 2013-02-20 | D41: 11480 | E41: 11515 | F41: 11435 | G41: 11445 | H41: =IF(INT((ROUND((AVERAGE(E41:OFFSET(E41,1-$H$3,0))-AVERAGE(F41:OFFSET(F41,1-$H$3,0)))*$H$2/100/10,0)*$H$4+2.5)/5)*5>$H$9,$H$9, INT((ROUND((AVERAGE(E41:OFFSET(E41,1-$H$3,0))-AVERAGE(F41:OFFSET(F41,1-$H$3,0)))*$H$2/100/10,0)*$H$4+2.5)/5)*5)+$H$6 -> 90 | S41: 5 | T41: 5445 | U41: 1901-11-21 | V41: 5440 | W41: 1901-11-22 | X41: 580 | Y41: 2015-05-01 | Z41: -515 | AA41: =SUMIF(OFFSET($J$1,X41-1,0):OFFSET($J$1,X42-2,0),">0") -> 405 | AB41: =SUMIF(OFFSET($J$1,X41-1,0):OFFSET($J$1,X42-2,0),"<=0") -> -920 | AC41: =COUNTIF(OFFSET($J$1,X41-1,0):OFFSET($J$1,X42-2,0),">0") -> 8 | AD41: =COUNTIF(OFFSET($J$1,X41-1,0):OFFSET($J$1,X42-2,0),"<0") -> 10 | AE41: 44.44444444 | AF41: 0.4402173913 | AG41: 0.5502717391 | AH41: 50 | AI41: -92 | AJ41: 2285 | AK41: 2017-11-30 | AL41: 夜間 | AM41: 22770 | AN41: 22970 | AO41: 22740 | AP41: 22900 | AQ41: 556078 | AR41: 12699899807
A42: 2013-02-21 | D42: 11405 | E42: 11440 | F42: 11295 | G42: 11310 | H42: =IF(INT((ROUND((AVERAGE(E42:OFFSET(E42,1-$H$3,0))-AVERAGE(F42:OFFSET(F42,1-$H$3,0)))*$H$2/100/10,0)*$H$4+2.5)/5)*5>$H$9,$H$9, INT((ROUND((AVERAGE(E42:OFFSET(E42,1-$H$3,0))-AVERAGE(F42:OFFSET(F42,1-$H$3,0)))*$H$2/100/10,0)*$H$4+2.5)/5)*5)+$H$6 -> 90 | S42: 5 | T42: 5345 | U42: 1901-11-21 | V42: 5340 | W42: 1901-11-22 | X42: 598 | Y42: 2015-06-01 | Z42: 120 | AA42: =SUMIF(OFFSET($J$1,X42-1,0):OFFSET($J$1,X43-2,0),">0") -> 975 | AB42: =SUMIF(OFFSET($J$1,X42-1,0):OFFSET($J$1,X43-2,0),"<=0") -> -855 | AC42: =COUNTIF(OFFSET($J$1,X42-1,0):OFFSET($J$1,X43-2,0),">0") -> 13 | AD42: =COUNTIF(OFFSET($J$1,X42-1,0):OFFSET($J$1,X43-2,0),"<0") -> 9 | AE42: 59.09090909 | AF42: 1.140350877 | AG42: 0.7894736842 | AH42: 75 | AI42: -95 | AJ42: 2210 | AK42: 2017-11-30 | AL42: 日中 | AM42: 22635 | AN42: 22765 | AO42: 22510 | AP42: 22765 | AQ42: 668519 | AR42: 15123997619
A43: 2013-02-22 | D43: 11235 | E43: 11410 | F43: 11165 | G43: 11410 | H43: =IF(INT((ROUND((AVERAGE(E43:OFFSET(E43,1-$H$3,0))-AVERAGE(F43:OFFSET(F43,1-$H$3,0)))*$H$2/100/10,0)*$H$4+2.5)/5)*5>$H$9,$H$9, INT((ROUND((AVERAGE(E43:OFFSET(E43,1-$H$3,0))-AVERAGE(F43:OFFSET(F43,1-$H$3,0)))*$H$2/100/10,0)*$H$4+2.5)/5)*5)+$H$6 -> 90 | S43: 5 | T43: 5185 | U43: 1901-11-21 | V43: 5180 | W43: 1901-11-22 | X43: 620 | Y43: 2015-07-01 | Z43: -240 | AA43: =SUMIF(OFFSET($J$1,X43-1,0):OFFSET($J$1,X44-2,0),">0") -> 935 | AB43: =SUMIF(OFFSET($J$1,X43-1,0):OFFSET($J$1,X44-2,0),"<=0") -> -1175 | AC43: =COUNTIF(OFFSET($J$1,X43-1,0):OFFSET($J$1,X44-2,0),">0") -> 9 | AD43: =COUNTIF(OFFSET($J$1,X43-1,0):OFFSET($J$1,X44-2,0),"<0") -> 12 | AE43: 42.85714286 | AF43: 0.7957446809 | AG43: 1.060992908 | AH43: 103 | AI43: -98 | AJ43: 2350 | AK43: 2017-11-29 | AL43: 夜間 | AM43: 22620 | AN43: 22800 | AO43: 22555 | AP43: 22615 | AQ43: 610615 | AR43: 13850268210
A44: 2013-02-25 | D44: 11610 | E44: 11670 | F44: 11555 | G44: 11660 | H44: =IF(INT((ROUND((AVERAGE(E44:OFFSET(E44,1-$H$3,0))-AVERAGE(F44:OFFSET(F44,1-$H$3,0)))*$H$2/100/10,0)*$H$4+2.5)/5)*5>$H$9,$H$9, INT((ROUND((AVERAGE(E44:OFFSET(E44,1-$H$3,0))-AVERAGE(F44:OFFSET(F44,1-$H$3,0)))*$H$2/100/10,0)*$H$4+2.5)/5)*5)+$H$6 -> 90 | S44: 5 | T44: 4415 | U44: 1901-11-21 | V44: 4410 | W44: 1901-11-22 | X44: 642 | Y44: 2015-08-03 | Z44: 1175 | AA44: =SUMIF(OFFSET($J$1,X44-1,0):OFFSET($J$1,X45-2,0),">0") -> 2235 | AB44: =SUMIF(OFFSET($J$1,X44-1,0):OFFSET($J$1,X45-2,0),"<=0") -> -1060 | AC44: =COUNTIF(OFFSET($J$1,X44-1,0):OFFSET($J$1,X45-2,0),">0") -> 12 | AD44: =COUNTIF(OFFSET($J$1,X44-1,0):OFFSET($J$1,X45-2,0),"<0") -> 9 | AE44: 57.14285714 | AF44: 2.108490566 | AG44: 1.581367925 | AH44: 186 | AI44: -118 | AJ44: 2955 | AK44: 2017-11-29 | AL44: 日中 | AM44: 22620 | AN44: 22670 | AO44: 22510 | AP44: 22620 | AQ44: 530383 | AR44: 11979455660
A45: 2013-02-26 | D45: 11355 | E45: 11525 | F45: 11345 | G45: 11410 | H45: =IF(INT((ROUND((AVERAGE(E45:OFFSET(E45,1-$H$3,0))-AVERAGE(F45:OFFSET(F45,1-$H$3,0)))*$H$2/100/10,0)*$H$4+2.5)/5)*5>$H$9,$H$9, INT((ROUND((AVERAGE(E45:OFFSET(E45,1-$H$3,0))-AVERAGE(F45:OFFSET(F45,1-$H$3,0)))*$H$2/100/10,0)*$H$4+2.5)/5)*5)+$H$6 -> 90 | S45: 5 | T45: 4415 | U45: 1901-11-21 | V45: 4410 | W45: 1901-11-22 | X45: 663 | Y45: 2015-09-01 | Z45: 1535 | AA45: =SUMIF(OFFSET($J$1,X45-1,0):OFFSET($J$1,X46-2,0),">0") -> 2830 | AB45: =SUMIF(OFFSET($J$1,X45-1,0):OFFSET($J$1,X46-2,0),"<=0") -> -1295 | AC45: =COUNTIF(OFFSET($J$1,X45-1,0):OFFSET($J$1,X46-2,0),">0") -> 11 | AD45: =COUNTIF(OFFSET($J$1,X45-1,0):OFFSET($J$1,X46-2,0),"<0") -> 8 | AE45: 57.89473684 | AF45: 2.185328185 | AG45: 1.589329589 | AH45: 257 | AI45: -162 | AJ45: 4585 | AK45: 2017-11-28 | AL45: 夜間 | AM45: 22505 | AN45: 22650 | AO45: 22495 | AP45: 22620 | AQ45: 366702 | AR45: 8267902941
A46: 2013-02-27 | D46: 11425 | E46: 11430 | F46: 11240 | G46: 11255 | H46: =IF(INT((ROUND((AVERAGE(E46:OFFSET(E46,1-$H$3,0))-AVERAGE(F46:OFFSET(F46,1-$H$3,0)))*$H$2/100/10,0)*$H$4+2.5)/5)*5>$H$9,$H$9, INT((ROUND((AVERAGE(E46:OFFSET(E46,1-$H$3,0))-AVERAGE(F46:OFFSET(F46,1-$H$3,0)))*$H$2/100/10,0)*$H$4+2.5)/5)*5)+$H$6 -> 100 | X46: 682 | Y46: 2015-10-01 | Z46: 125 | AA46: =SUMIF(OFFSET($J$1,X46-1,0):OFFSET($J$1,X47-2,0),">0") -> 1590 | AB46: =SUMIF(OFFSET($J$1,X46-1,0):OFFSET($J$1,X47-2,0),"<=0") -> -1465 | AC46: =COUNTIF(OFFSET($J$1,X46-1,0):OFFSET($J$1,X47-2,0),">0") -> 9 | AD46: =COUNTIF(OFFSET($J$1,X46-1,0):OFFSET($J$1,X47-2,0),"<0") -> 12 | AE46: 42.85714286 | AF46: 1.085324232 | AG46: 1.447098976 | AH46: 176 | AI46: -123 | AJ46: 3975 | AK46: 2017-11-28 | AL46: 日中 | AM46: 22460 | AN46: 22595 | AO46: 22370 | AP46: 22495 | AQ46: 577450 | AR46: 12973577700
A47: 2013-02-28 | D47: 11420 | E47: 11575 | F47: 11415 | G47: 11505 | H47: =IF(INT((ROUND((AVERAGE(E47:OFFSET(E47,1-$H$3,0))-AVERAGE(F47:OFFSET(F47,1-$H$3,0)))*$H$2/100/10,0)*$H$4+2.5)/5)*5>$H$9,$H$9, INT((ROUND((AVERAGE(E47:OFFSET(E47,1-$H$3,0))-AVERAGE(F47:OFFSET(F47,1-$H$3,0)))*$H$2/100/10,0)*$H$4+2.5)/5)*5)+$H$6 -> 100 | X47: 703 | Y47: 2015-11-02 | Z47: -930 | AA47: =SUMIF(OFFSET($J$1,X47-1,0):OFFSET($J$1,X48-2,0),">0") -> 355 | AB47: =SUMIF(OFFSET($J$1,X47-1,0):OFFSET($J$1,X48-2,0),"<=0") -> -1285 | AC47: =COUNTIF(OFFSET($J$1,X47-1,0):OFFSET($J$1,X48-2,0),">0") -> 5 | AD47: =COUNTIF(OFFSET($J$1,X47-1,0):OFFSET($J$1,X48-2,0),"<0") -> 13 | AE47: 27.77777778 | AF47: 0.2762645914 | AG47: 0.7182879377 | AH47: 71 | AI47: -99 | AJ47: =SUM(Z35:Z47)-$Z$36 -> 1920 | AK47: 2017-11-27 | AL47: 夜間 | AM47: 22515 | AN47: 22585 | AO47: 22420 | AP47: 22480 | AQ47: 368251 | AR47: 8289257847
A48: 2013-03-01 | D48: 11480 | E48: 11650 | F48: 11470 | G48: 11580 | H48: =IF(INT((ROUND((AVERAGE(E48:OFFSET(E48,1-$H$3,0))-AVERAGE(F48:OFFSET(F48,1-$H$3,0)))*$H$2/100/10,0)*$H$4+2.5)/5)*5>$H$9,$H$9, INT((ROUND((AVERAGE(E48:OFFSET(E48,1-$H$3,0))-AVERAGE(F48:OFFSET(F48,1-$H$3,0)))*$H$2/100/10,0)*$H$4+2.5)/5)*5)+$H$6 -> 110 | X48: 722 | Y48: 2015-12-01 | Z48: =SUM(INDIRECT("データ!J"&X48&":j"&X50-1)) -> 620 | AA48: =SUMIF(OFFSET($J$1,X48-1,0):OFFSET($J$1,X50-2,0),">0") -> 1535 | AB48: =SUMIF(OFFSET($J$1,X48-1,0):OFFSET($J$1,X50-2,0),"<=0") -> -915 | AC48: =COUNTIF(OFFSET($J$1,X48-1,0):OFFSET($J$1,X50-2,0),">0") -> 12 | AD48: =COUNTIF(OFFSET($J$1,X48-1,0):OFFSET($J$1,X50-2,0),"<0") -> 9 | AE48: 57.14285714 | AF48: 1.677595628 | AG48: 1.258196721 | AH48: 127 | AI48: -102 | AJ48: 2630 | AK48: 2017-11-27 | AL48: 日中 | AM48: 22685 | AN48: 22690 | AO48: 22420 | AP48: 22500 | AQ48: 560457 | AR48: 12621943000
A49: 2013-03-04 | D49: 11705 | E49: 11770 | F49: 11630 | G49: 11650 | H49: =IF(INT((ROUND((AVERAGE(E49:OFFSET(E49,1-$H$3,0))-AVERAGE(F49:OFFSET(F49,1-$H$3,0)))*$H$2/100/10,0)*$H$4+2.5)/5)*5>$H$9,$H$9, INT((ROUND((AVERAGE(E49:OFFSET(E49,1-$H$3,0))-AVERAGE(F49:OFFSET(F49,1-$H$3,0)))*$H$2/100/10,0)*$H$4+2.5)/5)*5)+$H$6 -> 110 | Y49: ,2015 | Z49: =SUM(Z37:Z48) -> 2630 | AA49: =SUM(AA37:AA48) -> 15630 | AB49: =SUM(AB37:AB48) -> -13000 | AC49: =SUM(AC37:AC48) -> 121 | AD49: =SUM(AD37:AD48) -> 120 | AE49: 50.20746888 | AF49: 1.202307692 | AG49: 1.192371265 | AH49: 129 | AI49: -109 | AJ49: =SUM(Z37:Z48) -> 2630 | AK49: 2017-11-24 | AL49: 夜間 | AM49: 22580 | AN49: 22660 | AO49: 22520 | AP49: 22640 | AQ49: 253463 | AR49: 5728834310
A50: 2013-03-05 | D50: 11740 | E50: 11785 | F50: 11665 | G50: 11690 | H50: =IF(INT((ROUND((AVERAGE(E50:OFFSET(E50,1-$H$3,0))-AVERAGE(F50:OFFSET(F50,1-$H$3,0)))*$H$2/100/10,0)*$H$4+2.5)/5)*5>$H$9,$H$9, INT((ROUND((AVERAGE(E50:OFFSET(E50,1-$H$3,0))-AVERAGE(F50:OFFSET(F50,1-$H$3,0)))*$H$2/100/10,0)*$H$4+2.5)/5)*5)+$H$6 -> 100 | X50: 743 | Y50: 2016-01-04 | Z50: =SUM(INDIRECT("データ!J"&X50&":j"&X51-1)) -> 1970 | AA50: =SUMIF(OFFSET($J$1,X50-1,0):OFFSET($J$1,X51-2,0),">0") -> 2995 | AB50: =SUMIF(OFFSET($J$1,X50-1,0):OFFSET($J$1,X51-2,0),"<=0") -> -1025 | AC50: =COUNTIF(OFFSET($J$1,X50-1,0):OFFSET($J$1,X51-2,0),">0") -> 11 | AD50: =COUNTIF(OFFSET($J$1,X50-1,0):OFFSET($J$1,X51-2,0),"<0") -> 8 | AE50: 57.89473684 | AF50: 2.92195122 | AG50: 2.125055432 | AH50: 272 | AI50: -129 | AJ50: =SUM(Z38:Z50)-$Z$49 -> 3695 | AK50: 2017-11-24 | AL50: 日中 | AM50: 22400 | AN50: 22580 | AO50: 22380 | AP50: 22580 | AQ50: 457228 | AR50: 10278054163
A51: 2013-03-06 | D51: 11830 | E51: 11935 | F51: 11805 | G51: 11935 | H51: =IF(INT((ROUND((AVERAGE(E51:OFFSET(E51,1-$H$3,0))-AVERAGE(F51:OFFSET(F51,1-$H$3,0)))*$H$2/100/10,0)*$H$4+2.5)/5)*5>$H$9,$H$9, INT((ROUND((AVERAGE(E51:OFFSET(E51,1-$H$3,0))-AVERAGE(F51:OFFSET(F51,1-$H$3,0)))*$H$2/100/10,0)*$H$4+2.5)/5)*5)+$H$6 -> 100 | X51: 762 | Y51: 2016-02-01 | Z51: =SUM(INDIRECT("データ!J"&X51&":j"&X52-1)) -> 315 | AA51: =SUMIF(OFFSET($J$1,X51-1,0):OFFSET($J$1,X52-2,0),">0") -> 1855 | AB51: =SUMIF(OFFSET($J$1,X51-1,0):OFFSET($J$1,X52-2,0),"<=0") -> -1540 | AC51: =COUNTIF(OFFSET($J$1,X51-1,0):OFFSET($J$1,X52-2,0),">0") -> 12 | AD51: =COUNTIF(OFFSET($J$1,X51-1,0):OFFSET($J$1,X52-2,0),"<0") -> 8 | AE51: 60 | AF51: 1.204545455 | AG51: 0.803030303 | AH51: 154 | AI51: -193 | AJ51: =SUM(Z39:Z51)-$Z$49 -> 3385 | AK51: 2017-11-22 | AL51: 夜間 | AM51: 22595 | AN51: 22650 | AO51: 22345 | AP51: 22440 | AQ51: 434939 | AR51: 9798350895
A52: 2013-03-07 | D52: 12035 | E52: 12070 | F52: 11945 | G52: 11975 | H52: =IF(INT((ROUND((AVERAGE(E52:OFFSET(E52,1-$H$3,0))-AVERAGE(F52:OFFSET(F52,1-$H$3,0)))*$H$2/100/10,0)*$H$4+2.5)/5)*5>$H$9,$H$9, INT((ROUND((AVERAGE(E52:OFFSET(E52,1-$H$3,0))-AVERAGE(F52:OFFSET(F52,1-$H$3,0)))*$H$2/100/10,0)*$H$4+2.5)/5)*5)+$H$6 -> 100 | X52: 782 | Y52: 2016-03-01 | Z52: -510 | AA52: =SUMIF(OFFSET($J$1,X52-1,0):OFFSET($J$1,X53-2,0),">0") -> 925 | AB52: =SUMIF(OFFSET($J$1,X52-1,0):OFFSET($J$1,X53-2,0),"<=0") -> -1435 | AC52: =COUNTIF(OFFSET($J$1,X52-1,0):OFFSET($J$1,X53-2,0),">0") -> 10 | AD52: =COUNTIF(OFFSET($J$1,X52-1,0):OFFSET($J$1,X53-2,0),"<0") -> 12 | AE52: 45.45454545 | AF52: 0.6445993031 | AG52: 0.7735191638 | AH52: 92 | AI52: -120 | AJ52: 3200 | AK52: 2017-11-22 | AL52: 日中 | AM52: 22675 | AN52: 22690 | AO52: 22515 | AP52: 22585 | AQ52: 501730 | AR52: 11337451541
A53: 2013-03-08 | D53: 12035 | E53: 12225 | F53: 12010 | G53: 12225 | H53: =IF(INT((ROUND((AVERAGE(E53:OFFSET(E53,1-$H$3,0))-AVERAGE(F53:OFFSET(F53,1-$H$3,0)))*$H$2/100/10,0)*$H$4+2.5)/5)*5>$H$9,$H$9, INT((ROUND((AVERAGE(E53:OFFSET(E53,1-$H$3,0))-AVERAGE(F53:OFFSET(F53,1-$H$3,0)))*$H$2/100/10,0)*$H$4+2.5)/5)*5)+$H$6 -> 100 | X53: 804 | Y53: 2016-04-01 | Z53: -1395 | AA53: =SUMIF(OFFSET($J$1,X53-1,0):OFFSET($J$1,X54-2,0),">0") -> 775 | AB53: =SUMIF(OFFSET($J$1,X53-1,0):OFFSET($J$1,X54-2,0),"<=0") -> -2170 | AC53: =COUNTIF(OFFSET($J$1,X53-1,0):OFFSET($J$1,X54-2,0),">0") -> 6 | AD53: =COUNTIF(OFFSET($J$1,X53-1,0):OFFSET($J$1,X54-2,0),"<0") -> 14 | AE53: 30 | AF53: 0.3571428571 | AG53: 0.8333333333 | AH53: 129 | AI53: -155 | AJ53: 2270 | AK53: 2017-11-21 | AL53: 夜間 | AM53: 22440 | AN53: 22665 | AO53: 22435 | AP53: 22650 | AQ53: 395452 | AR53: 8921196000
A54: 2013-03-11 | D54: 12290 | E54: 12345 | F54: 12230 | G54: 12290 | H54: =IF(INT((ROUND((AVERAGE(E54:OFFSET(E54,1-$H$3,0))-AVERAGE(F54:OFFSET(F54,1-$H$3,0)))*$H$2/100/10,0)*$H$4+2.5)/5)*5>$H$9,$H$9, INT((ROUND((AVERAGE(E54:OFFSET(E54,1-$H$3,0))-AVERAGE(F54:OFFSET(F54,1-$H$3,0)))*$H$2/100/10,0)*$H$4+2.5)/5)*5)+$H$6 -> 100 | X54: 824 | Y54: 2016-05-02 | Z54: 1285 | AA54: =SUMIF(OFFSET($J$1,X54-1,0):OFFSET($J$1,X55-2,0),">0") -> 1870 | AB54: =SUMIF(OFFSET($J$1,X54-1,0):OFFSET($J$1,X55-2,0),"<=0") -> -585 | AC54: =COUNTIF(OFFSET($J$1,X54-1,0):OFFSET($J$1,X55-2,0),">0") -> 12 | AD54: =COUNTIF(OFFSET($J$1,X54-1,0):OFFSET($J$1,X55-2,0),"<0") -> 7 | AE54: 63.15789474 | AF54: 3.196581197 | AG54: 1.864672365 | AH54: 155 | AI54: -84 | AJ54: 4070 | AK54: 2017-11-21 | AL54: 日中 | AM54: 22485 | AN54: 22570 | AO54: 22405 | AP54: 22450 | AQ54: 477813 | AR54: 10743191259
A55: 2013-03-12 | D55: 12375 | E55: 12395 | F55: 12250 | G55: 12255 | H55: =IF(INT((ROUND((AVERAGE(E55:OFFSET(E55,1-$H$3,0))-AVERAGE(F55:OFFSET(F55,1-$H$3,0)))*$H$2/100/10,0)*$H$4+2.5)/5)*5>$H$9,$H$9, INT((ROUND((AVERAGE(E55:OFFSET(E55,1-$H$3,0))-AVERAGE(F55:OFFSET(F55,1-$H$3,0)))*$H$2/100/10,0)*$H$4+2.5)/5)*5)+$H$6 -> 90 | X55: 843 | Y55: 2016-06-01 | Z55: 1625 | AA55: =SUMIF(OFFSET($J$1,X55-1,0):OFFSET($J$1,X56-2,0),">0") -> 3085 | AB55: =SUMIF(OFFSET($J$1,X55-1,0):OFFSET($J$1,X56-2,0),"<=0") -> -1460 | AC55: =COUNTIF(OFFSET($J$1,X55-1,0):OFFSET($J$1,X56-2,0),">0") -> 11 | AD55: =COUNTIF(OFFSET($J$1,X55-1,0):OFFSET($J$1,X56-2,0),"<0") -> 11 | AE55: 50 | AF55: 2.113013699 | AG55: 2.113013699 | AH55: 280 | AI55: -133 | AJ55: 5575 | AK55: 2017-11-20 | AL55: 夜間 | AM55: 22215 | AN55: 22510 | AO55: 22165 | AP55: 22480 | AQ55: 464290 | AR55: 10363704175
A56: 2013-03-13 | D56: 12190 | E56: 12275 | F56: 12160 | G56: 12195 | H56: =IF(INT((ROUND((AVERAGE(E56:OFFSET(E56,1-$H$3,0))-AVERAGE(F56:OFFSET(F56,1-$H$3,0)))*$H$2/100/10,0)*$H$4+2.5)/5)*5>$H$9,$H$9, INT((ROUND((AVERAGE(E56:OFFSET(E56,1-$H$3,0))-AVERAGE(F56:OFFSET(F56,1-$H$3,0)))*$H$2/100/10,0)*$H$4+2.5)/5)*5)+$H$6 -> 90 | X56: 865 | Y56: 2016-07-01 | Z56: 435 | AA56: =SUMIF(OFFSET($J$1,X56-1,0):OFFSET($J$1,X57-2,0),">0") -> 1435 | AB56: =SUMIF(OFFSET($J$1,X56-1,0):OFFSET($J$1,X57-2,0),"<=0") -> -1000 | AC56: =COUNTIF(OFFSET($J$1,X56-1,0):OFFSET($J$1,X57-2,0),">0") -> 11 | AD56: =COUNTIF(OFFSET($J$1,X56-1,0):OFFSET($J$1,X57-2,0),"<0") -> 9 | AE56: 55 | AF56: 1.435 | AG56: 1.174090909 | AH56: 130 | AI56: -112 | AJ56: 6250 | AK56: 2017-11-20 | AL56: 日中 | AM56: 22245 | AN56: 22425 | AO56: 22215 | AP56: 22240 | AQ56: 520598 | AR56: 11611338930
A57: 2013-03-14 | D57: 12275 | E57: 12330 | F57: 12180 | G57: 12325 | H57: =IF(INT((ROUND((AVERAGE(E57:OFFSET(E57,1-$H$3,0))-AVERAGE(F57:OFFSET(F57,1-$H$3,0)))*$H$2/100/10,0)*$H$4+2.5)/5)*5>$H$9,$H$9, INT((ROUND((AVERAGE(E57:OFFSET(E57,1-$H$3,0))-AVERAGE(F57:OFFSET(F57,1-$H$3,0)))*$H$2/100/10,0)*$H$4+2.5)/5)*5)+$H$6 -> 90 | X57: 885 | Y57: 2016-08-01 | Z57: 360 | AA57: =SUMIF(OFFSET($J$1,X57-1,0):OFFSET($J$1,X58-2,0),">0") -> 1060 | AB57: =SUMIF(OFFSET($J$1,X57-1,0):OFFSET($J$1,X58-2,0),"<=0") -> -700 | AC57: =COUNTIF(OFFSET($J$1,X57-1,0):OFFSET($J$1,X58-2,0),">0") -> 14 | AD57: =COUNTIF(OFFSET($J$1,X57-1,0):OFFSET($J$1,X58-2,0),"<0") -> 8 | AE57: 63.63636364 | AF57: 1.514285714 | AG57: 0.8653061224 | AH57: 75 | AI57: -88 | AJ57: 5435 | AK57: 2017-11-17 | AL57: 夜間 | AM57: 22490 | AN57: 22495 | AO57: 22275 | AP57: 22310 | AQ57: 413645 | AR57: 9266867082
A58: 2013-03-15 | D58: 12370 | E58: 12495 | F58: 12365 | G58: 12485 | H58: =IF(INT((ROUND((AVERAGE(E58:OFFSET(E58,1-$H$3,0))-AVERAGE(F58:OFFSET(F58,1-$H$3,0)))*$H$2/100/10,0)*$H$4+2.5)/5)*5>$H$9,$H$9, INT((ROUND((AVERAGE(E58:OFFSET(E58,1-$H$3,0))-AVERAGE(F58:OFFSET(F58,1-$H$3,0)))*$H$2/100/10,0)*$H$4+2.5)/5)*5)+$H$6 -> 90 | X58: 907 | Y58: 2016-09-01 | Z58: 250 | AA58: =SUMIF(OFFSET($J$1,X58-1,0):OFFSET($J$1,X59-2,0),">0") -> 1035 | AB58: =SUMIF(OFFSET($J$1,X58-1,0):OFFSET($J$1,X59-2,0),"<=0") -> -785 | AC58: =COUNTIF(OFFSET($J$1,X58-1,0):OFFSET($J$1,X59-2,0),">0") -> 10 | AD58: =COUNTIF(OFFSET($J$1,X58-1,0):OFFSET($J$1,X59-2,0),"<0") -> 9 | AE58: 52.63157895 | AF58: 1.318471338 | AG58: 1.186624204 | AH58: 103 | AI58: -88 | AJ58: 4150 | AK58: 2017-11-17 | AL58: 日中 | AM58: 22590 | AN58: 22770 | AO58: 22315 | AP58: 22450 | AQ58: 1111917 | AR58: 25053325613
A59: 2013-03-18 | D59: 12265 | E59: 12310 | F59: 12145 | G59: 12175 | H59: =IF(INT((ROUND((AVERAGE(E59:OFFSET(E59,1-$H$3,0))-AVERAGE(F59:OFFSET(F59,1-$H$3,0)))*$H$2/100/10,0)*$H$4+2.5)/5)*5>$H$9,$H$9, INT((ROUND((AVERAGE(E59:OFFSET(E59,1-$H$3,0))-AVERAGE(F59:OFFSET(F59,1-$H$3,0)))*$H$2/100/10,0)*$H$4+2.5)/5)*5)+$H$6 -> 100 | X59: 927 | Y59: 2016-10-03 | Z59: 30 | AA59: =SUMIF(OFFSET($J$1,X59-1,0):OFFSET($J$1,X60-2,0),">0") -> 575 | AB59: =SUMIF(OFFSET($J$1,X59-1,0):OFFSET($J$1,X60-2,0),"<=0") -> -545 | AC59: =COUNTIF(OFFSET($J$1,X59-1,0):OFFSET($J$1,X60-2,0),">0") -> 9 | AD59: =COUNTIF(OFFSET($J$1,X59-1,0):OFFSET($J$1,X60-2,0),"<0") -> 10 | AE59: 47.36842105 | AF59: 1.055045872 | AG59: 1.172273191 | AH59: =IF(AC59<>0,INT(AA59/AC59),"") -> 63 | AI59: =IF(AD59<>0,INT(AB59/AD59),"") -> -55 | AJ59: 4055 | AK59: 2017-11-16 | AL59: 夜間 | AM59: 22475 | AN59: 22620 | AO59: 22380 | AP59: 22590 | AQ59: 530429 | AR59: 11924182314
A60: 2013-03-19 | D60: 12365 | E60: 12430 | F60: 12345 | G60: 12425 | H60: =IF(INT((ROUND((AVERAGE(E60:OFFSET(E60,1-$H$3,0))-AVERAGE(F60:OFFSET(F60,1-$H$3,0)))*$H$2/100/10,0)*$H$4+2.5)/5)*5>$H$9,$H$9, INT((ROUND((AVERAGE(E60:OFFSET(E60,1-$H$3,0))-AVERAGE(F60:OFFSET(F60,1-$H$3,0)))*$H$2/100/10,0)*$H$4+2.5)/5)*5)+$H$6 -> 90 | X60: 947 | Y60: 2016-11-01 | Z60: 1240 | AA60: =SUMIF(OFFSET($J$1,X60-1,0):OFFSET($J$1,X61-2,0),">0") -> 1825 | AB60: =SUMIF(OFFSET($J$1,X60-1,0):OFFSET($J$1,X61-2,0),"<=0") -> -585 | AC60: =COUNTIF(OFFSET($J$1,X60-1,0):OFFSET($J$1,X61-2,0),">0") -> 10 | AD60: =COUNTIF(OFFSET($J$1,X60-1,0):OFFSET($J$1,X61-2,0),"<0") -> 10 | AE60: 50 | AF60: 3.11965812 | AG60: 3.11965812 | AH60: =IF(AC60<>0,INT(AA60/AC60),"") -> 182 | AI60: =IF(AD60<>0,INT(AB60/AD60),"") -> -59 | AJ60: 6225 | AK60: 2017-11-16 | AL60: 日中 | AM60: 22025 | AN60: 22430 | AO60: 21985 | AP60: 22410 | AQ60: 805938 | AR60: 17908618184
A61: 2013-03-21 | D61: 12525 | E61: 12580 | F61: 12515 | G61: 12570 | H61: =IF(INT((ROUND((AVERAGE(E61:OFFSET(E61,1-$H$3,0))-AVERAGE(F61:OFFSET(F61,1-$H$3,0)))*$H$2/100/10,0)*$H$4+2.5)/5)*5>$H$9,$H$9, INT((ROUND((AVERAGE(E61:OFFSET(E61,1-$H$3,0))-AVERAGE(F61:OFFSET(F61,1-$H$3,0)))*$H$2/100/10,0)*$H$4+2.5)/5)*5)+$H$6 -> 75 | X61: 967 | Y61: 2016-12-01 | Z61: =SUM(INDIRECT("データ!J"&X61&":j"&X63-1)) -> 140 | AA61: =SUMIF(OFFSET($J$1,X61-1,0):OFFSET($J$1,X63-2,0),">0") -> 1430 | AB61: =SUMIF(OFFSET($J$1,X61-1,0):OFFSET($J$1,X63-2,0),"<=0") -> -1290 | AC61: =COUNTIF(OFFSET($J$1,X61-1,0):OFFSET($J$1,X63-2,0),">0") -> 17 | AD61: =COUNTIF(OFFSET($J$1,X61-1,0):OFFSET($J$1,X63-2,0),"<0") -> 15 | AE61: 53.125 | AF61: 1.108527132 | AG61: 0.9781121751 | AH61: 84 | AI61: -86 | AJ61: 5745 | AK61: 2017-11-15 | AL61: 夜間 | AM61: 21985 | AN61: 22160 | AO61: 21835 | AP61: 22100 | AQ61: 863821 | AR61: 18968940933
A62: 2013-03-22 | D62: 12425 | E62: 12455 | F62: 12270 | G62: 12315 | H62: =IF(INT((ROUND((AVERAGE(E62:OFFSET(E62,1-$H$3,0))-AVERAGE(F62:OFFSET(F62,1-$H$3,0)))*$H$2/100/10,0)*$H$4+2.5)/5)*5>$H$9,$H$9, INT((ROUND((AVERAGE(E62:OFFSET(E62,1-$H$3,0))-AVERAGE(F62:OFFSET(F62,1-$H$3,0)))*$H$2/100/10,0)*$H$4+2.5)/5)*5)+$H$6 -> 75 | Y62: ,2016 | Z62: =SUM(Z50:Z61) -> 5745 | AA62: =SUM(AA50:AA61) -> 18865 | AB62: =SUM(AB50:AB61) -> -13120 | AC62: =SUM(AC50:AC61) -> 133 | AD62: =SUM(AD50:AD61) -> 121 | AE62: 52.36220472 | AF62: 1.437881098 | AG62: 1.308147465 | AH62: =INT(AA62/AC62) -> 141 | AI62: -109 | AJ62: =SUM(Z50:Z61) -> 5745 | AK62: 2017-11-15 | AL62: 日中 | AM62: 22275 | AN62: 22320 | AO62: 22010 | AP62: 22040 | AQ62: 916198 | AR62: 20292218745
A63: 2013-03-25 | D63: 12450 | E63: 12535 | F63: 12410 | G63: 12510 | H63: =IF(INT((ROUND((AVERAGE(E63:OFFSET(E63,1-$H$3,0))-AVERAGE(F63:OFFSET(F63,1-$H$3,0)))*$H$2/100/10,0)*$H$4+2.5)/5)*5>$H$9,$H$9, INT((ROUND((AVERAGE(E63:OFFSET(E63,1-$H$3,0))-AVERAGE(F63:OFFSET(F63,1-$H$3,0)))*$H$2/100/10,0)*$H$4+2.5)/5)*5)+$H$6 -> 90 | X63: 1000 | AK63: 2017-11-14 | AL63: 夜間 | AM63: 22440 | AN63: 22490 | AO63: 22260 | AP63: 22315 | AQ63: 536141 | AR63: 11999298919
A64: 2013-03-26 | D64: 12395 | E64: 12480 | F64: 12360 | G64: 12375 | H64: =IF(INT((ROUND((AVERAGE(E64:OFFSET(E64,1-$H$3,0))-AVERAGE(F64:OFFSET(F64,1-$H$3,0)))*$H$2/100/10,0)*$H$4+2.5)/5)*5>$H$9,$H$9, INT((ROUND((AVERAGE(E64:OFFSET(E64,1-$H$3,0))-AVERAGE(F64:OFFSET(F64,1-$H$3,0)))*$H$2/100/10,0)*$H$4+2.5)/5)*5)+$H$6 -> 75 | AK64: 2017-11-14 | AL64: 日中 | AM64: 22410 | AN64: 22545 | AO64: 22325 | AP64: 22430 | AQ64: 617906 | AR64: 13868491774
A65: 2013-03-27 | D65: 12500 | E65: 12530 | F65: 12450 | G65: 12515 | H65: =IF(INT((ROUND((AVERAGE(E65:OFFSET(E65,1-$H$3,0))-AVERAGE(F65:OFFSET(F65,1-$H$3,0)))*$H$2/100/10,0)*$H$4+2.5)/5)*5>$H$9,$H$9, INT((ROUND((AVERAGE(E65:OFFSET(E65,1-$H$3,0))-AVERAGE(F65:OFFSET(F65,1-$H$3,0)))*$H$2/100/10,0)*$H$4+2.5)/5)*5)+$H$6 -> 75 | AK65: 2017-11-13 | AL65: 夜間 | AM65: 22280 | AN65: 22410 | AO65: 22115 | AP65: 22405 | AQ65: 566696 | AR65: 12617771752
A66: 2013-03-28 | D66: 12460 | E66: 12475 | F66: 12285 | G66: 12395 | H66: =IF(INT((ROUND((AVERAGE(E66:OFFSET(E66,1-$H$3,0))-AVERAGE(F66:OFFSET(F66,1-$H$3,0)))*$H$2/100/10,0)*$H$4+2.5)/5)*5>$H$9,$H$9, INT((ROUND((AVERAGE(E66:OFFSET(E66,1-$H$3,0))-AVERAGE(F66:OFFSET(F66,1-$H$3,0)))*$H$2/100/10,0)*$H$4+2.5)/5)*5)+$H$6 -> 75 | AK66: 2017-11-13 | AL66: 日中 | AM66: 22550 | AN66: 22630 | AO66: 22275 | AP66: 22285 | AQ66: 551947 | AR66: 12421418442
A67: 2013-03-29 | D67: 12415 | E67: 12440 | F67: 12330 | G67: 12410 | H67: =IF(INT((ROUND((AVERAGE(E67:OFFSET(E67,1-$H$3,0))-AVERAGE(F67:OFFSET(F67,1-$H$3,0)))*$H$2/100/10,0)*$H$4+2.5)/5)*5>$H$9,$H$9, INT((ROUND((AVERAGE(E67:OFFSET(E67,1-$H$3,0))-AVERAGE(F67:OFFSET(F67,1-$H$3,0)))*$H$2/100/10,0)*$H$4+2.5)/5)*5)+$H$6 -> 75 | AK67: 2017-11-10 | AL67: 夜間 | AM67: 22490 | AN67: 22545 | AO67: 22335 | AP67: 22495 | AQ67: 638723 | AR67: 14333091677
A68: 2013-04-01 | D68: 12395 | E68: 12400 | F68: 12155 | G68: 12180 | H68: =IF(INT((ROUND((AVERAGE(E68:OFFSET(E68,1-$H$3,0))-AVERAGE(F68:OFFSET(F68,1-$H$3,0)))*$H$2/100/10,0)*$H$4+2.5)/5)*5>$H$9,$H$9, INT((ROUND((AVERAGE(E68:OFFSET(E68,1-$H$3,0))-AVERAGE(F68:OFFSET(F68,1-$H$3,0)))*$H$2/100/10,0)*$H$4+2.5)/5)*5)+$H$6 -> 100 | AK68: 2017-11-10 | AL68: 日中 | AM68: 22600 | AN68: 22730 | AO68: 22505 | AP68: 22520 | AQ68: 847190 | AR68: 19165321340
A69: 2013-04-02 | D69: 12050 | E69: 12075 | F69: 11805 | G69: 12015 | H69: =IF(INT((ROUND((AVERAGE(E69:OFFSET(E69,1-$H$3,0))-AVERAGE(F69:OFFSET(F69,1-$H$3,0)))*$H$2/100/10,0)*$H$4+2.5)/5)*5>$H$9,$H$9, INT((ROUND((AVERAGE(E69:OFFSET(E69,1-$H$3,0))-AVERAGE(F69:OFFSET(F69,1-$H$3,0)))*$H$2/100/10,0)*$H$4+2.5)/5)*5)+$H$6 -> 100 | AK69: 2017-11-09 | AL69: 夜間 | AM69: 22890 | AN69: 22945 | AO69: 22320 | AP69: 22580 | AQ69: 1015833 | AR69: 22995894550
A70: 2013-04-03 | D70: 12205 | E70: 12370 | F70: 12150 | G70: 12365 | H70: =IF(INT((ROUND((AVERAGE(E70:OFFSET(E70,1-$H$3,0))-AVERAGE(F70:OFFSET(F70,1-$H$3,0)))*$H$2/100/10,0)*$H$4+2.5)/5)*5>$H$9,$H$9, INT((ROUND((AVERAGE(E70:OFFSET(E70,1-$H$3,0))-AVERAGE(F70:OFFSET(F70,1-$H$3,0)))*$H$2/100/10,0)*$H$4+2.5)/5)*5)+$H$6 -> 110 | AK70: 2017-11-09 | AL70: 日中 | AM70: 22980 | AN70: 23425 | AO70: 22515 | AP70: 22880 | AQ70: 83396 | AR70: 1920659691
A71: 2013-04-04 | D71: 12175 | E71: 12720 | F71: 12080 | G71: 12710 | H71: =IF(INT((ROUND((AVERAGE(E71:OFFSET(E71,1-$H$3,0))-AVERAGE(F71:OFFSET(F71,1-$H$3,0)))*$H$2/100/10,0)*$H$4+2.5)/5)*5>$H$9,$H$9, INT((ROUND((AVERAGE(E71:OFFSET(E71,1-$H$3,0))-AVERAGE(F71:OFFSET(F71,1-$H$3,0)))*$H$2/100/10,0)*$H$4+2.5)/5)*5)+$H$6 -> 165 | AK71: 2017-11-08 | AL71: 夜間 | AM71: 22910 | AN71: 22970 | AO71: 22835 | AP71: 22950 | AQ71: 25613 | AR71: 586862102
A72: 2013-04-05 | D72: 13150 | E72: 13245 | F72: 12800 | G72: 12805 | H72: =IF(INT((ROUND((AVERAGE(E72:OFFSET(E72,1-$H$3,0))-AVERAGE(F72:OFFSET(F72,1-$H$3,0)))*$H$2/100/10,0)*$H$4+2.5)/5)*5>$H$9,$H$9, INT((ROUND((AVERAGE(E72:OFFSET(E72,1-$H$3,0))-AVERAGE(F72:OFFSET(F72,1-$H$3,0)))*$H$2/100/10,0)*$H$4+2.5)/5)*5)+$H$6 -> 200 | AK72: 2017-11-08 | AL72: 日中 | AM72: 22810 | AN72: 22940 | AO72: 22750 | AP72: 22940 | AQ72: 33600 | AR72: 767892535
A73: 2013-04-08 | D73: 13240 | E73: 13263 | F73: 13095 | G73: 13205 | H73: =IF(INT((ROUND((AVERAGE(E73:OFFSET(E73,1-$H$3,0))-AVERAGE(F73:OFFSET(F73,1-$H$3,0)))*$H$2/100/10,0)*$H$4+2.5)/5)*5>$H$9,$H$9, INT((ROUND((AVERAGE(E73:OFFSET(E73,1-$H$3,0))-AVERAGE(F73:OFFSET(F73,1-$H$3,0)))*$H$2/100/10,0)*$H$4+2.5)/5)*5)+$H$6 -> 185 | AK73: 2017-11-07 | AL73: 夜間 | AM73: 22970 | AN73: 22995 | AO73: 22785 | AP73: 22830 | AQ73: 21661 | AR73: 495739585
A74: 2013-04-09 | D74: 13335 | E74: 13350 | F74: 13155 | G74: 13195 | H74: =IF(INT((ROUND((AVERAGE(E74:OFFSET(E74,1-$H$3,0))-AVERAGE(F74:OFFSET(F74,1-$H$3,0)))*$H$2/100/10,0)*$H$4+2.5)/5)*5>$H$9,$H$9, INT((ROUND((AVERAGE(E74:OFFSET(E74,1-$H$3,0))-AVERAGE(F74:OFFSET(F74,1-$H$3,0)))*$H$2/100/10,0)*$H$4+2.5)/5)*5)+$H$6 -> 200 | AK74: 2017-11-07 | AL74: 日中 | AM74: 22550 | AN74: 22985 | AO74: 22520 | AP74: 22985 | AQ74: 41914 | AR74: 954301872
A75: 2013-04-10 | D75: 13190 | E75: 13330 | F75: 13180 | G75: 13295 | H75: =IF(INT((ROUND((AVERAGE(E75:OFFSET(E75,1-$H$3,0))-AVERAGE(F75:OFFSET(F75,1-$H$3,0)))*$H$2/100/10,0)*$H$4+2.5)/5)*5>$H$9,$H$9, INT((ROUND((AVERAGE(E75:OFFSET(E75,1-$H$3,0))-AVERAGE(F75:OFFSET(F75,1-$H$3,0)))*$H$2/100/10,0)*$H$4+2.5)/5)*5)+$H$6 -> 185 | AK75: 2017-11-06 | AL75: 夜間 | AM75: 22600 | AN75: 22625 | AO75: 22515 | AP75: 22570 | AQ75: 14744 | AR75: 332872255
A76: 2013-04-11 | D76: 13435 | E76: 13535 | F76: 13380 | G76: 13485 | H76: =IF(INT((ROUND((AVERAGE(E76:OFFSET(E76,1-$H$3,0))-AVERAGE(F76:OFFSET(F76,1-$H$3,0)))*$H$2/100/10,0)*$H$4+2.5)/5)*5>$H$9,$H$9, INT((ROUND((AVERAGE(E76:OFFSET(E76,1-$H$3,0))-AVERAGE(F76:OFFSET(F76,1-$H$3,0)))*$H$2/100/10,0)*$H$4+2.5)/5)*5)+$H$6 -> 175 | AK76: 2017-11-06 | AL76: 日中 | AM76: 22640 | AN76: 22650 | AO76: 22425 | AP76: 22590 | AQ76: 25373 | AR76: 572444860
A77: 2013-04-12 | D77: 13445 | E77: 13535 | F77: 13400 | G77: 13495 | H77: =IF(INT((ROUND((AVERAGE(E77:OFFSET(E77,1-$H$3,0))-AVERAGE(F77:OFFSET(F77,1-$H$3,0)))*$H$2/100/10,0)*$H$4+2.5)/5)*5>$H$9,$H$9, INT((ROUND((AVERAGE(E77:OFFSET(E77,1-$H$3,0))-AVERAGE(F77:OFFSET(F77,1-$H$3,0)))*$H$2/100/10,0)*$H$4+2.5)/5)*5)+$H$6 -> 175 | AK77: 2017-11-02 | AL77: 夜間 | AM77: 22510 | AN77: 22570 | AO77: 22360 | AP77: 22545 | AQ77: 25277 | AR77: 568370955
A78: 2013-04-15 | D78: 13340 | E78: 13410 | F78: 13260 | G78: 13340 | H78: =IF(INT((ROUND((AVERAGE(E78:OFFSET(E78,1-$H$3,0))-AVERAGE(F78:OFFSET(F78,1-$H$3,0)))*$H$2/100/10,0)*$H$4+2.5)/5)*5>$H$9,$H$9, INT((ROUND((AVERAGE(E78:OFFSET(E78,1-$H$3,0))-AVERAGE(F78:OFFSET(F78,1-$H$3,0)))*$H$2/100/10,0)*$H$4+2.5)/5)*5)+$H$6 -> 130 | AK78: 2017-11-02 | AL78: 日中 | AM78: 22495 | AN78: 22545 | AO78: 22405 | AP78: 22485 | AQ78: 19648 | AR78: 441392365
A79: 2013-04-16 | D79: 12990 | E79: 13325 | F79: 12945 | G79: 13315 | H79: =IF(INT((ROUND((AVERAGE(E79:OFFSET(E79,1-$H$3,0))-AVERAGE(F79:OFFSET(F79,1-$H$3,0)))*$H$2/100/10,0)*$H$4+2.5)/5)*5>$H$9,$H$9, INT((ROUND((AVERAGE(E79:OFFSET(E79,1-$H$3,0))-AVERAGE(F79:OFFSET(F79,1-$H$3,0)))*$H$2/100/10,0)*$H$4+2.5)/5)*5)+$H$6 -> 120 | AK79: 2017-11-01 | AL79: 夜間 | AM79: 22475 | AN79: 22595 | AO79: 22470 | AP79: 22505 | AQ79: 26964 | AR79: 607613140
A80: 2013-04-17 | D80: 13340 | E80: 13410 | F80: 13320 | G80: 13395 | H80: =IF(INT((ROUND((AVERAGE(E80:OFFSET(E80,1-$H$3,0))-AVERAGE(F80:OFFSET(F80,1-$H$3,0)))*$H$2/100/10,0)*$H$4+2.5)/5)*5>$H$9,$H$9, INT((ROUND((AVERAGE(E80:OFFSET(E80,1-$H$3,0))-AVERAGE(F80:OFFSET(F80,1-$H$3,0)))*$H$2/100/10,0)*$H$4+2.5)/5)*5)+$H$6 -> 110 | AK80: 2017-11-01 | AL80: 日中 | AM80: 22195 | AN80: 22460 | AO80: 22180 | AP80: 22430 | AQ80: 33516 | AR80: 747941201
A81: 2013-04-18 | D81: 13270 | E81: 13390 | F81: 13205 | G81: 13270 | H81: =IF(INT((ROUND((AVERAGE(E81:OFFSET(E81,1-$H$3,0))-AVERAGE(F81:OFFSET(F81,1-$H$3,0)))*$H$2/100/10,0)*$H$4+2.5)/5)*5>$H$9,$H$9, INT((ROUND((AVERAGE(E81:OFFSET(E81,1-$H$3,0))-AVERAGE(F81:OFFSET(F81,1-$H$3,0)))*$H$2/100/10,0)*$H$4+2.5)/5)*5)+$H$6 -> 110 | AK81: 2017-10-31 | AL81: 夜間 | AM81: 21980 | AN81: 22220 | AO81: 21975 | AP81: 22205 | AQ81: 15372 | AR81: 339696805
A82: 2013-04-19 | D82: 13300 | E82: 13365 | F82: 13200 | G82: 13365 | H82: =IF(INT((ROUND((AVERAGE(E82:OFFSET(E82,1-$H$3,0))-AVERAGE(F82:OFFSET(F82,1-$H$3,0)))*$H$2/100/10,0)*$H$4+2.5)/5)*5>$H$9,$H$9, INT((ROUND((AVERAGE(E82:OFFSET(E82,1-$H$3,0))-AVERAGE(F82:OFFSET(F82,1-$H$3,0)))*$H$2/100/10,0)*$H$4+2.5)/5)*5)+$H$6 -> 110 | AK82: 2017-10-31 | AL82: 日中 | AM82: 21905 | AN82: 22025 | AO82: 21840 | AP82: 21950 | AQ82: 15580 | AR82: 341779835
A83: 2013-04-22 | D83: 13580 | E83: 13625 | F83: 13545 | G83: 13565 | H83: =IF(INT((ROUND((AVERAGE(E83:OFFSET(E83,1-$H$3,0))-AVERAGE(F83:OFFSET(F83,1-$H$3,0)))*$H$2/100/10,0)*$H$4+2.5)/5)*5>$H$9,$H$9, INT((ROUND((AVERAGE(E83:OFFSET(E83,1-$H$3,0))-AVERAGE(F83:OFFSET(F83,1-$H$3,0)))*$H$2/100/10,0)*$H$4+2.5)/5)*5)+$H$6 -> 110 | AK83: 2017-10-30 | AL83: 夜間 | AM83: 22020 | AN83: 22035 | AO83: 21840 | AP83: 21905 | AQ83: 13527 | AR83: 296886990
A84: 2013-04-23 | D84: 13550 | E84: 13590 | F84: 13505 | G84: 13530 | H84: =IF(INT((ROUND((AVERAGE(E84:OFFSET(E84,1-$H$3,0))-AVERAGE(F84:OFFSET(F84,1-$H$3,0)))*$H$2/100/10,0)*$H$4+2.5)/5)*5>$H$9,$H$9, INT((ROUND((AVERAGE(E84:OFFSET(E84,1-$H$3,0))-AVERAGE(F84:OFFSET(F84,1-$H$3,0)))*$H$2/100/10,0)*$H$4+2.5)/5)*5)+$H$6 -> 100 | AK84: 2017-10-30 | AL84: 日中 | AM84: 22035 | AN84: 22090 | AO84: 21920 | AP84: 22020 | AQ84: 16162 | AR84: 355797640
A85: 2013-04-24 | D85: 13705 | E85: 13845 | F85: 13705 | G85: 13830 | H85: =IF(INT((ROUND((AVERAGE(E85:OFFSET(E85,1-$H$3,0))-AVERAGE(F85:OFFSET(F85,1-$H$3,0)))*$H$2/100/10,0)*$H$4+2.5)/5)*5>$H$9,$H$9, INT((ROUND((AVERAGE(E85:OFFSET(E85,1-$H$3,0))-AVERAGE(F85:OFFSET(F85,1-$H$3,0)))*$H$2/100/10,0)*$H$4+2.5)/5)*5)+$H$6 -> 100 | AK85: 2017-10-27 | AL85: 夜間 | AM85: 22070 | AN85: 22125 | AO85: 22010 | AP85: 22020 | AQ85: 17742 | AR85: 391330420
A86: 2013-04-25 | D86: 13870 | E86: 13985 | F86: 13835 | G86: 13915 | H86: =IF(INT((ROUND((AVERAGE(E86:OFFSET(E86,1-$H$3,0))-AVERAGE(F86:OFFSET(F86,1-$H$3,0)))*$H$2/100/10,0)*$H$4+2.5)/5)*5>$H$9,$H$9, INT((ROUND((AVERAGE(E86:OFFSET(E86,1-$H$3,0))-AVERAGE(F86:OFFSET(F86,1-$H$3,0)))*$H$2/100/10,0)*$H$4+2.5)/5)*5)+$H$6 -> 75 | AK86: 2017-10-27 | AL86: 日中 | AM86: 21865 | AN86: 22045 | AO86: 21815 | AP86: 22045 | AQ86: 22659 | AR86: 497085181
A87: 2013-04-26 | D87: 13980 | E87: 14000 | F87: 13845 | G87: 13950 | H87: =IF(INT((ROUND((AVERAGE(E87:OFFSET(E87,1-$H$3,0))-AVERAGE(F87:OFFSET(F87,1-$H$3,0)))*$H$2/100/10,0)*$H$4+2.5)/5)*5>$H$9,$H$9, INT((ROUND((AVERAGE(E87:OFFSET(E87,1-$H$3,0))-AVERAGE(F87:OFFSET(F87,1-$H$3,0)))*$H$2/100/10,0)*$H$4+2.5)/5)*5)+$H$6 -> 90 | AK87: 2017-10-26 | AL87: 夜間 | AM87: 21780 | AN87: 21860 | AO87: 21740 | AP87: 21860 | AQ87: 11569 | AR87: 252245462
A88: 2013-04-30 | D88: 13835 | E88: 13900 | F88: 13780 | G88: 13870 | H88: =IF(INT((ROUND((AVERAGE(E88:OFFSET(E88,1-$H$3,0))-AVERAGE(F88:OFFSET(F88,1-$H$3,0)))*$H$2/100/10,0)*$H$4+2.5)/5)*5>$H$9,$H$9, INT((ROUND((AVERAGE(E88:OFFSET(E88,1-$H$3,0))-AVERAGE(F88:OFFSET(F88,1-$H$3,0)))*$H$2/100/10,0)*$H$4+2.5)/5)*5)+$H$6 -> 75 | AK88: 2017-10-26 | AL88: 日中 | AM88: 21715 | AN88: 21790 | AO88: 21700 | AP88: 21770 | AQ88: 11756 | AR88: 255699305
A89: 2013-05-01 | D89: 13835 | E89: 13850 | F89: 13795 | G89: 13810 | H89: =IF(INT((ROUND((AVERAGE(E89:OFFSET(E89,1-$H$3,0))-AVERAGE(F89:OFFSET(F89,1-$H$3,0)))*$H$2/100/10,0)*$H$4+2.5)/5)*5>$H$9,$H$9, INT((ROUND((AVERAGE(E89:OFFSET(E89,1-$H$3,0))-AVERAGE(F89:OFFSET(F89,1-$H$3,0)))*$H$2/100/10,0)*$H$4+2.5)/5)*5)+$H$6 -> 75 | AK89: 2017-10-25 | AL89: 夜間 | AM89: 21775 | AN89: 21830 | AO89: 21590 | AP89: 21710 | AQ89: 18164 | AR89: 394570615
A90: 2013-05-02 | D90: 13745 | E90: 13790 | F90: 13640 | G90: 13705 | H90: =IF(INT((ROUND((AVERAGE(E90:OFFSET(E90,1-$H$3,0))-AVERAGE(F90:OFFSET(F90,1-$H$3,0)))*$H$2/100/10,0)*$H$4+2.5)/5)*5>$H$9,$H$9, INT((ROUND((AVERAGE(E90:OFFSET(E90,1-$H$3,0))-AVERAGE(F90:OFFSET(F90,1-$H$3,0)))*$H$2/100/10,0)*$H$4+2.5)/5)*5)+$H$6 -> 75 | AK90: 2017-10-25 | AL90: 日中 | AM90: 21900 | AN90: 21930 | AO90: 21645 | AP90: 21760 | AQ90: 20382 | AR90: 444594722
A91: 2013-05-07 | D91: 14115 | E91: 14210 | F91: 14060 | G91: 14160 | H91: =IF(INT((ROUND((AVERAGE(E91:OFFSET(E91,1-$H$3,0))-AVERAGE(F91:OFFSET(F91,1-$H$3,0)))*$H$2/100/10,0)*$H$4+2.5)/5)*5>$H$9,$H$9, INT((ROUND((AVERAGE(E91:OFFSET(E91,1-$H$3,0))-AVERAGE(F91:OFFSET(F91,1-$H$3,0)))*$H$2/100/10,0)*$H$4+2.5)/5)*5)+$H$6 -> 90 | AK91: 2017-10-24 | AL91: 夜間 | AM91: 21830 | AN91: 21930 | AO91: 21755 | AP91: 21905 | AQ91: 20846 | AR91: 455501640
A92: 2013-05-08 | D92: 14205 | E92: 14440 | F92: 14200 | G92: 14260 | H92: =IF(INT((ROUND((AVERAGE(E92:OFFSET(E92,1-$H$3,0))-AVERAGE(F92:OFFSET(F92,1-$H$3,0)))*$H$2/100/10,0)*$H$4+2.5)/5)*5>$H$9,$H$9, INT((ROUND((AVERAGE(E92:OFFSET(E92,1-$H$3,0))-AVERAGE(F92:OFFSET(F92,1-$H$3,0)))*$H$2/100/10,0)*$H$4+2.5)/5)*5)+$H$6 -> 90 | AK92: 2017-10-24 | AL92: 日中 | AM92: 21665 | AN92: 21810 | AO92: 21640 | AP92: 21810 | AQ92: 17444 | AR92: 378853392
A93: 2013-05-09 | D93: 14360 | E93: 14425 | F93: 14205 | G93: 14225 | H93: =IF(INT((ROUND((AVERAGE(E93:OFFSET(E93,1-$H$3,0))-AVERAGE(F93:OFFSET(F93,1-$H$3,0)))*$H$2/100/10,0)*$H$4+2.5)/5)*5>$H$9,$H$9, INT((ROUND((AVERAGE(E93:OFFSET(E93,1-$H$3,0))-AVERAGE(F93:OFFSET(F93,1-$H$3,0)))*$H$2/100/10,0)*$H$4+2.5)/5)*5)+$H$6 -> 100 | AK93: 2017-10-23 | AL93: 夜間 | AM93: 21730 | AN93: 21835 | AO93: 21620 | AP93: 21635 | AQ93: 28274 | AR93: 615251445
A94: 2013-05-10 | D94: 14550 | E94: 14655 | F94: 14515 | G94: 14655 | H94: =IF(INT((ROUND((AVERAGE(E94:OFFSET(E94,1-$H$3,0))-AVERAGE(F94:OFFSET(F94,1-$H$3,0)))*$H$2/100/10,0)*$H$4+2.5)/5)*5>$H$9,$H$9, INT((ROUND((AVERAGE(E94:OFFSET(E94,1-$H$3,0))-AVERAGE(F94:OFFSET(F94,1-$H$3,0)))*$H$2/100/10,0)*$H$4+2.5)/5)*5)+$H$6 -> 100 | AK94: 2017-10-23 | AL94: 日中 | AM94: 21735 | AN94: 21755 | AO94: 21615 | AP94: 21725 | AQ94: 22804 | AR94: 494662258
A95: 2013-05-13 | D95: 14780 | E95: 14860 | F95: 14735 | G95: 14825 | H95: =IF(INT((ROUND((AVERAGE(E95:OFFSET(E95,1-$H$3,0))-AVERAGE(F95:OFFSET(F95,1-$H$3,0)))*$H$2/100/10,0)*$H$4+2.5)/5)*5>$H$9,$H$9, INT((ROUND((AVERAGE(E95:OFFSET(E95,1-$H$3,0))-AVERAGE(F95:OFFSET(F95,1-$H$3,0)))*$H$2/100/10,0)*$H$4+2.5)/5)*5)+$H$6 -> 100 | AK95: 2017-10-20 | AL95: 夜間 | AM95: 21470 | AN95: 21560 | AO95: 21460 | AP95: 21560 | AQ95: 10231 | AR95: 219926640
A96: 2013-05-14 | D96: 14830 | E96: 14850 | F96: 14755 | G96: 14805 | H96: =IF(INT((ROUND((AVERAGE(E96:OFFSET(E96,1-$H$3,0))-AVERAGE(F96:OFFSET(F96,1-$H$3,0)))*$H$2/100/10,0)*$H$4+2.5)/5)*5>$H$9,$H$9, INT((ROUND((AVERAGE(E96:OFFSET(E96,1-$H$3,0))-AVERAGE(F96:OFFSET(F96,1-$H$3,0)))*$H$2/100/10,0)*$H$4+2.5)/5)*5)+$H$6 -> 100 | AK96: 2017-10-20 | AL96: 日中 | AM96: 21340 | AN96: 21500 | AO96: 21335 | AP96: 21455 | AQ96: 16620 | AR96: 356160113
A97: 2013-05-15 | D97: 15025 | E97: 15120 | F97: 15010 | G97: 15085 | H97: =IF(INT((ROUND((AVERAGE(E97:OFFSET(E97,1-$H$3,0))-AVERAGE(F97:OFFSET(F97,1-$H$3,0)))*$H$2/100/10,0)*$H$4+2.5)/5)*5>$H$9,$H$9, INT((ROUND((AVERAGE(E97:OFFSET(E97,1-$H$3,0))-AVERAGE(F97:OFFSET(F97,1-$H$3,0)))*$H$2/100/10,0)*$H$4+2.5)/5)*5)+$H$6 -> 100 | AK97: 2017-10-19 | AL97: 夜間 | AM97: 21425 | AN97: 21425 | AO97: 21205 | AP97: 21320 | AQ97: 21443 | AR97: 456335915
A98: 2013-05-16 | D98: 15180 | E98: 15185 | F98: 14880 | G98: 15065 | H98: =IF(INT((ROUND((AVERAGE(E98:OFFSET(E98,1-$H$3,0))-AVERAGE(F98:OFFSET(F98,1-$H$3,0)))*$H$2/100/10,0)*$H$4+2.5)/5)*5>$H$9,$H$9, INT((ROUND((AVERAGE(E98:OFFSET(E98,1-$H$3,0))-AVERAGE(F98:OFFSET(F98,1-$H$3,0)))*$H$2/100/10,0)*$H$4+2.5)/5)*5)+$H$6 -> 110 | S98: 2014-01-04 | T98: から | U98: 2016/9/10まで | AK98: 2017-10-19 | AL98: 日中 | AM98: 21470 | AN98: 21515 | AO98: 21375 | AP98: 21470 | AQ98: 17446 | AR98: 374312850
A99: 2013-05-17 | D99: 14960 | E99: 15180 | F99: 14905 | G99: 15180 | H99: =IF(INT((ROUND((AVERAGE(E99:OFFSET(E99,1-$H$3,0))-AVERAGE(F99:OFFSET(F99,1-$H$3,0)))*$H$2/100/10,0)*$H$4+2.5)/5)*5>$H$9,$H$9, INT((ROUND((AVERAGE(E99:OFFSET(E99,1-$H$3,0))-AVERAGE(F99:OFFSET(F99,1-$H$3,0)))*$H$2/100/10,0)*$H$4+2.5)/5)*5)+$H$6 -> 120 | S99: LC | T99: LC-max | U99: 14-16損益 | V99: 16年損益 | AK99: 2017-10-18 | AL99: 夜間 | AM99: 21365 | AN99: 21455 | AO99: 21350 | AP99: 21445 | AQ99: 9435 | AR99: 201971485
A100: 2013-05-20 | D100: 15295 | E100: 15395 | F100: 15265 | G100: 15385 | H100: =IF(INT((ROUND((AVERAGE(E100:OFFSET(E100,1-$H$3,0))-AVERAGE(F100:OFFSET(F100,1-$H$3,0)))*$H$2/100/10,0)*$H$4+2.5)/5)*5>$H$9,$H$9, INT((ROUND((AVERAGE(E100:OFFSET(E100,1-$H$3,0))-AVERAGE(F100:OFFSET(F100,1-$H$3,0)))*$H$2/100/10,0)*$H$4+2.5)/5)*5)+$H$6 -> 110 | R100: 通年ＭＡＸ | S100: 33 | T100: 140 | U100: 9835 | V100: 3475 | AK100: 2017-10-18 | AL100: 日中 | AM100: 21365 | AN100: 21415 | AO100: 21310 | AP100: 21355 | AQ100: 17897 | AR100: 382427565
A101: 2013-05-21 | D101: 15280 | E101: 15400 | F101: 15270 | G101: 15395 | H101: =IF(INT((ROUND((AVERAGE(E101:OFFSET(E101,1-$H$3,0))-AVERAGE(F101:OFFSET(F101,1-$H$3,0)))*$H$2/100/10,0)*$H$4+2.5)/5)*5>$H$9,$H$9, INT((ROUND((AVERAGE(E101:OFFSET(E101,1-$H$3,0))-AVERAGE(F101:OFFSET(F101,1-$H$3,0)))*$H$2/100/10,0)*$H$4+2.5)/5)*5)+$H$6 -> 110 | S101: 32.75 | T101: 140 | U101: 9820 | V101: 3485 | AK101: 2017-10-17 | AL101: 夜間 | AM101: 21355 | AN101: 21370 | AO101: 21310 | AP101: 21345 | AQ101: 10562 | AR101: 225367260
A102: 2013-05-22 | D102: 15465 | E102: 15715 | F102: 15465 | G102: 15680 | H102: =IF(INT((ROUND((AVERAGE(E102:OFFSET(E102,1-$H$3,0))-AVERAGE(F102:OFFSET(F102,1-$H$3,0)))*$H$2/100/10,0)*$H$4+2.5)/5)*5>$H$9,$H$9, INT((ROUND((AVERAGE(E102:OFFSET(E102,1-$H$3,0))-AVERAGE(F102:OFFSET(F102,1-$H$3,0)))*$H$2/100/10,0)*$H$4+2.5)/5)*5)+$H$6 -> 120 | S102: 33.5 | T102: 140 | U102: 9745 | V102: 3355 | AK102: 2017-10-17 | AL102: 日中 | AM102: 21345 | AN102: 21395 | AO102: 21225 | AP102: 21360 | AQ102: 22360 | AR102: 476696840
A103: 2013-05-23 | D103: 15755 | E103: 15955 | F103: 14480 | G103: 14585 | H103: =IF(INT((ROUND((AVERAGE(E103:OFFSET(E103,1-$H$3,0))-AVERAGE(F103:OFFSET(F103,1-$H$3,0)))*$H$2/100/10,0)*$H$4+2.5)/5)*5>$H$9,$H$9, INT((ROUND((AVERAGE(E103:OFFSET(E103,1-$H$3,0))-AVERAGE(F103:OFFSET(F103,1-$H$3,0)))*$H$2/100/10,0)*$H$4+2.5)/5)*5)+$H$6 -> 230 | S103: 33.25 | T103: 140 | U103: 9730 | V103: 3415 | AK103: 2017-10-16 | AL103: 夜間 | AM103: 21255 | AN103: 21345 | AO103: 21250 | AP103: 21335 | AQ103: 7801 | AR103: 166097305
A104: 2013-05-24 | D104: 14845 | E104: 15020 | F104: 13975 | G104: 14615 | H104: =IF(INT((ROUND((AVERAGE(E104:OFFSET(E104,1-$H$3,0))-AVERAGE(F104:OFFSET(F104,1-$H$3,0)))*$H$2/100/10,0)*$H$4+2.5)/5)*5>$H$9,$H$9, INT((ROUND((AVERAGE(E104:OFFSET(E104,1-$H$3,0))-AVERAGE(F104:OFFSET(F104,1-$H$3,0)))*$H$2/100/10,0)*$H$4+2.5)/5)*5)+$H$6 -> 230 | S104: 34 | T104: 140 | U104: 9670 | V104: 3465 | AK104: 2017-10-16 | AL104: 日中 | AM104: 21240 | AN104: 21355 | AO104: 21190 | AP104: 21275 | AQ104: 18998 | AR104: 404313075
A105: 2013-05-27 | D105: 14160 | E105: 14315 | F105: 14020 | G105: 14040 | H105: =IF(INT((ROUND((AVERAGE(E105:OFFSET(E105,1-$H$3,0))-AVERAGE(F105:OFFSET(F105,1-$H$3,0)))*$H$2/100/10,0)*$H$4+2.5)/5)*5>$H$9,$H$9, INT((ROUND((AVERAGE(E105:OFFSET(E105,1-$H$3,0))-AVERAGE(F105:OFFSET(F105,1-$H$3,0)))*$H$2/100/10,0)*$H$4+2.5)/5)*5)+$H$6 -> 230 | S105: 33 | T105: 150 | U105: 9645 | V105: 3350 | AK105: 2017-10-13 | AL105: 夜間 | AM105: 21140 | AN105: 21260 | AO105: 21135 | AP105: 21225 | AQ105: 13226 | AR105: 280425660
A106: 2013-05-28 | D106: 13960 | E106: 14415 | F106: 13930 | G106: 14350 | H106: =IF(INT((ROUND((AVERAGE(E106:OFFSET(E106,1-$H$3,0))-AVERAGE(F106:OFFSET(F106,1-$H$3,0)))*$H$2/100/10,0)*$H$4+2.5)/5)*5>$H$9,$H$9, INT((ROUND((AVERAGE(E106:OFFSET(E106,1-$H$3,0))-AVERAGE(F106:OFFSET(F106,1-$H$3,0)))*$H$2/100/10,0)*$H$4+2.5)/5)*5)+$H$6 -> 230 | S106: 32.5 | T106: 140 | U106: 9630 | V106: 3425 | AK106: 2017-10-13 | AL106: 日中 | AM106: 20970 | AN106: 21220 | AO106: 20930 | AP106: 21160 | AQ106: 27553 | AR106: 580243610
A107: 2013-05-29 | D107: 14525 | E107: 14545 | F107: 14215 | G107: 14215 | H107: =IF(INT((ROUND((AVERAGE(E107:OFFSET(E107,1-$H$3,0))-AVERAGE(F107:OFFSET(F107,1-$H$3,0)))*$H$2/100/10,0)*$H$4+2.5)/5)*5>$H$9,$H$9, INT((ROUND((AVERAGE(E107:OFFSET(E107,1-$H$3,0))-AVERAGE(F107:OFFSET(F107,1-$H$3,0)))*$H$2/100/10,0)*$H$4+2.5)/5)*5)+$H$6 -> 230 | S107: 32.75 | T107: 150 | U107: 9630 | V107: 3360 | AK107: 2017-10-12 | AL107: 夜間 | AM107: 20945 | AN107: 21035 | AO107: 20935 | AP107: 20965 | AQ107: 6479 | AR107: 135957495
A108: 2013-05-30 | D108: 13980 | E108: 14090 | F108: 13535 | G108: 13635 | H108: =IF(INT((ROUND((AVERAGE(E108:OFFSET(E108,1-$H$3,0))-AVERAGE(F108:OFFSET(F108,1-$H$3,0)))*$H$2/100/10,0)*$H$4+2.5)/5)*5>$H$9,$H$9, INT((ROUND((AVERAGE(E108:OFFSET(E108,1-$H$3,0))-AVERAGE(F108:OFFSET(F108,1-$H$3,0)))*$H$2/100/10,0)*$H$4+2.5)/5)*5)+$H$6 -> 230 | S108: 33.75 | T108: 140 | U108: 9600 | V108: 3305 | AK108: 2017-10-12 | AL108: 日中 | AM108: 20955 | AN108: 21000 | AO108: 20920 | AP108: 20960 | AQ108: 28760 | AR108: 602826074
A109: 2013-05-31 | D109: 13885 | E109: 13930 | F109: 13675 | G109: 13705 | H109: =IF(INT((ROUND((AVERAGE(E109:OFFSET(E109,1-$H$3,0))-AVERAGE(F109:OFFSET(F109,1-$H$3,0)))*$H$2/100/10,0)*$H$4+2.5)/5)*5>$H$9,$H$9, INT((ROUND((AVERAGE(E109:OFFSET(E109,1-$H$3,0))-AVERAGE(F109:OFFSET(F109,1-$H$3,0)))*$H$2/100/10,0)*$H$4+2.5)/5)*5)+$H$6 -> 230 | S109: 29.5 | T109: 140 | U109: 9575 | V109: 3520 | AK109: 2017-10-11 | AL109: 夜間 | AM109: 20875 | AN109: 20965 | AO109: 20840 | AP109: 20935 | AQ109: 9830 | AR109: 205427002
A110: 2013-06-03 | D110: 13525 | E110: 13540 | F110: 13235 | G110: 13250 | H110: =IF(INT((ROUND((AVERAGE(E110:OFFSET(E110,1-$H$3,0))-AVERAGE(F110:OFFSET(F110,1-$H$3,0)))*$H$2/100/10,0)*$H$4+2.5)/5)*5>$H$9,$H$9, INT((ROUND((AVERAGE(E110:OFFSET(E110,1-$H$3,0))-AVERAGE(F110:OFFSET(F110,1-$H$3,0)))*$H$2/100/10,0)*$H$4+2.5)/5)*5)+$H$6 -> 230 | S110: 32.25 | T110: 140 | U110: 9555 | V110: 3435 | AK110: 2017-10-11 | AL110: 日中 | AM110: 20800 | AN110: 20905 | AO110: 20790 | AP110: 20880 | AQ110: 19165 | AR110: 399743984
A111: 2013-06-04 | D111: 13200 | E111: 13650 | F111: 13060 | G111: 13650 | H111: =IF(INT((ROUND((AVERAGE(E111:OFFSET(E111,1-$H$3,0))-AVERAGE(F111:OFFSET(F111,1-$H$3,0)))*$H$2/100/10,0)*$H$4+2.5)/5)*5>$H$9,$H$9, INT((ROUND((AVERAGE(E111:OFFSET(E111,1-$H$3,0))-AVERAGE(F111:OFFSET(F111,1-$H$3,0)))*$H$2/100/10,0)*$H$4+2.5)/5)*5)+$H$6 -> 230 | S111: 31.25 | T111: 140 | U111: 9455 | V111: 3640 | AK111: 2017-10-10 | AL111: 夜間 | AM111: 20835 | AN111: 20845 | AO111: 20740 | AP111: 20810 | AQ111: 13542 | AR111: 281548825
A112: 2013-06-05 | D112: 13550 | E112: 13750 | F112: 12950 | G112: 12950 | H112: =IF(INT((ROUND((AVERAGE(E112:OFFSET(E112,1-$H$3,0))-AVERAGE(F112:OFFSET(F112,1-$H$3,0)))*$H$2/100/10,0)*$H$4+2.5)/5)*5>$H$9,$H$9, INT((ROUND((AVERAGE(E112:OFFSET(E112,1-$H$3,0))-AVERAGE(F112:OFFSET(F112,1-$H$3,0)))*$H$2/100/10,0)*$H$4+2.5)/5)*5)+$H$6 -> 230 | S112: 29.75 | T112: 140 | U112: 9425 | V112: 3525 | AK112: 2017-10-10 | AL112: 日中 | AM112: 20670 | AN112: 20835 | AO112: 20660 | AP112: 20835 | AQ112: 19163 | AR112: 397531369
A113: 2013-06-06 | D113: 12910 | E113: 13240 | F113: 12815 | G113: 12815 | H113: =IF(INT((ROUND((AVERAGE(E113:OFFSET(E113,1-$H$3,0))-AVERAGE(F113:OFFSET(F113,1-$H$3,0)))*$H$2/100/10,0)*$H$4+2.5)/5)*5>$H$9,$H$9, INT((ROUND((AVERAGE(E113:OFFSET(E113,1-$H$3,0))-AVERAGE(F113:OFFSET(F113,1-$H$3,0)))*$H$2/100/10,0)*$H$4+2.5)/5)*5)+$H$6 -> 230 | S113: 31.5 | T113: 140 | U113: 9400 | V113: 3595 | AK113: 2017-10-06 | AL113: 夜間 | AM113: 20715 | AN113: 20760 | AO113: 20635 | AP113: 20645 | AQ113: 14208 | AR113: 294144066
A114: 2013-06-07 | D114: 12690 | E114: 13110 | F114: 12535 | G114: 12700 | H114: =IF(INT((ROUND((AVERAGE(E114:OFFSET(E114,1-$H$3,0))-AVERAGE(F114:OFFSET(F114,1-$H$3,0)))*$H$2/100/10,0)*$H$4+2.5)/5)*5>$H$9,$H$9, INT((ROUND((AVERAGE(E114:OFFSET(E114,1-$H$3,0))-AVERAGE(F114:OFFSET(F114,1-$H$3,0)))*$H$2/100/10,0)*$H$4+2.5)/5)*5)+$H$6 -> 230 | S114: 31.75 | T114: 140 | U114: 9315 | V114: 3555 | AK114: 2017-10-06 | AL114: 日中 | AM114: 20690 | AN114: 20720 | AO114: 20665 | AP114: 20705 | AQ114: 12962 | AR114: 268227715
A115: 2013-06-10 | D115: 13350 | E115: 13615 | F115: 13195 | G115: 13615 | H115: =IF(INT((ROUND((AVERAGE(E115:OFFSET(E115,1-$H$3,0))-AVERAGE(F115:OFFSET(F115,1-$H$3,0)))*$H$2/100/10,0)*$H$4+2.5)/5)*5>$H$9,$H$9, INT((ROUND((AVERAGE(E115:OFFSET(E115,1-$H$3,0))-AVERAGE(F115:OFFSET(F115,1-$H$3,0)))*$H$2/100/10,0)*$H$4+2.5)/5)*5)+$H$6 -> 230 | S115: 28.5 | T115: 140 | U115: 9315 | V115: 3340 | AK115: 2017-10-05 | AL115: 夜間 | AM115: 20640 | AN115: 20705 | AO115: 20600 | AP115: 20700 | AQ115: 8784 | AR115: 181267990
A116: 2013-06-11 | D116: 13525 | E116: 13590 | F116: 13145 | G116: 13385 | H116: =IF(INT((ROUND((AVERAGE(E116:OFFSET(E116,1-$H$3,0))-AVERAGE(F116:OFFSET(F116,1-$H$3,0)))*$H$2/100/10,0)*$H$4+2.5)/5)*5>$H$9,$H$9, INT((ROUND((AVERAGE(E116:OFFSET(E116,1-$H$3,0))-AVERAGE(F116:OFFSET(F116,1-$H$3,0)))*$H$2/100/10,0)*$H$4+2.5)/5)*5)+$H$6 -> 230 | S116: 30 | T116: 140 | U116: 9295 | V116: 3455 | AK116: 2017-10-05 | AL116: 日中 | AM116: 20640 | AN116: 20660 | AO116: 20605 | AP116: 20645 | AQ116: 11803 | AR116: 243535890
A117: 2013-06-12 | D117: 13075 | E117: 13335 | F117: 12990 | G117: 13280 | H117: =IF(INT((ROUND((AVERAGE(E117:OFFSET(E117,1-$H$3,0))-AVERAGE(F117:OFFSET(F117,1-$H$3,0)))*$H$2/100/10,0)*$H$4+2.5)/5)*5>$H$9,$H$9, INT((ROUND((AVERAGE(E117:OFFSET(E117,1-$H$3,0))-AVERAGE(F117:OFFSET(F117,1-$H$3,0)))*$H$2/100/10,0)*$H$4+2.5)/5)*5)+$H$6 -> 230 | S117: 28.75 | T117: 140 | U117: 9265 | V117: 3395 | AK117: 2017-10-04 | AL117: 夜間 | AM117: 20625 | AN117: 20685 | AO117: 20595 | AP117: 20655 | AQ117: 10178 | AR117: 210030175
A118: 2013-06-13 | D118: 12950 | E118: 12970 | F118: 12400 | G118: 12440 | H118: =IF(INT((ROUND((AVERAGE(E118:OFFSET(E118,1-$H$3,0))-AVERAGE(F118:OFFSET(F118,1-$H$3,0)))*$H$2/100/10,0)*$H$4+2.5)/5)*5>$H$9,$H$9, INT((ROUND((AVERAGE(E118:OFFSET(E118,1-$H$3,0))-AVERAGE(F118:OFFSET(F118,1-$H$3,0)))*$H$2/100/10,0)*$H$4+2.5)/5)*5)+$H$6 -> 230 | S118: 29.25 | T118: 140 | U118: 9245 | V118: 3525 | AK118: 2017-10-04 | AL118: 日中 | AM118: 20640 | AN118: 20690 | AO118: 20590 | AP118: 20630 | AQ118: 19283 | AR118: 398123753
A119: 2013-06-14 | D119: 12895 | E119: 12910 | F119: 12615 | G119: 12760 | H119: =IF(INT((ROUND((AVERAGE(E119:OFFSET(E119,1-$H$3,0))-AVERAGE(F119:OFFSET(F119,1-$H$3,0)))*$H$2/100/10,0)*$H$4+2.5)/5)*5>$H$9,$H$9, INT((ROUND((AVERAGE(E119:OFFSET(E119,1-$H$3,0))-AVERAGE(F119:OFFSET(F119,1-$H$3,0)))*$H$2/100/10,0)*$H$4+2.5)/5)*5)+$H$6 -> 230 | S119: 36.75 | T119: 140 | U119: 9195 | V119: 3630 | AK119: 2017-10-03 | AL119: 夜間 | AM119: 20600 | AN119: 20685 | AO119: 20575 | AP119: 20675 | AQ119: 8209 | AR119: 169129403
A120: 2013-06-17 | D120: 12560 | E120: 13070 | F120: 12540 | G120: 13055 | H120: =IF(INT((ROUND((AVERAGE(E120:OFFSET(E120,1-$H$3,0))-AVERAGE(F120:OFFSET(F120,1-$H$3,0)))*$H$2/100/10,0)*$H$4+2.5)/5)*5>$H$9,$H$9, INT((ROUND((AVERAGE(E120:OFFSET(E120,1-$H$3,0))-AVERAGE(F120:OFFSET(F120,1-$H$3,0)))*$H$2/100/10,0)*$H$4+2.5)/5)*5)+$H$6 -> 230 | S120: 29 | T120: 140 | U120: 9125 | V120: 3335 | AK120: 2017-10-03 | AL120: 日中 | AM120: 20470 | AN120: 20630 | AO120: 20440 | AP120: 20600 | AQ120: 28868 | AR120: 592640306
A121: 2013-06-18 | D121: 13000 | E121: 13150 | F121: 12910 | G121: 13010 | H121: =IF(INT((ROUND((AVERAGE(E121:OFFSET(E121,1-$H$3,0))-AVERAGE(F121:OFFSET(F121,1-$H$3,0)))*$H$2/100/10,0)*$H$4+2.5)/5)*5>$H$9,$H$9, INT((ROUND((AVERAGE(E121:OFFSET(E121,1-$H$3,0))-AVERAGE(F121:OFFSET(F121,1-$H$3,0)))*$H$2/100/10,0)*$H$4+2.5)/5)*5)+$H$6 -> 230 | S121: 36.5 | T121: 140 | U121: 9115 | V121: 3620 | AK121: 2017-10-02 | AL121: 夜間 | AM121: 20410 | AN121: 20490 | AO121: 20375 | AP121: 20490 | AQ121: 10151 | AR121: 207231335
A122: 2013-06-19 | D122: 13275 | E122: 13295 | F122: 13055 | G122: 13270 | H122: =IF(INT((ROUND((AVERAGE(E122:OFFSET(E122,1-$H$3,0))-AVERAGE(F122:OFFSET(F122,1-$H$3,0)))*$H$2/100/10,0)*$H$4+2.5)/5)*5>$H$9,$H$9, INT((ROUND((AVERAGE(E122:OFFSET(E122,1-$H$3,0))-AVERAGE(F122:OFFSET(F122,1-$H$3,0)))*$H$2/100/10,0)*$H$4+2.5)/5)*5)+$H$6 -> 230 | S122: 35.5 | T122: 140 | U122: 9100 | V122: 3550 | AK122: 2017-10-02 | AL122: 日中 | AM122: 20390 | AN122: 20415 | AO122: 20355 | AP122: 20410 | AQ122: 13269 | AR122: 270488584
A123: 2013-06-20 | D123: 13100 | E123: 13190 | F123: 12945 | G123: 13025 | H123: =IF(INT((ROUND((AVERAGE(E123:OFFSET(E123,1-$H$3,0))-AVERAGE(F123:OFFSET(F123,1-$H$3,0)))*$H$2/100/10,0)*$H$4+2.5)/5)*5>$H$9,$H$9, INT((ROUND((AVERAGE(E123:OFFSET(E123,1-$H$3,0))-AVERAGE(F123:OFFSET(F123,1-$H$3,0)))*$H$2/100/10,0)*$H$4+2.5)/5)*5)+$H$6 -> 230 | S123: 37 | T123: 140 | U123: 9075 | V123: 3595 | AK123: 2017-09-29 | AL123: 夜間 | AM123: 20340 | AN123: 20370 | AO123: 20305 | AP123: 20370 | AQ123: 9106 | AR123: 185231705
A124: 2013-06-21 | D124: 12705 | E124: 13370 | F124: 12680 | G124: 13370 | H124: =IF(INT((ROUND((AVERAGE(E124:OFFSET(E124,1-$H$3,0))-AVERAGE(F124:OFFSET(F124,1-$H$3,0)))*$H$2/100/10,0)*$H$4+2.5)/5)*5>$H$9,$H$9, INT((ROUND((AVERAGE(E124:OFFSET(E124,1-$H$3,0))-AVERAGE(F124:OFFSET(F124,1-$H$3,0)))*$H$2/100/10,0)*$H$4+2.5)/5)*5)+$H$6 -> 230 | S124: 33 | T124: 130 | U124: 9040 | V124: 2610 | AK124: 2017-09-29 | AL124: 日中 | AM124: 20335 | AN124: 20370 | AO124: 20275 | AP124: 20360 | AQ124: 15656 | AR124: 318063515
A125: 2013-06-24 | D125: 13440 | E125: 13475 | F125: 13005 | G125: 13020 | H125: =IF(INT((ROUND((AVERAGE(E125:OFFSET(E125,1-$H$3,0))-AVERAGE(F125:OFFSET(F125,1-$H$3,0)))*$H$2/100/10,0)*$H$4+2.5)/5)*5>$H$9,$H$9, INT((ROUND((AVERAGE(E125:OFFSET(E125,1-$H$3,0))-AVERAGE(F125:OFFSET(F125,1-$H$3,0)))*$H$2/100/10,0)*$H$4+2.5)/5)*5)+$H$6 -> 230 | S125: 32.75 | T125: 130 | U125: 9025 | V125: 2620 | AK125: 2017-09-28 | AL125: 夜間 | AM125: 20360 | AN125: 20370 | AO125: 20300 | AP125: 20325 | AQ125: 8675 | AR125: 176393370
A126: 2013-06-25 | D126: 13080 | E126: 13235 | F126: 12750 | G126: 12960 | H126: =IF(INT((ROUND((AVERAGE(E126:OFFSET(E126,1-$H$3,0))-AVERAGE(F126:OFFSET(F126,1-$H$3,0)))*$H$2/100/10,0)*$H$4+2.5)/5)*5>$H$9,$H$9, INT((ROUND((AVERAGE(E126:OFFSET(E126,1-$H$3,0))-AVERAGE(F126:OFFSET(F126,1-$H$3,0)))*$H$2/100/10,0)*$H$4+2.5)/5)*5)+$H$6 -> 230 | S126: 28.25 | T126: 140 | U126: 9015 | V126: 2955 | AK126: 2017-09-28 | AL126: 日中 | AM126: 20410 | AN126: 20410 | AO126: 20290 | AP126: 20390 | AQ126: 20241 | AR126: 411941290
A127: 2013-06-26 | D127: 13200 | E127: 13210 | F127: 12780 | G127: 12780 | H127: =IF(INT((ROUND((AVERAGE(E127:OFFSET(E127,1-$H$3,0))-AVERAGE(F127:OFFSET(F127,1-$H$3,0)))*$H$2/100/10,0)*$H$4+2.5)/5)*5>$H$9,$H$9, INT((ROUND((AVERAGE(E127:OFFSET(E127,1-$H$3,0))-AVERAGE(F127:OFFSET(F127,1-$H$3,0)))*$H$2/100/10,0)*$H$4+2.5)/5)*5)+$H$6 -> 230 | S127: 27.5 | T127: 140 | U127: 8995 | V127: 3005 | AK127: 2017-09-27 | AL127: 夜間 | AM127: 20340 | AN127: 20430 | AO127: 20290 | AP127: 20380 | AQ127: 18584 | AR127: 378464220
A128: 2013-06-27 | D128: 12965 | E128: 13275 | F128: 12865 | G128: 13265 | H128: =IF(INT((ROUND((AVERAGE(E128:OFFSET(E128,1-$H$3,0))-AVERAGE(F128:OFFSET(F128,1-$H$3,0)))*$H$2/100/10,0)*$H$4+2.5)/5)*5>$H$9,$H$9, INT((ROUND((AVERAGE(E128:OFFSET(E128,1-$H$3,0))-AVERAGE(F128:OFFSET(F128,1-$H$3,0)))*$H$2/100/10,0)*$H$4+2.5)/5)*5)+$H$6 -> 230 | S128: 33.5 | T128: 130 | U128: 8970 | V128: 2510 | AK128: 2017-09-27 | AL128: 日中 | AM128: 20250 | AN128: 20315 | AO128: 20215 | AP128: 20315 | AQ128: 13778 | AR128: 279025208
A129: 2013-06-28 | D129: 13380 | E129: 13735 | F129: 13345 | G129: 13645 | H129: =IF(INT((ROUND((AVERAGE(E129:OFFSET(E129,1-$H$3,0))-AVERAGE(F129:OFFSET(F129,1-$H$3,0)))*$H$2/100/10,0)*$H$4+2.5)/5)*5>$H$9,$H$9, INT((ROUND((AVERAGE(E129:OFFSET(E129,1-$H$3,0))-AVERAGE(F129:OFFSET(F129,1-$H$3,0)))*$H$2/100/10,0)*$H$4+2.5)/5)*5)+$H$6 -> 230 | S129: 37.25 | T129: 140 | U129: 8960 | V129: 3585 | AK129: 2017-09-26 | AL129: 夜間 | AM129: 20180 | AN129: 20265 | AO129: 20170 | AP129: 20250 | AQ129: 9601 | AR129: 194119460
A130: 2013-07-01 | D130: 13765 | E130: 13880 | F130: 13560 | G130: 13860 | H130: =IF(INT((ROUND((AVERAGE(E130:OFFSET(E130,1-$H$3,0))-AVERAGE(F130:OFFSET(F130,1-$H$3,0)))*$H$2/100/10,0)*$H$4+2.5)/5)*5>$H$9,$H$9, INT((ROUND((AVERAGE(E130:OFFSET(E130,1-$H$3,0))-AVERAGE(F130:OFFSET(F130,1-$H$3,0)))*$H$2/100/10,0)*$H$4+2.5)/5)*5)+$H$6 -> 230 | S130: 33.25 | T130: 130 | U130: 8945 | V130: 2560 | AK130: 2017-09-26 | AL130: 日中 | AM130: 20200 | AN130: 20250 | AO130: 20165 | AP130: 20165 | AQ130: 14645 | AR130: 295845815
A131: 2013-07-02 | D131: 13965 | E131: 14135 | F131: 13900 | G131: 14135 | H131: =IF(INT((ROUND((AVERAGE(E131:OFFSET(E131,1-$H$3,0))-AVERAGE(F131:OFFSET(F131,1-$H$3,0)))*$H$2/100/10,0)*$H$4+2.5)/5)*5>$H$9,$H$9, INT((ROUND((AVERAGE(E131:OFFSET(E131,1-$H$3,0))-AVERAGE(F131:OFFSET(F131,1-$H$3,0)))*$H$2/100/10,0)*$H$4+2.5)/5)*5)+$H$6 -> 230 | S131: 42.25 | T131: 140 | U131: 8930 | V131: 3675 | AK131: 2017-09-25 | AL131: 夜間 | AM131: 20265 | AN131: 20280 | AO131: 20105 | AP131: 20175 | AQ131: 10551 | AR131: 213240910
A132: 2013-07-03 | D132: 14180 | E132: 14185 | F132: 13970 | G132: 14025 | H132: =IF(INT((ROUND((AVERAGE(E132:OFFSET(E132,1-$H$3,0))-AVERAGE(F132:OFFSET(F132,1-$H$3,0)))*$H$2/100/10,0)*$H$4+2.5)/5)*5>$H$9,$H$9, INT((ROUND((AVERAGE(E132:OFFSET(E132,1-$H$3,0))-AVERAGE(F132:OFFSET(F132,1-$H$3,0)))*$H$2/100/10,0)*$H$4+2.5)/5)*5)+$H$6 -> 230 | S132: 27.75 | T132: 140 | U132: 8920 | V132: 2960 | AK132: 2017-09-25 | AL132: 日中 | AM132: 20260 | AN132: 20320 | AO132: 20230 | AP132: 20275 | AQ132: 12672 | AR132: 256882200
A133: 2013-07-04 | D133: 13980 | E133: 14100 | F133: 13950 | G133: 13990 | H133: =IF(INT((ROUND((AVERAGE(E133:OFFSET(E133,1-$H$3,0))-AVERAGE(F133:OFFSET(F133,1-$H$3,0)))*$H$2/100/10,0)*$H$4+2.5)/5)*5>$H$9,$H$9, INT((ROUND((AVERAGE(E133:OFFSET(E133,1-$H$3,0))-AVERAGE(F133:OFFSET(F133,1-$H$3,0)))*$H$2/100/10,0)*$H$4+2.5)/5)*5)+$H$6 -> 200 | R133: 頃合いか？ | S133: 58.25 | T133: 230 | U133: 8915 | V133: 4265 | AK133: 2017-09-22 | AL133: 夜間 | AM133: 20180 | AN133: 20215 | AO133: 20155 | AP133: 20210 | AQ133: 8480 | AR133: 171158020
A134: 2013-07-05 | D134: 14160 | E134: 14350 | F134: 14155 | G134: 14345 | H134: =IF(INT((ROUND((AVERAGE(E134:OFFSET(E134,1-$H$3,0))-AVERAGE(F134:OFFSET(F134,1-$H$3,0)))*$H$2/100/10,0)*$H$4+2.5)/5)*5>$H$9,$H$9, INT((ROUND((AVERAGE(E134:OFFSET(E134,1-$H$3,0))-AVERAGE(F134:OFFSET(F134,1-$H$3,0)))*$H$2/100/10,0)*$H$4+2.5)/5)*5)+$H$6 -> 175 | S134: 34 | T134: 130 | U134: 8905 | V134: 2630 | AK134: 2017-09-22 | AL134: 日中 | AM134: 20240 | AN134: 20285 | AO134: 20120 | AP134: 20185 | AQ134: 21449 | AR134: 432944477
A135: 2013-07-08 | D135: 14470 | E135: 14510 | F135: 14060 | G135: 14120 | H135: =IF(INT((ROUND((AVERAGE(E135:OFFSET(E135,1-$H$3,0))-AVERAGE(F135:OFFSET(F135,1-$H$3,0)))*$H$2/100/10,0)*$H$4+2.5)/5)*5>$H$9,$H$9, INT((ROUND((AVERAGE(E135:OFFSET(E135,1-$H$3,0))-AVERAGE(F135:OFFSET(F135,1-$H$3,0)))*$H$2/100/10,0)*$H$4+2.5)/5)*5)+$H$6 -> 175 | S135: 54 | T135: 230 | U135: 8885 | V135: 4235 | AK135: 2017-09-21 | AL135: 夜間 | AM135: 20270 | AN135: 20285 | AO135: 20185 | AP135: 20250 | AQ135: 9389 | AR135: 190026650
A136: 2013-07-09 | D136: 14295 | E136: 14495 | F136: 14180 | G136: 14455 | H136: =IF(INT((ROUND((AVERAGE(E136:OFFSET(E136,1-$H$3,0))-AVERAGE(F136:OFFSET(F136,1-$H$3,0)))*$H$2/100/10,0)*$H$4+2.5)/5)*5>$H$9,$H$9, INT((ROUND((AVERAGE(E136:OFFSET(E136,1-$H$3,0))-AVERAGE(F136:OFFSET(F136,1-$H$3,0)))*$H$2/100/10,0)*$H$4+2.5)/5)*5)+$H$6 -> 175 | S136: 63.5 | T136: 230 | U136: 8850 | V136: 4260 | AK136: 2017-09-21 | AL136: 日中 | AM136: 20355 | AN136: 20370 | AO136: 20200 | AP136: 20225 | AQ136: 22472 | AR136: 456191450
A137: 2013-07-10 | D137: 14450 | E137: 14570 | F137: 14275 | G137: 14450 | H137: =IF(INT((ROUND((AVERAGE(E137:OFFSET(E137,1-$H$3,0))-AVERAGE(F137:OFFSET(F137,1-$H$3,0)))*$H$2/100/10,0)*$H$4+2.5)/5)*5>$H$9,$H$9, INT((ROUND((AVERAGE(E137:OFFSET(E137,1-$H$3,0))-AVERAGE(F137:OFFSET(F137,1-$H$3,0)))*$H$2/100/10,0)*$H$4+2.5)/5)*5)+$H$6 -> 165 | S137: 40.25 | T137: 140 | U137: 8850 | V137: 3615 | AK137: 2017-09-20 | AL137: 夜間 | AM137: 20160 | AN137: 20290 | AO137: 20120 | AP137: 20270 | AQ137: 9820 | AR137: 198268849
A138: 2013-07-11 | D138: 14280 | E138: 14510 | F138: 14255 | G138: 14470 | H138: =IF(INT((ROUND((AVERAGE(E138:OFFSET(E138,1-$H$3,0))-AVERAGE(F138:OFFSET(F138,1-$H$3,0)))*$H$2/100/10,0)*$H$4+2.5)/5)*5>$H$9,$H$9, INT((ROUND((AVERAGE(E138:OFFSET(E138,1-$H$3,0))-AVERAGE(F138:OFFSET(F138,1-$H$3,0)))*$H$2/100/10,0)*$H$4+2.5)/5)*5)+$H$6 -> 175 | S138: 59.5 | T138: 150 | U138: 8845 | V138: 4230 | AK138: 2017-09-20 | AL138: 日中 | AM138: 20150 | AN138: 20225 | AO138: 20135 | AP138: 20145 | AQ138: 14495 | AR138: 292332520
A139: 2013-07-12 | D139: 14470 | E139: 14590 | F139: 14415 | G139: 14475 | H139: =IF(INT((ROUND((AVERAGE(E139:OFFSET(E139,1-$H$3,0))-AVERAGE(F139:OFFSET(F139,1-$H$3,0)))*$H$2/100/10,0)*$H$4+2.5)/5)*5>$H$9,$H$9, INT((ROUND((AVERAGE(E139:OFFSET(E139,1-$H$3,0))-AVERAGE(F139:OFFSET(F139,1-$H$3,0)))*$H$2/100/10,0)*$H$4+2.5)/5)*5)+$H$6 -> 165 | S139: 32.5 | T139: 130 | U139: 8835 | V139: 2560 | AK139: 2017-09-19 | AL139: 夜間 | AM139: 20135 | AN139: 20160 | AO139: 20080 | AP139: 20135 | AQ139: 9862 | AR139: 198377595
A140: 2013-07-16 | D140: 14600 | E140: 14655 | F140: 14560 | G140: 14605 | H140: =IF(INT((ROUND((AVERAGE(E140:OFFSET(E140,1-$H$3,0))-AVERAGE(F140:OFFSET(F140,1-$H$3,0)))*$H$2/100/10,0)*$H$4+2.5)/5)*5>$H$9,$H$9, INT((ROUND((AVERAGE(E140:OFFSET(E140,1-$H$3,0))-AVERAGE(F140:OFFSET(F140,1-$H$3,0)))*$H$2/100/10,0)*$H$4+2.5)/5)*5)+$H$6 -> 165 | S140: 33.75 | T140: 130 | U140: 8835 | V140: 2470 | AK140: 2017-09-19 | AL140: 日中 | AM140: 20005 | AN140: 20185 | AO140: 19995 | AP140: 20150 | AQ140: 22235 | AR140: 446317815
A141: 2013-07-17 | D141: 14505 | E141: 14620 | F141: 14450 | G141: 14595 | H141: =IF(INT((ROUND((AVERAGE(E141:OFFSET(E141,1-$H$3,0))-AVERAGE(F141:OFFSET(F141,1-$H$3,0)))*$H$2/100/10,0)*$H$4+2.5)/5)*5>$H$9,$H$9, INT((ROUND((AVERAGE(E141:OFFSET(E141,1-$H$3,0))-AVERAGE(F141:OFFSET(F141,1-$H$3,0)))*$H$2/100/10,0)*$H$4+2.5)/5)*5)+$H$6 -> 165 | S141: 42.5 | T141: 140 | U141: 8830 | V141: 3645 | AK141: 2017-09-15 | AL141: 夜間 | AM141: 19790 | AN141: 19900 | AO141: 19780 | AP141: 19855 | AQ141: 15577 | AR141: 309002306
A142: 2013-07-18 | D142: 14660 | E142: 14840 | F142: 14650 | G142: 14795 | H142: =IF(INT((ROUND((AVERAGE(E142:OFFSET(E142,1-$H$3,0))-AVERAGE(F142:OFFSET(F142,1-$H$3,0)))*$H$2/100/10,0)*$H$4+2.5)/5)*5>$H$9,$H$9, INT((ROUND((AVERAGE(E142:OFFSET(E142,1-$H$3,0))-AVERAGE(F142:OFFSET(F142,1-$H$3,0)))*$H$2/100/10,0)*$H$4+2.5)/5)*5)+$H$6 -> 130 | S142: 59.75 | T142: 150 | U142: 8805 | V142: 4230 | AK142: 2017-09-15 | AL142: 日中 | AM142: 19660 | AN142: 19800 | AO142: 19635 | AP142: 19795 | AQ142: 17099 | AR142: 337161178
A143: 2013-07-19 | D143: 14925 | E143: 14965 | F143: 14405 | G143: 14655 | H143: =IF(INT((ROUND((AVERAGE(E143:OFFSET(E143,1-$H$3,0))-AVERAGE(F143:OFFSET(F143,1-$H$3,0)))*$H$2/100/10,0)*$H$4+2.5)/5)*5>$H$9,$H$9, INT((ROUND((AVERAGE(E143:OFFSET(E143,1-$H$3,0))-AVERAGE(F143:OFFSET(F143,1-$H$3,0)))*$H$2/100/10,0)*$H$4+2.5)/5)*5)+$H$6 -> 155 | S143: 58.25 | T143: 150 | U143: 8800 | V143: 4250 | AK143: 2017-09-14 | AL143: 夜間 | AM143: 19655 | AN143: 19755 | AO143: 19655 | AP143: 19740 | AQ143: 13205 | AR143: 260185515
A144: 2013-07-22 | D144: 14775 | E144: 14790 | F144: 14515 | G144: 14690 | H144: =IF(INT((ROUND((AVERAGE(E144:OFFSET(E144,1-$H$3,0))-AVERAGE(F144:OFFSET(F144,1-$H$3,0)))*$H$2/100/10,0)*$H$4+2.5)/5)*5>$H$9,$H$9, INT((ROUND((AVERAGE(E144:OFFSET(E144,1-$H$3,0))-AVERAGE(F144:OFFSET(F144,1-$H$3,0)))*$H$2/100/10,0)*$H$4+2.5)/5)*5)+$H$6 -> 155 | S144: 63.75 | T144: 230 | U144: 8795 | V144: 4260 | AK144: 2017-09-14 | AL144: 日中 | AM144: 19720 | AN144: 19780 | AO144: 19650 | AP144: 19695 | AQ144: 18174 | AR144: 358324545
A145: 2013-07-23 | D145: 14575 | E145: 14835 | F145: 14535 | G145: 14770 | H145: =IF(INT((ROUND((AVERAGE(E145:OFFSET(E145,1-$H$3,0))-AVERAGE(F145:OFFSET(F145,1-$H$3,0)))*$H$2/100/10,0)*$H$4+2.5)/5)*5>$H$9,$H$9, INT((ROUND((AVERAGE(E145:OFFSET(E145,1-$H$3,0))-AVERAGE(F145:OFFSET(F145,1-$H$3,0)))*$H$2/100/10,0)*$H$4+2.5)/5)*5)+$H$6 -> 165 | S145: 39.75 | T145: 140 | U145: 8795 | V145: 3580 | AK145: 2017-09-13 | AL145: 夜間 | AM145: 19695 | AN145: 19750 | AO145: 19665 | AP145: 19750 | AQ145: 8908 | AR145: 175571070
A146: 2013-07-24 | D146: 14720 | E146: 14765 | F146: 14625 | G146: 14735 | H146: =IF(INT((ROUND((AVERAGE(E146:OFFSET(E146,1-$H$3,0))-AVERAGE(F146:OFFSET(F146,1-$H$3,0)))*$H$2/100/10,0)*$H$4+2.5)/5)*5>$H$9,$H$9, INT((ROUND((AVERAGE(E146:OFFSET(E146,1-$H$3,0))-AVERAGE(F146:OFFSET(F146,1-$H$3,0)))*$H$2/100/10,0)*$H$4+2.5)/5)*5)+$H$6 -> 155 | S146: 41.75 | T146: 140 | U146: 8795 | V146: 3550 | AK146: 2017-09-13 | AL146: 日中 | AM146: 19760 | AN146: 19760 | AO146: 19700 | AP146: 19700 | AQ146: 12072 | AR146: 238174124
A147: 2013-07-25 | D147: 14740 | E147: 14755 | F147: 14525 | G147: 14525 | H147: =IF(INT((ROUND((AVERAGE(E147:OFFSET(E147,1-$H$3,0))-AVERAGE(F147:OFFSET(F147,1-$H$3,0)))*$H$2/100/10,0)*$H$4+2.5)/5)*5>$H$9,$H$9, INT((ROUND((AVERAGE(E147:OFFSET(E147,1-$H$3,0))-AVERAGE(F147:OFFSET(F147,1-$H$3,0)))*$H$2/100/10,0)*$H$4+2.5)/5)*5)+$H$6 -> 175 | S147: 58.5 | T147: 150 | U147: 8790 | V147: 4240 | AK147: 2017-09-12 | AL147: 夜間 | AM147: 19650 | AN147: 19735 | AO147: 19645 | AP147: 19730 | AQ147: 11399 | AR147: 224559779
A148: 2013-07-26 | D148: 14345 | E148: 14380 | F148: 14100 | G148: 14130 | H148: =IF(INT((ROUND((AVERAGE(E148:OFFSET(E148,1-$H$3,0))-AVERAGE(F148:OFFSET(F148,1-$H$3,0)))*$H$2/100/10,0)*$H$4+2.5)/5)*5>$H$9,$H$9, INT((ROUND((AVERAGE(E148:OFFSET(E148,1-$H$3,0))-AVERAGE(F148:OFFSET(F148,1-$H$3,0)))*$H$2/100/10,0)*$H$4+2.5)/5)*5)+$H$6 -> 175 | S148: 54.25 | T148: 230 | U148: 8790 | V148: 4195 | AK148: 2017-09-12 | AL148: 日中 | AM148: 19560 | AN148: 19650 | AO148: 19555 | AP148: 19640 | AQ148: 15017 | AR148: 294468945
A149: 2013-07-29 | D149: 13875 | E149: 13960 | F149: 13605 | G149: 13605 | H149: =IF(INT((ROUND((AVERAGE(E149:OFFSET(E149,1-$H$3,0))-AVERAGE(F149:OFFSET(F149,1-$H$3,0)))*$H$2/100/10,0)*$H$4+2.5)/5)*5>$H$9,$H$9, INT((ROUND((AVERAGE(E149:OFFSET(E149,1-$H$3,0))-AVERAGE(F149:OFFSET(F149,1-$H$3,0)))*$H$2/100/10,0)*$H$4+2.5)/5)*5)+$H$6 -> 200 | S149: 57.25 | T149: 230 | U149: 8775 | V149: 4345 | AK149: 2017-09-11 | AL149: 夜間 | AM149: 19450 | AN149: 19570 | AO149: 19425 | AP149: 19570 | AQ149: 10231 | AR149: 199319000
A150: 2013-07-30 | D150: 13640 | E150: 13915 | F150: 13610 | G150: 13900 | H150: =IF(INT((ROUND((AVERAGE(E150:OFFSET(E150,1-$H$3,0))-AVERAGE(F150:OFFSET(F150,1-$H$3,0)))*$H$2/100/10,0)*$H$4+2.5)/5)*5>$H$9,$H$9, INT((ROUND((AVERAGE(E150:OFFSET(E150,1-$H$3,0))-AVERAGE(F150:OFFSET(F150,1-$H$3,0)))*$H$2/100/10,0)*$H$4+2.5)/5)*5)+$H$6 -> 175 | S150: 58.75 | T150: 150 | U150: 8765 | V150: 4240 | AK150: 2017-09-11 | AL150: 日中 | AM150: 19285 | AN150: 19425 | AO150: 19275 | AP150: 19420 | AQ150: 17035 | AR150: 329918824
A151: 2013-07-31 | D151: 13715 | E151: 13840 | F151: 13600 | G151: 13605 | H151: =IF(INT((ROUND((AVERAGE(E151:OFFSET(E151,1-$H$3,0))-AVERAGE(F151:OFFSET(F151,1-$H$3,0)))*$H$2/100/10,0)*$H$4+2.5)/5)*5>$H$9,$H$9, INT((ROUND((AVERAGE(E151:OFFSET(E151,1-$H$3,0))-AVERAGE(F151:OFFSET(F151,1-$H$3,0)))*$H$2/100/10,0)*$H$4+2.5)/5)*5)+$H$6 -> 165 | S151: 60 | T151: 150 | U151: 8760 | V151: 4230 | AK151: 2017-09-08 | AL151: 夜間 | AM151: 19090 | AN151: 19200 | AO151: 19090 | AP151: 19175 | AQ151: 11715 | AR151: 224258335
A152: 2013-08-01 | D152: 13665 | E152: 14055 | F152: 13640 | G152: 14035 | H152: =IF(INT((ROUND((AVERAGE(E152:OFFSET(E152,1-$H$3,0))-AVERAGE(F152:OFFSET(F152,1-$H$3,0)))*$H$2/100/10,0)*$H$4+2.5)/5)*5>$H$9,$H$9, INT((ROUND((AVERAGE(E152:OFFSET(E152,1-$H$3,0))-AVERAGE(F152:OFFSET(F152,1-$H$3,0)))*$H$2/100/10,0)*$H$4+2.5)/5)*5)+$H$6 -> 175 | S152: 40.5 | T152: 140 | U152: 8750 | V152: 3615 | AK152: 2017-09-08 | AL152: 日中 | AM152: 19240 | AN152: 19250 | AO152: 19090 | AP152: 19140 | AQ152: 16322 | AR152: 312777937
A153: 2013-08-02 | D153: 14185 | E153: 14490 | F153: 14150 | G153: 14470 | H153: =IF(INT((ROUND((AVERAGE(E153:OFFSET(E153,1-$H$3,0))-AVERAGE(F153:OFFSET(F153,1-$H$3,0)))*$H$2/100/10,0)*$H$4+2.5)/5)*5>$H$9,$H$9, INT((ROUND((AVERAGE(E153:OFFSET(E153,1-$H$3,0))-AVERAGE(F153:OFFSET(F153,1-$H$3,0)))*$H$2/100/10,0)*$H$4+2.5)/5)*5)+$H$6 -> 200 | S153: 29.5 | T153: 130 | U153: 8750 | V153: 2635 | AK153: 2017-09-07 | AL153: 夜間 | AM153: 19230 | AN153: 19340 | AO153: 19215 | AP153: 19275 | AQ153: 13114 | AR153: 252801230
A154: 2013-08-05 | D154: 14320 | E154: 14375 | F154: 14215 | G154: 14230 | H154: =IF(INT((ROUND((AVERAGE(E154:OFFSET(E154,1-$H$3,0))-AVERAGE(F154:OFFSET(F154,1-$H$3,0)))*$H$2/100/10,0)*$H$4+2.5)/5)*5>$H$9,$H$9, INT((ROUND((AVERAGE(E154:OFFSET(E154,1-$H$3,0))-AVERAGE(F154:OFFSET(F154,1-$H$3,0)))*$H$2/100/10,0)*$H$4+2.5)/5)*5)+$H$6 -> 185 | S154: 32.25 | T154: 130 | U154: 8750 | V154: 2570 | AK154: 2017-09-07 | AL154: 日中 | AM154: 19455 | AN154: 19480 | AO154: 19360 | AP154: 19395 | AQ154: 186726 | AR154: 3627329343
A155: 2013-08-06 | D155: 14220 | E155: 14415 | F155: 14015 | G155: 14395 | H155: =IF(INT((ROUND((AVERAGE(E155:OFFSET(E155,1-$H$3,0))-AVERAGE(F155:OFFSET(F155,1-$H$3,0)))*$H$2/100/10,0)*$H$4+2.5)/5)*5>$H$9,$H$9, INT((ROUND((AVERAGE(E155:OFFSET(E155,1-$H$3,0))-AVERAGE(F155:OFFSET(F155,1-$H$3,0)))*$H$2/100/10,0)*$H$4+2.5)/5)*5)+$H$6 -> 200 | S155: 64 | T155: 230 | U155: 8745 | V155: 4250 | AK155: 2017-09-06 | AL155: 夜間 | AM155: 19330 | AN155: 19485 | AO155: 19295 | AP155: 19485 | AQ155: 333105 | AR155: 6461016472
A156: 2013-08-07 | D156: 14095 | E156: 14145 | F156: 13820 | G156: 13865 | H156: =IF(INT((ROUND((AVERAGE(E156:OFFSET(E156,1-$H$3,0))-AVERAGE(F156:OFFSET(F156,1-$H$3,0)))*$H$2/100/10,0)*$H$4+2.5)/5)*5>$H$9,$H$9, INT((ROUND((AVERAGE(E156:OFFSET(E156,1-$H$3,0))-AVERAGE(F156:OFFSET(F156,1-$H$3,0)))*$H$2/100/10,0)*$H$4+2.5)/5)*5)+$H$6 -> 200 | S156: 60.25 | T156: 150 | U156: 8735 | V156: 4230 | AK156: 2017-09-06 | AL156: 日中 | AM156: 19325 | AN156: 19375 | AO156: 19255 | AP156: 19345 | AQ156: 346764 | AR156: 6700381801
A157: 2013-08-08 | D157: 13800 | E157: 14045 | F157: 13540 | G157: 13630 | H157: =IF(INT((ROUND((AVERAGE(E157:OFFSET(E157,1-$H$3,0))-AVERAGE(F157:OFFSET(F157,1-$H$3,0)))*$H$2/100/10,0)*$H$4+2.5)/5)*5>$H$9,$H$9, INT((ROUND((AVERAGE(E157:OFFSET(E157,1-$H$3,0))-AVERAGE(F157:OFFSET(F157,1-$H$3,0)))*$H$2/100/10,0)*$H$4+2.5)/5)*5)+$H$6 -> 220 | S157: 40.75 | T157: 140 | U157: 8730 | V157: 3605 | AK157: 2017-09-05 | AL157: 夜間 | AM157: 19430 | AN157: 19465 | AO157: 19265 | AP157: 19355 | AQ157: 437188 | AR157: 8469733515
A158: 2013-08-09 | D158: 13680 | E158: 13760 | F158: 13510 | G158: 13650 | H158: =IF(INT((ROUND((AVERAGE(E158:OFFSET(E158,1-$H$3,0))-AVERAGE(F158:OFFSET(F158,1-$H$3,0)))*$H$2/100/10,0)*$H$4+2.5)/5)*5>$H$9,$H$9, INT((ROUND((AVERAGE(E158:OFFSET(E158,1-$H$3,0))-AVERAGE(F158:OFFSET(F158,1-$H$3,0)))*$H$2/100/10,0)*$H$4+2.5)/5)*5)+$H$6 -> 220 | S158: 28.5 | T158: 130 | U158: 8710 | V158: 2685 | AK158: 2017-09-05 | AL158: 日中 | AM158: 19560 | AN158: 19565 | AO158: 19350 | AP158: 19430 | AQ158: 606524 | AR158: 11785730196
A159: 2013-08-12 | D159: 13495 | E159: 13665 | F159: 13410 | G159: 13510 | H159: =IF(INT((ROUND((AVERAGE(E159:OFFSET(E159,1-$H$3,0))-AVERAGE(F159:OFFSET(F159,1-$H$3,0)))*$H$2/100/10,0)*$H$4+2.5)/5)*5>$H$9,$H$9, INT((ROUND((AVERAGE(E159:OFFSET(E159,1-$H$3,0))-AVERAGE(F159:OFFSET(F159,1-$H$3,0)))*$H$2/100/10,0)*$H$4+2.5)/5)*5)+$H$6 -> 210 | S159: 43 | T159: 140 | U159: 8705 | V159: 3595 | AK159: 2017-09-04 | AL159: 夜間 | AM159: 19465 | AN159: 19530 | AO159: 19450 | AP159: 19530 | AQ159: 146321 | AR159: 2850726254
A160: 2013-08-13 | D160: 13705 | E160: 13870 | F160: 13680 | G160: 13845 | H160: =IF(INT((ROUND((AVERAGE(E160:OFFSET(E160,1-$H$3,0))-AVERAGE(F160:OFFSET(F160,1-$H$3,0)))*$H$2/100/10,0)*$H$4+2.5)/5)*5>$H$9,$H$9, INT((ROUND((AVERAGE(E160:OFFSET(E160,1-$H$3,0))-AVERAGE(F160:OFFSET(F160,1-$H$3,0)))*$H$2/100/10,0)*$H$4+2.5)/5)*5)+$H$6 -> 185 | S160: 62 | T160: 230 | U160: 8700 | V160: 4240 | AK160: 2017-09-04 | AL160: 日中 | AM160: 19605 | AN160: 19625 | AO160: 19450 | AP160: 19470 | AQ160: 508550 | AR160: 9931447693
A161: 2013-08-14 | D161: 13940 | E161: 14055 | F161: 13735 | G161: 14015 | H161: =IF(INT((ROUND((AVERAGE(E161:OFFSET(E161,1-$H$3,0))-AVERAGE(F161:OFFSET(F161,1-$H$3,0)))*$H$2/100/10,0)*$H$4+2.5)/5)*5>$H$9,$H$9, INT((ROUND((AVERAGE(E161:OFFSET(E161,1-$H$3,0))-AVERAGE(F161:OFFSET(F161,1-$H$3,0)))*$H$2/100/10,0)*$H$4+2.5)/5)*5)+$H$6 -> 210 | S161: 64.25 | T161: 230 | U161: 8695 | V161: 4240 | AK161: 2017-09-01 | AL161: 夜間 | AM161: 19710 | AN161: 19730 | AO161: 19670 | AP161: 19705 | AQ161: 348563 | AR161: 6865521505
A162: 2013-08-15 | D162: 13820 | E162: 13985 | F162: 13700 | G162: 13800 | H162: =IF(INT((ROUND((AVERAGE(E162:OFFSET(E162,1-$H$3,0))-AVERAGE(F162:OFFSET(F162,1-$H$3,0)))*$H$2/100/10,0)*$H$4+2.5)/5)*5>$H$9,$H$9, INT((ROUND((AVERAGE(E162:OFFSET(E162,1-$H$3,0))-AVERAGE(F162:OFFSET(F162,1-$H$3,0)))*$H$2/100/10,0)*$H$4+2.5)/5)*5)+$H$6 -> 200 | S162: 49 | T162: 140 | U162: 8690 | V162: 4040 | AK162: 2017-09-01 | AL162: 日中 | AM162: 19725 | AN162: 19740 | AO162: 19615 | AP162: 19695 | AQ162: 385679 | AR162: 7590540452
A163: 2013-08-16 | D163: 13530 | E163: 13735 | F163: 13515 | G163: 13665 | H163: =IF(INT((ROUND((AVERAGE(E163:OFFSET(E163,1-$H$3,0))-AVERAGE(F163:OFFSET(F163,1-$H$3,0)))*$H$2/100/10,0)*$H$4+2.5)/5)*5>$H$9,$H$9, INT((ROUND((AVERAGE(E163:OFFSET(E163,1-$H$3,0))-AVERAGE(F163:OFFSET(F163,1-$H$3,0)))*$H$2/100/10,0)*$H$4+2.5)/5)*5)+$H$6 -> 185 | S163: 59 | T163: 150 | U163: 8685 | V163: 4230 | AK163: 2017-08-31 | AL163: 夜間 | AM163: 19675 | AN163: 19735 | AO163: 19640 | AP163: 19670 | AQ163: 347942 | AR163: 6850173412
A164: 2013-08-19 | D164: 13640 | E164: 13760 | F164: 13575 | G164: 13760 | H164: =IF(INT((ROUND((AVERAGE(E164:OFFSET(E164,1-$H$3,0))-AVERAGE(F164:OFFSET(F164,1-$H$3,0)))*$H$2/100/10,0)*$H$4+2.5)/5)*5>$H$9,$H$9, INT((ROUND((AVERAGE(E164:OFFSET(E164,1-$H$3,0))-AVERAGE(F164:OFFSET(F164,1-$H$3,0)))*$H$2/100/10,0)*$H$4+2.5)/5)*5)+$H$6 -> 155 | S164: 42.75 | T164: 140 | U164: 8685 | V164: 3615 | AK164: 2017-08-31 | AL164: 日中 | AM164: 19585 | AN164: 19695 | AO164: 19570 | AP164: 19695 | AQ164: 419692 | AR164: 8242321860
A165: 2013-08-20 | D165: 13630 | E165: 13735 | F165: 13365 | G165: 13415 | H165: =IF(INT((ROUND((AVERAGE(E165:OFFSET(E165,1-$H$3,0))-AVERAGE(F165:OFFSET(F165,1-$H$3,0)))*$H$2/100/10,0)*$H$4+2.5)/5)*5>$H$9,$H$9, INT((ROUND((AVERAGE(E165:OFFSET(E165,1-$H$3,0))-AVERAGE(F165:OFFSET(F165,1-$H$3,0)))*$H$2/100/10,0)*$H$4+2.5)/5)*5)+$H$6 -> 165 | S165: 40 | T165: 140 | U165: 8685 | V165: 3550 | AK165: 2017-08-30 | AL165: 夜間 | AM165: 19555 | AN165: 19580 | AO165: 19490 | AP165: 19575 | AQ165: 298173 | AR165: 5822365694
A166: 2013-08-21 | D166: 13425 | E166: 13500 | F166: 13240 | G166: 13410 | H166: =IF(INT((ROUND((AVERAGE(E166:OFFSET(E166,1-$H$3,0))-AVERAGE(F166:OFFSET(F166,1-$H$3,0)))*$H$2/100/10,0)*$H$4+2.5)/5)*5>$H$9,$H$9, INT((ROUND((AVERAGE(E166:OFFSET(E166,1-$H$3,0))-AVERAGE(F166:OFFSET(F166,1-$H$3,0)))*$H$2/100/10,0)*$H$4+2.5)/5)*5)+$H$6 -> 165 | S166: 57.5 | T166: 230 | U166: 8675 | V166: 4325 | AK166: 2017-08-30 | AL166: 日中 | AM166: 19475 | AN166: 19530 | AO166: 19430 | AP166: 19520 | AQ166: 400952 | AR166: 7811249765
A167: 2013-08-22 | D167: 13310 | E167: 13450 | F167: 13220 | G167: 13365 | H167: =IF(INT((ROUND((AVERAGE(E167:OFFSET(E167,1-$H$3,0))-AVERAGE(F167:OFFSET(F167,1-$H$3,0)))*$H$2/100/10,0)*$H$4+2.5)/5)*5>$H$9,$H$9, INT((ROUND((AVERAGE(E167:OFFSET(E167,1-$H$3,0))-AVERAGE(F167:OFFSET(F167,1-$H$3,0)))*$H$2/100/10,0)*$H$4+2.5)/5)*5)+$H$6 -> 175 | S167: 57.25 | T167: 240 | U167: 8675 | V167: 4285 | AK167: 2017-08-29 | AL167: 夜間 | AM167: 19330 | AN167: 19500 | AO167: 19235 | AP167: 19470 | AQ167: 556062 | AR167: 10743763065
A168: 2013-08-23 | D168: 13625 | E168: 13775 | F168: 13585 | G168: 13695 | H168: =IF(INT((ROUND((AVERAGE(E168:OFFSET(E168,1-$H$3,0))-AVERAGE(F168:OFFSET(F168,1-$H$3,0)))*$H$2/100/10,0)*$H$4+2.5)/5)*5>$H$9,$H$9, INT((ROUND((AVERAGE(E168:OFFSET(E168,1-$H$3,0))-AVERAGE(F168:OFFSET(F168,1-$H$3,0)))*$H$2/100/10,0)*$H$4+2.5)/5)*5)+$H$6 -> 155 | S168: 54.5 | T168: 230 | U168: 8675 | V168: 4195 | AK168: 2017-08-29 | AL168: 日中 | AM168: 19270 | AN168: 19375 | AO168: 19260 | AP168: 19375 | AQ168: 536122 | AR168: 10355888650
A169: 2013-08-26 | D169: 13710 | E169: 13740 | F169: 13580 | G169: 13660 | H169: =IF(INT((ROUND((AVERAGE(E169:OFFSET(E169,1-$H$3,0))-AVERAGE(F169:OFFSET(F169,1-$H$3,0)))*$H$2/100/10,0)*$H$4+2.5)/5)*5>$H$9,$H$9, INT((ROUND((AVERAGE(E169:OFFSET(E169,1-$H$3,0))-AVERAGE(F169:OFFSET(F169,1-$H$3,0)))*$H$2/100/10,0)*$H$4+2.5)/5)*5)+$H$6 -> 145 | S169: 58.25 | T169: 140 | U169: 8675 | V169: 3955 | AK169: 2017-08-28 | AL169: 夜間 | AM169: 19405 | AN169: 19490 | AO169: 19400 | AP169: 19470 | AQ169: 195913 | AR169: 3809643976
A170: 2013-08-27 | D170: 13540 | E170: 13680 | F170: 13500 | G170: 13545 | H170: =IF(INT((ROUND((AVERAGE(E170:OFFSET(E170,1-$H$3,0))-AVERAGE(F170:OFFSET(F170,1-$H$3,0)))*$H$2/100/10,0)*$H$4+2.5)/5)*5>$H$9,$H$9, INT((ROUND((AVERAGE(E170:OFFSET(E170,1-$H$3,0))-AVERAGE(F170:OFFSET(F170,1-$H$3,0)))*$H$2/100/10,0)*$H$4+2.5)/5)*5)+$H$6 -> 145 | S170: 28.75 | T170: 130 | U170: 8660 | V170: 2740 | AK170: 2017-08-28 | AL170: 日中 | AM170: 19470 | AN170: 19520 | AO170: 19400 | AP170: 19435 | AQ170: 375475 | AR170: 7298352427
A171: 2013-08-28 | D171: 13200 | E171: 13400 | F171: 13185 | G171: 13360 | H171: =IF(INT((ROUND((AVERAGE(E171:OFFSET(E171,1-$H$3,0))-AVERAGE(F171:OFFSET(F171,1-$H$3,0)))*$H$2/100/10,0)*$H$4+2.5)/5)*5>$H$9,$H$9, INT((ROUND((AVERAGE(E171:OFFSET(E171,1-$H$3,0))-AVERAGE(F171:OFFSET(F171,1-$H$3,0)))*$H$2/100/10,0)*$H$4+2.5)/5)*5)+$H$6 -> 145 | S171: 59.25 | T171: 150 | U171: 8655 | V171: 4230 | AK171: 2017-08-25 | AL171: 夜間 | AM171: 19445 | AN171: 19530 | AO171: 19415 | AP171: 19465 | AQ171: 382383 | AR171: 7446248135
A172: 2013-08-29 | D172: 13385 | E172: 13475 | F172: 13365 | G172: 13460 | H172: =IF(INT((ROUND((AVERAGE(E172:OFFSET(E172,1-$H$3,0))-AVERAGE(F172:OFFSET(F172,1-$H$3,0)))*$H$2/100/10,0)*$H$4+2.5)/5)*5>$H$9,$H$9, INT((ROUND((AVERAGE(E172:OFFSET(E172,1-$H$3,0))-AVERAGE(F172:OFFSET(F172,1-$H$3,0)))*$H$2/100/10,0)*$H$4+2.5)/5)*5)+$H$6 -> 120 | S172: 60.5 | T172: 150 | U172: 8655 | V172: 4220 | AK172: 2017-08-25 | AL172: 日中 | AM172: 19405 | AN172: 19470 | AO172: 19365 | AP172: 19450 | AQ172: 361150 | AR172: 7015061495
A173: 2013-08-30 | D173: 13580 | E173: 13630 | F173: 13335 | G173: 13355 | H173: =IF(INT((ROUND((AVERAGE(E173:OFFSET(E173,1-$H$3,0))-AVERAGE(F173:OFFSET(F173,1-$H$3,0)))*$H$2/100/10,0)*$H$4+2.5)/5)*5>$H$9,$H$9, INT((ROUND((AVERAGE(E173:OFFSET(E173,1-$H$3,0))-AVERAGE(F173:OFFSET(F173,1-$H$3,0)))*$H$2/100/10,0)*$H$4+2.5)/5)*5)+$H$6 -> 120 | S173: 56.75 | T173: 230 | U173: 8655 | V173: 4220 | AK173: 2017-08-24 | AL173: 夜間 | AM173: 19355 | AN173: 19420 | AO173: 19320 | AP173: 19420 | AQ173: 285994 | AR173: 5538606650
A174: 2013-09-02 | D174: 13445 | E174: 13620 | F174: 13410 | G174: 13570 | H174: =IF(INT((ROUND((AVERAGE(E174:OFFSET(E174,1-$H$3,0))-AVERAGE(F174:OFFSET(F174,1-$H$3,0)))*$H$2/100/10,0)*$H$4+2.5)/5)*5>$H$9,$H$9, INT((ROUND((AVERAGE(E174:OFFSET(E174,1-$H$3,0))-AVERAGE(F174:OFFSET(F174,1-$H$3,0)))*$H$2/100/10,0)*$H$4+2.5)/5)*5)+$H$6 -> 120 | S174: 31.25 | T174: 130 | U174: 8650 | V174: 2775 | AK174: 2017-08-24 | AL174: 日中 | AM174: 19345 | AN174: 19415 | AO174: 19305 | AP174: 19325 | AQ174: 342024 | AR174: 6624341210
A175: 2013-09-03 | D175: 13745 | E175: 14000 | F175: 13745 | G175: 13995 | H175: =IF(INT((ROUND((AVERAGE(E175:OFFSET(E175,1-$H$3,0))-AVERAGE(F175:OFFSET(F175,1-$H$3,0)))*$H$2/100/10,0)*$H$4+2.5)/5)*5>$H$9,$H$9, INT((ROUND((AVERAGE(E175:OFFSET(E175,1-$H$3,0))-AVERAGE(F175:OFFSET(F175,1-$H$3,0)))*$H$2/100/10,0)*$H$4+2.5)/5)*5)+$H$6 -> 130 | S175: 50 | T175: 140 | U175: 8645 | V175: 4040 | AK175: 2017-08-23 | AL175: 夜間 | AM175: 19440 | AN175: 19445 | AO175: 19340 | AP175: 19360 | AQ175: 314853 | AR175: 6104862781
A176: 2013-09-04 | D176: 13870 | E176: 14095 | F176: 13835 | G176: 14095 | H176: =IF(INT((ROUND((AVERAGE(E176:OFFSET(E176,1-$H$3,0))-AVERAGE(F176:OFFSET(F176,1-$H$3,0)))*$H$2/100/10,0)*$H$4+2.5)/5)*5>$H$9,$H$9, INT((ROUND((AVERAGE(E176:OFFSET(E176,1-$H$3,0))-AVERAGE(F176:OFFSET(F176,1-$H$3,0)))*$H$2/100/10,0)*$H$4+2.5)/5)*5)+$H$6 -> 145 | S176: 58 | T176: 230 | U176: 8630 | V176: 4295 | AK176: 2017-08-23 | AL176: 日中 | AM176: 19510 | AN176: 19550 | AO176: 19385 | AP176: 19420 | AQ176: 392794 | AR176: 7643105689
A177: 2013-09-05 | D177: 14145 | E177: 14170 | F177: 13975 | G177: 14005 | H177: =IF(INT((ROUND((AVERAGE(E177:OFFSET(E177,1-$H$3,0))-AVERAGE(F177:OFFSET(F177,1-$H$3,0)))*$H$2/100/10,0)*$H$4+2.5)/5)*5>$H$9,$H$9, INT((ROUND((AVERAGE(E177:OFFSET(E177,1-$H$3,0))-AVERAGE(F177:OFFSET(F177,1-$H$3,0)))*$H$2/100/10,0)*$H$4+2.5)/5)*5)+$H$6 -> 145 | S177: 49.25 | T177: 140 | U177: 8625 | V177: 4020 | AK177: 2017-08-22 | AL177: 夜間 | AM177: 19380 | AN177: 19485 | AO177: 19330 | AP177: 19485 | AQ177: 274735 | AR177: 5329493481
A178: 2013-09-06 | D178: 14080 | E178: 14090 | F178: 13825 | G178: 13850 | H178: =IF(INT((ROUND((AVERAGE(E178:OFFSET(E178,1-$H$3,0))-AVERAGE(F178:OFFSET(F178,1-$H$3,0)))*$H$2/100/10,0)*$H$4+2.5)/5)*5>$H$9,$H$9, INT((ROUND((AVERAGE(E178:OFFSET(E178,1-$H$3,0))-AVERAGE(F178:OFFSET(F178,1-$H$3,0)))*$H$2/100/10,0)*$H$4+2.5)/5)*5)+$H$6 -> 145 | S178: 48.75 | T178: 140 | U178: 8620 | V178: 3920 | AK178: 2017-08-22 | AL178: 日中 | AM178: 19335 | AN178: 19420 | AO178: 19330 | AP178: 19345 | AQ178: 342875 | AR178: 6643817037
A179: 2013-09-09 | D179: 14330 | E179: 14350 | F179: 14110 | G179: 14220 | H179: =IF(INT((ROUND((AVERAGE(E179:OFFSET(E179,1-$H$3,0))-AVERAGE(F179:OFFSET(F179,1-$H$3,0)))*$H$2/100/10,0)*$H$4+2.5)/5)*5>$H$9,$H$9, INT((ROUND((AVERAGE(E179:OFFSET(E179,1-$H$3,0))-AVERAGE(F179:OFFSET(F179,1-$H$3,0)))*$H$2/100/10,0)*$H$4+2.5)/5)*5)+$H$6 -> 155 | S179: 60.75 | T179: 150 | U179: 8610 | V179: 4210 | AK179: 2017-08-21 | AL179: 夜間 | AM179: 19320 | AN179: 19370 | AO179: 19250 | AP179: 19340 | AQ179: 401157 | AR179: 7745132675
A180: 2013-09-10 | D180: 14325 | E180: 14455 | F180: 14285 | G180: 14395 | H180: =IF(INT((ROUND((AVERAGE(E180:OFFSET(E180,1-$H$3,0))-AVERAGE(F180:OFFSET(F180,1-$H$3,0)))*$H$2/100/10,0)*$H$4+2.5)/5)*5>$H$9,$H$9, INT((ROUND((AVERAGE(E180:OFFSET(E180,1-$H$3,0))-AVERAGE(F180:OFFSET(F180,1-$H$3,0)))*$H$2/100/10,0)*$H$4+2.5)/5)*5)+$H$6 -> 145 | S180: 49.5 | T180: 140 | U180: 8600 | V180: 4050 | AK180: 2017-08-21 | AL180: 日中 | AM180: 19490 | AN180: 19495 | AO180: 19345 | AP180: 19355 | AQ180: 370444 | AR180: 7185538604
A181: 2013-09-11 | D181: 14510 | E181: 14570 | F181: 14410 | G181: 14445 | H181: =IF(INT((ROUND((AVERAGE(E181:OFFSET(E181,1-$H$3,0))-AVERAGE(F181:OFFSET(F181,1-$H$3,0)))*$H$2/100/10,0)*$H$4+2.5)/5)*5>$H$9,$H$9, INT((ROUND((AVERAGE(E181:OFFSET(E181,1-$H$3,0))-AVERAGE(F181:OFFSET(F181,1-$H$3,0)))*$H$2/100/10,0)*$H$4+2.5)/5)*5)+$H$6 -> 145 | S181: 29.75 | T181: 130 | U181: 8600 | V181: 2640 | AK181: 2017-08-18 | AL181: 夜間 | AM181: 19410 | AN181: 19545 | AO181: 19310 | AP181: 19455 | AQ181: 551751 | AR181: 10709793530
A182: 2013-09-12 | D182: 14400 | E182: 14460 | F182: 14320 | G182: 14330 | H182: =IF(INT((ROUND((AVERAGE(E182:OFFSET(E182,1-$H$3,0))-AVERAGE(F182:OFFSET(F182,1-$H$3,0)))*$H$2/100/10,0)*$H$4+2.5)/5)*5>$H$9,$H$9, INT((ROUND((AVERAGE(E182:OFFSET(E182,1-$H$3,0))-AVERAGE(F182:OFFSET(F182,1-$H$3,0)))*$H$2/100/10,0)*$H$4+2.5)/5)*5)+$H$6 -> 130 | S182: 50.25 | T182: 140 | U182: 8595 | V182: 4020 | AK182: 2017-08-18 | AL182: 日中 | AM182: 19470 | AN182: 19525 | AO182: 19410 | AP182: 19440 | AQ182: 443845 | AR182: 8638397635
A183: 2013-09-13 | D183: 14275 | E183: 14380 | F183: 14165 | G183: 14340 | H183: =IF(INT((ROUND((AVERAGE(E183:OFFSET(E183,1-$H$3,0))-AVERAGE(F183:OFFSET(F183,1-$H$3,0)))*$H$2/100/10,0)*$H$4+2.5)/5)*5>$H$9,$H$9, INT((ROUND((AVERAGE(E183:OFFSET(E183,1-$H$3,0))-AVERAGE(F183:OFFSET(F183,1-$H$3,0)))*$H$2/100/10,0)*$H$4+2.5)/5)*5)+$H$6 -> 130 | S183: 31.5 | T183: 130 | U183: 8595 | V183: 2730 | AK183: 2017-08-17 | AL183: 夜間 | AM183: 19690 | AN183: 19695 | AO183: 19470 | AP183: 19485 | AQ183: 443807 | AR183: 8704342855
A184: 2013-09-17 | D184: 14395 | E184: 14425 | F184: 14255 | G184: 14290 | H184: =IF(INT((ROUND((AVERAGE(E184:OFFSET(E184,1-$H$3,0))-AVERAGE(F184:OFFSET(F184,1-$H$3,0)))*$H$2/100/10,0)*$H$4+2.5)/5)*5>$H$9,$H$9, INT((ROUND((AVERAGE(E184:OFFSET(E184,1-$H$3,0))-AVERAGE(F184:OFFSET(F184,1-$H$3,0)))*$H$2/100/10,0)*$H$4+2.5)/5)*5)+$H$6 -> 120 | S184: 57.75 | T184: 230 | U184: 8585 | V184: 4300 | AK184: 2017-08-17 | AL184: 日中 | AM184: 19690 | AN184: 19725 | AO184: 19660 | AP184: 19680 | AQ184: 265313 | AR184: 5224104635
A185: 2013-09-18 | D185: 14360 | E185: 14575 | F185: 14345 | G185: 14440 | H185: =IF(INT((ROUND((AVERAGE(E185:OFFSET(E185,1-$H$3,0))-AVERAGE(F185:OFFSET(F185,1-$H$3,0)))*$H$2/100/10,0)*$H$4+2.5)/5)*5>$H$9,$H$9, INT((ROUND((AVERAGE(E185:OFFSET(E185,1-$H$3,0))-AVERAGE(F185:OFFSET(F185,1-$H$3,0)))*$H$2/100/10,0)*$H$4+2.5)/5)*5)+$H$6 -> 120 | S185: 58.25 | T185: 160 | U185: 8580 | V185: 4200 | AK185: 2017-08-16 | AL185: 夜間 | AM185: 19775 | AN185: 19795 | AO185: 19680 | AP185: 19720 | AQ185: 228057 | AR185: 4505510330
A186: 2013-09-19 | D186: 14625 | E186: 14710 | F186: 14520 | G186: 14685 | H186: =IF(INT((ROUND((AVERAGE(E186:OFFSET(E186,1-$H$3,0))-AVERAGE(F186:OFFSET(F186,1-$H$3,0)))*$H$2/100/10,0)*$H$4+2.5)/5)*5>$H$9,$H$9, INT((ROUND((AVERAGE(E186:OFFSET(E186,1-$H$3,0))-AVERAGE(F186:OFFSET(F186,1-$H$3,0)))*$H$2/100/10,0)*$H$4+2.5)/5)*5)+$H$6 -> 120 | S186: 57.25 | T186: 140 | U186: 8575 | V186: 3985 | AK186: 2017-08-16 | AL186: 日中 | AM186: 19730 | AN186: 19760 | AO186: 19700 | AP186: 19725 | AQ186: 255702 | AR186: 5044786740
A187: 2013-09-20 | D187: 14735 | E187: 14760 | F187: 14640 | G187: 14685 | H187: =IF(INT((ROUND((AVERAGE(E187:OFFSET(E187,1-$H$3,0))-AVERAGE(F187:OFFSET(F187,1-$H$3,0)))*$H$2/100/10,0)*$H$4+2.5)/5)*5>$H$9,$H$9, INT((ROUND((AVERAGE(E187:OFFSET(E187,1-$H$3,0))-AVERAGE(F187:OFFSET(F187,1-$H$3,0)))*$H$2/100/10,0)*$H$4+2.5)/5)*5)+$H$6 -> 110 | S187: 58.5 | T187: 160 | U187: 8570 | V187: 4190 | AK187: 2017-08-15 | AL187: 夜間 | AM187: 19730 | AN187: 19820 | AO187: 19680 | AP187: 19740 | AQ187: 308995 | AR187: 6098963425
A188: 2013-09-24 | D188: 14575 | E188: 14715 | F188: 14540 | G188: 14675 | H188: =IF(INT((ROUND((AVERAGE(E188:OFFSET(E188,1-$H$3,0))-AVERAGE(F188:OFFSET(F188,1-$H$3,0)))*$H$2/100/10,0)*$H$4+2.5)/5)*5>$H$9,$H$9, INT((ROUND((AVERAGE(E188:OFFSET(E188,1-$H$3,0))-AVERAGE(F188:OFFSET(F188,1-$H$3,0)))*$H$2/100/10,0)*$H$4+2.5)/5)*5)+$H$6 -> 110 | S188: 57.5 | T188: 240 | U188: 8565 | V188: 4255 | AK188: 2017-08-15 | AL188: 日中 | AM188: 19645 | AN188: 19815 | AO188: 19640 | AP188: 19735 | AQ188: 443165 | AR188: 8753055585
A189: 2013-09-25 | D189: 14685 | E189: 14710 | F189: 14560 | G189: 14565 | H189: =IF(INT((ROUND((AVERAGE(E189:OFFSET(E189,1-$H$3,0))-AVERAGE(F189:OFFSET(F189,1-$H$3,0)))*$H$2/100/10,0)*$H$4+2.5)/5)*5>$H$9,$H$9, INT((ROUND((AVERAGE(E189:OFFSET(E189,1-$H$3,0))-AVERAGE(F189:OFFSET(F189,1-$H$3,0)))*$H$2/100/10,0)*$H$4+2.5)/5)*5)+$H$6 -> 110 | S189: 41 | T189: 140 | U189: 8565 | V189: 3580 | AK189: 2017-08-14 | AL189: 夜間 | AM189: 19545 | AN189: 19605 | AO189: 19525 | AP189: 19600 | AQ189: 236298 | AR189: 4623323500
A190: 2013-09-26 | D190: 14540 | E190: 14855 | F190: 14420 | G190: 14830 | H190: =IF(INT((ROUND((AVERAGE(E190:OFFSET(E190,1-$H$3,0))-AVERAGE(F190:OFFSET(F190,1-$H$3,0)))*$H$2/100/10,0)*$H$4+2.5)/5)*5>$H$9,$H$9, INT((ROUND((AVERAGE(E190:OFFSET(E190,1-$H$3,0))-AVERAGE(F190:OFFSET(F190,1-$H$3,0)))*$H$2/100/10,0)*$H$4+2.5)/5)*5)+$H$6 -> 130 | S190: 57 | T190: 230 | U190: 8560 | V190: 4220 | AK190: 2017-08-14 | AL190: 日中 | AM190: 19480 | AN190: 19580 | AO190: 19460 | AP190: 19530 | AQ190: 417316 | AR190: 8147901415
A191: 2013-09-27 | D191: 14795 | E191: 14840 | F191: 14710 | G191: 14745 | H191: =IF(INT((ROUND((AVERAGE(E191:OFFSET(E191,1-$H$3,0))-AVERAGE(F191:OFFSET(F191,1-$H$3,0)))*$H$2/100/10,0)*$H$4+2.5)/5)*5>$H$9,$H$9, INT((ROUND((AVERAGE(E191:OFFSET(E191,1-$H$3,0))-AVERAGE(F191:OFFSET(F191,1-$H$3,0)))*$H$2/100/10,0)*$H$4+2.5)/5)*5)+$H$6 -> 130 | S191: 61 | T191: 150 | U191: 8560 | V191: 4205 | AK191: 2017-08-10 | AL191: 夜間 | AM191: 19710 | AN191: 19715 | AO191: 19350 | AP191: 19350 | AQ191: 453677 | AR191: 8864770520
A192: 2013-09-30 | D192: 14510 | E192: 14635 | F192: 14430 | G192: 14485 | H192: =IF(INT((ROUND((AVERAGE(E192:OFFSET(E192,1-$H$3,0))-AVERAGE(F192:OFFSET(F192,1-$H$3,0)))*$H$2/100/10,0)*$H$4+2.5)/5)*5>$H$9,$H$9, INT((ROUND((AVERAGE(E192:OFFSET(E192,1-$H$3,0))-AVERAGE(F192:OFFSET(F192,1-$H$3,0)))*$H$2/100/10,0)*$H$4+2.5)/5)*5)+$H$6 -> 130 | S192: 50.5 | T192: 140 | U192: 8560 | V192: 4020 | AK192: 2017-08-10 | AL192: 日中 | AM192: 19780 | AN192: 19815 | AO192: 19665 | AP192: 19710 | AQ192: 413703 | AR192: 8163594505
A193: 2013-10-01 | D193: 14530 | E193: 14670 | F193: 14475 | G193: 14510 | H193: =IF(INT((ROUND((AVERAGE(E193:OFFSET(E193,1-$H$3,0))-AVERAGE(F193:OFFSET(F193,1-$H$3,0)))*$H$2/100/10,0)*$H$4+2.5)/5)*5>$H$9,$H$9, INT((ROUND((AVERAGE(E193:OFFSET(E193,1-$H$3,0))-AVERAGE(F193:OFFSET(F193,1-$H$3,0)))*$H$2/100/10,0)*$H$4+2.5)/5)*5)+$H$6 -> 130 | S193: 58 | T193: 140 | U193: 8560 | V193: 3965 | AK193: 2017-08-09 | AL193: 夜間 | AM193: 19740 | AN193: 19770 | AO193: 19670 | AP193: 19770 | AQ193: 317143 | AR193: 6249621125
A194: 2013-10-02 | D194: 14495 | E194: 14590 | F194: 14120 | G194: 14190 | H194: =IF(INT((ROUND((AVERAGE(E194:OFFSET(E194,1-$H$3,0))-AVERAGE(F194:OFFSET(F194,1-$H$3,0)))*$H$2/100/10,0)*$H$4+2.5)/5)*5>$H$9,$H$9, INT((ROUND((AVERAGE(E194:OFFSET(E194,1-$H$3,0))-AVERAGE(F194:OFFSET(F194,1-$H$3,0)))*$H$2/100/10,0)*$H$4+2.5)/5)*5)+$H$6 -> 165 | S194: 62.75 | T194: 140 | U194: 8550 | V194: 4000 | AK194: 2017-08-09 | AL194: 日中 | AM194: 19930 | AN194: 19930 | AO194: 19655 | AP194: 19745 | AQ194: 40174 | AR194: 793846518
A195: 2013-10-03 | D195: 14145 | E195: 14230 | F195: 14085 | G195: 14135 | H195: =IF(INT((ROUND((AVERAGE(E195:OFFSET(E195,1-$H$3,0))-AVERAGE(F195:OFFSET(F195,1-$H$3,0)))*$H$2/100/10,0)*$H$4+2.5)/5)*5>$H$9,$H$9, INT((ROUND((AVERAGE(E195:OFFSET(E195,1-$H$3,0))-AVERAGE(F195:OFFSET(F195,1-$H$3,0)))*$H$2/100/10,0)*$H$4+2.5)/5)*5)+$H$6 -> 155 | S195: 61.25 | T195: 150 | U195: 8545 | V195: 4205 | AK195: 2017-08-08 | AL195: 夜間 | AM195: 19995 | AN195: 20040 | AO195: 19945 | AP195: 19955 | AQ195: 8492 | AR195: 169738885
A196: 2013-10-04 | D196: 14050 | E196: 14160 | F196: 13940 | G196: 14035 | H196: =IF(INT((ROUND((AVERAGE(E196:OFFSET(E196,1-$H$3,0))-AVERAGE(F196:OFFSET(F196,1-$H$3,0)))*$H$2/100/10,0)*$H$4+2.5)/5)*5>$H$9,$H$9, INT((ROUND((AVERAGE(E196:OFFSET(E196,1-$H$3,0))-AVERAGE(F196:OFFSET(F196,1-$H$3,0)))*$H$2/100/10,0)*$H$4+2.5)/5)*5)+$H$6 -> 165 | S196: 58.75 | T196: 160 | U196: 8540 | V196: 4190 | AK196: 2017-08-08 | AL196: 日中 | AM196: 20050 | AN196: 20070 | AO196: 19970 | AP196: 20000 | AQ196: 15175 | AR196: 303609341
A197: 2013-10-07 | D197: 14070 | E197: 14085 | F197: 13825 | G197: 13855 | H197: =IF(INT((ROUND((AVERAGE(E197:OFFSET(E197,1-$H$3,0))-AVERAGE(F197:OFFSET(F197,1-$H$3,0)))*$H$2/100/10,0)*$H$4+2.5)/5)*5>$H$9,$H$9, INT((ROUND((AVERAGE(E197:OFFSET(E197,1-$H$3,0))-AVERAGE(F197:OFFSET(F197,1-$H$3,0)))*$H$2/100/10,0)*$H$4+2.5)/5)*5)+$H$6 -> 155 | S197: 57.5 | T197: 140 | U197: 8525 | V197: 3985 | AK197: 2017-08-07 | AL197: 夜間 | AM197: 20060 | AN197: 20070 | AO197: 20035 | AP197: 20070 | AQ197: 3417 | AR197: 68512020
A198: 2013-10-08 | D198: 13805 | E198: 13940 | F198: 13750 | G198: 13925 | H198: =IF(INT((ROUND((AVERAGE(E198:OFFSET(E198,1-$H$3,0))-AVERAGE(F198:OFFSET(F198,1-$H$3,0)))*$H$2/100/10,0)*$H$4+2.5)/5)*5>$H$9,$H$9, INT((ROUND((AVERAGE(E198:OFFSET(E198,1-$H$3,0))-AVERAGE(F198:OFFSET(F198,1-$H$3,0)))*$H$2/100/10,0)*$H$4+2.5)/5)*5)+$H$6 -> 155 | S198: 57.25 | T198: 150 | U198: 8520 | V198: 4290 | AK198: 2017-08-07 | AL198: 日中 | AM198: 20070 | AN198: 20085 | AO198: 20040 | AP198: 20050 | AQ198: 6183 | AR198: 124035205
A199: 2013-10-09 | D199: 13785 | E199: 14065 | F199: 13765 | G199: 14065 | H199: =IF(INT((ROUND((AVERAGE(E199:OFFSET(E199,1-$H$3,0))-AVERAGE(F199:OFFSET(F199,1-$H$3,0)))*$H$2/100/10,0)*$H$4+2.5)/5)*5>$H$9,$H$9, INT((ROUND((AVERAGE(E199:OFFSET(E199,1-$H$3,0))-AVERAGE(F199:OFFSET(F199,1-$H$3,0)))*$H$2/100/10,0)*$H$4+2.5)/5)*5)+$H$6 -> 165 | S199: 62.75 | T199: 150 | U199: 8520 | V199: 4265 | AK199: 2017-08-04 | AL199: 夜間 | AM199: 19965 | AN199: 20070 | AO199: 19960 | AP199: 20050 | AQ199: 9676 | AR199: 193714756
A200: 2013-10-10 | D200: 14110 | E200: 14210 | F200: 14080 | G200: 14185 | H200: =IF(INT((ROUND((AVERAGE(E200:OFFSET(E200,1-$H$3,0))-AVERAGE(F200:OFFSET(F200,1-$H$3,0)))*$H$2/100/10,0)*$H$4+2.5)/5)*5>$H$9,$H$9, INT((ROUND((AVERAGE(E200:OFFSET(E200,1-$H$3,0))-AVERAGE(F200:OFFSET(F200,1-$H$3,0)))*$H$2/100/10,0)*$H$4+2.5)/5)*5)+$H$6 -> 155 | S200: 63 | T200: 140 | U200: 8520 | V200: 4000 | AK200: 2017-08-04 | AL200: 日中 | AM200: 19960 | AN200: 19985 | AO200: 19940 | AP200: 19965 | AQ200: 7765 | AR200: 154982400
... 1280 more rows

Sheet 取説
A1: このプログラムは「17年負けなし」様より配信されるメールを自動受信し、発注システムにフラッグを転送、
A2: 以降タイマー動作により 発注、返済、ヒットしなければ、不成引け成を行うプログラムです。
A3: 動作環境は、ＷＩＮ７・8・10 エクセル2007・10・13 それと、アウトルックが必要です。アウトルックはインストールされている最上位がセットアップされている必要があります。
A4: また、「１７年負けなし日経225」様 有料の登録済みにての、メール配信が必要です。（注11行）
A5: １７年負けなし日経225 様 サイトのご紹介
A6: 有料会員登録フォーム
A7: http://225.jouhou-salad.com/memberform/
A8: 会員規約
A9: http://225.jouhou-salad.com/kiyaku/
A11: 「１７年負けなし日経225」様は登録することにより 毎、月初め1週間 ８時過ぎに無料の当日のフラッグの配信が有ります。１週間以降は18時ごろの配信に代わります
A12: このプログラムは初の起動後２０日無料で使用可能です。この、双方の無料期間に色々お試しいただけるようになっています。
A15: 何時ものお約束の通り、ＰＣ、ネット使用、予測の配信など、不確定要素が有りますので、利益を約束するものではありません。あくまで、ご使用されるお客様に最終判断にゆだねられます。
A16: また、このプログラムの動作保証は、お試し期間の環境についてのみ保証されます。つまり、３５日動いていたわけですから、それ以降のＰＣのスペック的変更について
A17: ご相談には乗れますが、保証は致しかねます。（マイクロのバージョンアップなど対処不可能な部分があり得るかも。です。）
A19: プログラム起動は、朝８:１5までにお願します。また、必ず、朝の起動が必要です。（朝の終了して その後すぐの再起動でも構いません。出来ればエクセルの再起動が好ましい）
A21: タイマースケジュール
A22: プログラムの起動は 8：15 までにお願いします。それ以降の起動では 朝の手配は出ません。前日の夜は意味がありません。やるなら 0：00以降です。
A23: その時は、手作業での注文はそれぞれ可能ですが、それ以降の返済、不成引け成などタイマー動作は行われません。
A24: このプログラムは 朝 8：40 に新規オーダーがでます。8：50に利食い、損切のダブルオーダー（名称は各社色々） そして、 15：10に不成引け成のオーダーが出ます。
A25: どちらかにヒットしていて、建て玉が無くても、15：10のジョブは行われますが、実害は有りません。
A26: 夕方 16：20に 今日の結果がデータシートに書き込まれます。以上で1日のスケジュールは終わりです。以降いつでもソフト終了、電源を切っていただけます。
A28: メール受信はプログラムのタイマースケジュールで、8:18:30から 8：38まで５分おきに確認。受信完了で以降キャンセル。自動注文に売り買いのセットが行われます。
A29: 「１７年負けなし」様の配信スケジュールは 朝8：15 の予定です。
A30: データシートのフラッグは -1 で売り。１ で買い指示です。0で見送り。自動発注フォームは言葉のとおりのＯＰボタンです。
A31: 注文のタイムスケジュールは、基本データシートの「225手配・設定」から、基本情報・・・設定情報のスケジュール欄です。
A32: 不都合が有るときは １．２分の範囲で調整は可能です。15：10を 早めると、純粋の引け価格にはなりません。それが良い時もありますが・・・
A33: すべて、あまり ぎりぎりの時間を狙うと 注文が通らないケースがあり得ます。
A35: 基本情報ほか
A36: 基本データシートの「225手配」から、「基本情報」 と 「設定情報」 を設定します。
A37: 限月、ミニ・ラージ、枚数は 設定の必要があります。変更は タイマー起動の前に行ってください。
A38: 運用上の限月は自動では進みません。警告が出ますので、適宜処理ください。SQ日は 荒れるので、その前から進めるなど・・・
A39: データ取得のＷＥＢページは、期近ですので、ＳＱ避けて、限月進めると、この損益のデータと、証券会社実データと微妙にずれることが有ります。
A40: それと、証券会社情報ですが、口座の無いところのデータを抹消しないでください。記録が崩れて、上書きが上手く行かないケースがあり得ます。
A41: ある期間、注文をスルーするなど時は、基本設定-設定情報でタイマーのチェックを外します。
A42: 日銀発表など、今日は参戦したく無い時は、基本シートの 発注オプションボタンでＯＦＦが可能です。タイマーは起動しますが、発注コマンドの所でスルーされます。
A43: ただし、このボタンは実行モードで 必ず 発注ＯＮ。 遅刻、メンテナンスで 発注ＯＦＦ となります。
A45: 設定情報のメール送信ですが、不明の折はプロバイダーから来ている、書面をご利用ください。
A46: どうでも、上手く行かない時は、「メール送らない」にチェックをお願いします。メール送信テストなしに不通になるとプログラムが止まります。かならずメール送信テストはお願いします。
A47: 証券会社からの約定通知とは別のアドレス設定が宜しいかと。証券会社は約定のみの通知のハズです。このメールは手配で出ます。
A49: 発注テストは、このエクセルを 右一杯に、225手配コマンドが見える位置まで、ＩＥを起こして、左一杯まで動かして、閉じる。
A50: 「225手配」叩く。セットの済んだ証券会社の発注数を、証拠金不足に成るような数値にセット、で、新規発注コマンドを叩く。
A51: ＩＥが起きて、動作が確認できるはずです。最終、「証拠金不足です」が出れば、ＯＫです。ただし、時間を置いて、もう一度トライしますので、ＩＥ、このソフトとも、閉じないで２-３分放置ください
A52: これで、自動発注のテストは完了です。実行に差し支えないハズです。
A54: このソフトは従来のＩＥを使います。ＷＩＮ１０のＩＥは（標準のブラウザーはＥｄｇｅ）すべてのプログラム、「ＷＩＮ」の「アクセサリー」の、その中にあります。
A55: 右クリックで、次のコマンドが「その他」、さらに、「ファイルの場所を開く」。シュートカット作成。出来たのをディスクトップにつまみ出す。必要ならばですが・・・
A57: ダウンロードファイルの完成
A58: １７年様のお試しは 登録すれば、月初め １週間無償でメール配信されます。
A59: このファイルのダウンロードと実際の運用日とギャップがあり、データを埋める必要があります。
A60: http://225.jouhou-salad.com/
A61: 過去データは上記「１７年」様にあります、１日前に戻るには、下段の「以前の記事」で 順次遡れます。欠落期間の月日と売り買いを記録してください
A62: データシート上段の「データ追加」コマンドをクリック（売り買いはどちらでも良いです。今は）。最新月日まで日足と、セル式でシートは埋まります。
A63: その後、Ｉ列の 手配 を１７年様のデータで 埋めます。
A64: これで、直近までのシートが完成です。
A65: システム取引は、愚直に、途切れず、実行することが肝心で、適当な判断で実行を取りやめたりすると過去データとの整合性が崩れます。
A66: それで、システムの判断をされることを最も避けたい事象です。
A68: 当方も一番新しいファイルを 月末に２８日当たり上げたいと思いますので、その辺りにダウンロードしていただくと、手間が省けるかと思います。
A70: 実行
A71: 基本は朝の起動のみです。実行モード（タイマーセットアップ）か、メンテナンス・モード（すべてのタイマーセットなし） を尋ねられます。
A72: 基本データ Ｆ－１０ にタイマーセットアップの記録が残ります。
A73: プログラムのアクションの記録は Ｈ－１０ から下に順次残ります。新しい日付の起動で横にずれます。目的はバグ他、プログラムの停止等の情報を得るためです。
A74: Ｃ－１３に 現在の状況が表示されます。タイマー記録が正常で待機中なら 無問題かと思います。
A75: タイマー待機中は、ＯＳは仕事をしていないと判断する様ですので、コンパネ---電源管理で、「スリープ」は 「なし」 でお願いします。モニターを消しても結構かと。
A77: エラー発生について
A78: 起こり得るのは、タイマー動作時間（各注文時間、集計作業）の時に、手作業でエクセルを弄っていて、タイマー起動時間にジョブが実行されない。
A79: 同じく、ＯＳの仕事が入って、タスクが流れる。などです。ＯＳのアップデートですが、やるなら 夜間の使わない時に時間指定してください。
A80: 日足データ取得ＨＰ（人様のＨＰですので）の更新がタイマー動作より遅れて、取得でき無い時も、起こります。データ取得は 日中データを16：00に行います。
A81: この時は、翌朝にデータ追加コマンドで対処可能です。出来れば、上書き保存・終了。エクセル再起動が宜しいかと。
A82: アウトルックのバージョンはインストールされている中で一番上位が設定完了、動作することが必要です。
A83: ＯＳのアップデートが未完了の折は、VBAなどのエラーになる可能性が有りますが、下記のアドレス手順で、難しい部分を削除することで解決するかもしれません。
A84: https://support.microsoft.com/ja-jp/kb/2721352
A86: エラー復旧
A87: 当日、もしくは前日のデータ復旧は、データシートの「データ追加」で 当日１６時以降から翌8：00まで WEBから日足データ取得・転送で可能です。
A88: 但し、売り買い指標 Ｂ－６ は 手作業での入力が必要です。ボタンを押す前に入力下さい
A89: コマンドボタンによる取得は １日が基本で、日数が ２日以上にわたるときは、Ｉ列 手配に関しての入力は手作業になります。
A90: ＷＥＢデータの取得は、データシート表示。エクセル上部コマンドの「データ」クリック。その中の「すべて更新」クリック。少し時間が必要ですが１０秒以内でしょうか
A91: データシート ＡＫ列以降に新しい日足が取れます。
A92: データ追加コマンドも不調な折には、このデータをもとにデータシートのＡ－Ｇをまず 埋めてください。
A93: そして、セル式が埋まっている 行の ＨからＱ までを コピーでとり込み、空白のＨから必要な下まで選択反転させ、貼り付けます。
A94: メールの過去データから Ｉ列に 日付を合わせてデータを手入力します。売り＝-1、買い＝+1 見送り＝0 です
A95: これで、セルは再計算され、シートは完成します。
A97: データ欠落が有ると、朝の起動時にクレームが付きます。埋める必要があります。
A98: システム取引は継続が原則ですので、発注するしないは別として、プログラムとしては埋める必要があると考えています。
A99: 年度が替わると、データシート Ａ列を埋める必要があります。証券会社等のスケジュール表から埋めてください
A100: メールでの当方宛請求、もしくは、前日のシャットダウンの折に 明日の日付のみ 手入力も便宜的に ＯＫです。
A102: このプログラムは３５日お試しで使用可能です。それ以降はパスワードが必要となります。
A103: 朝の起動時に ＩＤが毎回出ますがご容赦。宜しければ１週間くらいでご送金の準備を、１０日辺りにそのＩＤをコピペ、 メールにてお送りください。
A104: ご入金の確認が取れ次第パスワードをお送りします。３５日に成ると、パスワード入力画面が出ますので、当方からのメールからコピペでお願いします。
A105: スケジュールが狂いますと、データが途切れます。その折は、上記のデータ追加の要領でお願いします
A107: パスワード入力後は、ＩＤ他、一切出ません。実行かメンテナンスかの 質問だけです。
A108: このＩＤとパスワードは１台のマシンについて、有効で、マシンの改変や、壊れた等で別マシンの折はまた、ＩＤがでます。
A109: プログラムは何処でも動きますので、状況、新しいＩＤをお教えください。出来るだけ善処します。
A111: 自動発注プログラムのみ使う時は、ＷＥＢでダウンロード、同じマシンならＩＤ、パスＷとも共通ですから、使用可能です。
A112: この時は、証券会社はかならず、別のこと（建て玉管理していませんので）。タイムスケジュールも ２分ほどずらせてください。
A115: 新参者 ｂｙ 奥田 晃三
A116: takamo@qg8.so-net.ne.jp
A117: 「17年負けなし」様より、お名前の使用許可のみ頂いております。それ以外の損失の責はもちろん、このエクセルシートの数値、引用などは当方にあります。
A118: 特に、日々の損益は１７年様は ラージ。当方のシートはミニです。微妙に異なるかもしれません。
A120: 参照 パラメーターについて
A121: Ｂ－１４ に 数値が入っていますが、８:１８分のアウトルックの受信総数の数値です。基本、一日分程度のメール数にセットしてください。
A122: 日付で今日の１７年メールを識別していますので、無問題ですが、３日分も４日分も読み込んでもしょうがないでしょう・・・と言った意味です。
A123: ゴミメールが多い方は適宜な数値に。
A125: １７年さんは、損切について必要との立場ですが、具体的に 数値を述べられていません。（昨年のレターで +-190とメールが有りました）
A126: 当方の他のロジックからの転用ですが Ｈ列に算出データの記載があります。
A127: 過去7日ほどの値動きから算出しています。
A128: Ｈ－２が基本数値ですが お勧めが 60あたりが有ります。そして Ｈ－９が 最大ロスカット値です。場が荒れると、計算式ではもっと大きくなりますがＭＡＸ値で押さえます。
A129: Ｋ列が通年の成績。Ｌが年単位の積算利益です。
A130: コマンドＬＣからパラメーターのシュミレーションが実行出来。結果はＳ－１００からです。（ソートしてあります）
A131: 通年のＭＡＸを取るか １６年のＭＡＸとるか。なやましいところですが
A132: とりあえず 58.25 と ＭＡＸ230を代入してあります。
A133: Ｈ－９が ＭＡＸの損切値です。指示の無いサイトでは３００辺りを使うことが多いです。
A134: Ｈ－２、Ｈ－９とも300で 毎日３００の損切となります。
A135: こうした、パラメーターの算出は、通年のＭＡＸを狙うか、最近の数年を狙うか、永遠の課題です。
A137: 最大ドローダウンの考察は，Ｓ－６に、Ｔ－２のコマンドです。
A138: 月次の成績表は Ｘ－２０からです。
A140: 毎日の過去の手配データ（１４年以前）が入手出来たときは、シートにデータを追加可能ですが
A141: 空白の行を挿入しないでください。１３年までなら、手配 Ｉ 列に手作業追加、セル式は 下から上へのコピーで可能です。
A142: それ以前の１２年前ならば、追加データの行数を確認し、今のデータ１０行から、一番下まで、追加行数分コピーで下に下げます。
A143: そして、１０行から過去データを(A-G間)2013/01/04の上まで 埋め込みます。
A144: セル式は前のままで使えます。Ｉ 列の 手配は旧の日付データとは 異なりますから、古い月日の入手データを手作業で埋めます。
A145: 全てのコマンドで、再シュミレーションが行えます。

Sheet config_matsui (hidden)
A1: 999999 | B1: goto | C1: http://pocket.matsui.co.jp/member/servlet/Login | F1: 999999 | G1: goto | H1: http://pocket.matsui.co.jp/member/servlet/Login | K1: 999999 | L1: goto | M1: http://pocket.matsui.co.jp/member/servlet/Login | P1: 999999 | Q1: goto | R1: http://pocket.matsui.co.jp/member/servlet/Login
A2: 999999 | B2: SetFromForm | C2: clientCD | D2: clientCD | F2: 999999 | G2: SetFromForm | H2: clientCD | I2: clientCD | K2: 999999 | L2: SetFromForm | M2: clientCD | N2: clientCD | P2: 999999 | Q2: SetFromForm | R2: clientCD | S2: clientCD
A3: 999999 | B3: SetFromForm | C3: passwd | D3: passwd | F3: 999999 | G3: SetFromForm | H3: passwd | I3: passwd | K3: 999999 | L3: SetFromForm | M3: passwd | N3: passwd | P3: 999999 | Q3: SetFromForm | R3: passwd | S3: passwd
A4: 999999 | B4: goto | D4: 送信 | F4: 999999 | G4: goto | I4: 送信 | K4: 999999 | L4: goto | N4: 送信 | P4: 999999 | Q4: goto | S4: 送信
A5: 999999 | B5: link | D5: /MbOpMenu | F5: 999999 | G5: link | I5: /MbOpMenu | K5: 999999 | L5: link | N5: /MbOpMenu | P5: 999999 | Q5: link | S5: /MbOpMenu
A6: 999999 | B6: link | D6: /MbOpPriceLst | F6: 999999 | G6: link | I6: MbOpPaymentLst | K6: 999999 | L6: link | N6: MbOpOrderLst | P6: 999999 | Q6: Sleep | R6: 15000
A7: 999999 | B7: InputMatsui1 | F7: 999999 | G7: GetWValue | H7: 建単価: | I7: 円 | J7: CONFIRM | K7: 999999 | L7: checkString | M7: 注文照会 | P7: 999999 | Q7: link | S7: MbOpPaymentLst
A8: 999999 | B8: checkString | C8: 先物新規注文入力 | F8: 999999 | G8: GetBuySell | H8: 買建 | K8: 999999 | L8: checkString2 | M8: 先物OP注文はありません | P8: 999999 | Q8: goto | S8: 返済
A9: 999999 | B9: SetFromForm | C9: orderInput_btn2 | D9: tradeTypeCD | F9: 999999 | G9: goto | I9: 返済 | K9: 999999 | L9: goto | N9: 訂正・取消 | P9: 999999 | Q9: SetFromForm | R9: Qty | S9: orderNominal
A10: 999999 | B10: SetFromForm | C10: Qty | D10: orderNominal | F10: 999999 | G10: checkString | H10: 先物返済注文入力 | K10: 999999 | L10: SetValue | M10: cancel | P10: 999999 | Q10: SetValue | R10: marketPrice
A11: 999999 | B11: SetFromForm | C11: FrontOrderType | D11: marketPrice | F11: 999999 | G11: link | H11: 追跡指値 | K11: 999999 | L11: goto | N11: CONFIRM | P11: 999999 | Q11: goto | S11: 確認
A12: 999999 | B12: SetFromForm | C12: sashineConditions_Price | D12: limitPrice | F12: 999999 | G12: SetFromForm | H12: Qty | I12: orderNominal | K12: 999999 | L12: checkString | M12: 注文取消確認 | P12: 999999 | Q12: SetFromForm | R12: Qty | S12: orderNominal
A13: 999999 | B13: goto | D13: 確認 | F13: 999999 | G13: SetFromForm | H13: BeforeTriggerHitPrice | I13: limitPrice | K13: 999999 | L13: SetFromForm | M13: submitPassword | N13: submitPassword | P13: 999999 | Q13: SetValue | R13: reserveMarketPrice
A14: 999999 | B14: checkString | C14: 先物新規注文確認 | F14: 999999 | G14: SetFromForm | H14: wSashineViewModel_AfterHitPrice | I14: triggerPrice | K14: 999999 | L14: goto | N14: CONFIRM | P14: 999999 | Q14: goto | S14: 確認
A15: 999999 | B15: SetFromForm | C15: submitPassword | D15: submitPassword | F15: 999999 | G15: SetValue | H15: reserveMarketPrice | K15: 999999 | L15: checkString | M15: 取消注文を受付けました | P15: 999999 | Q15: checkString | R15: 先物返済注文確認
A16: 999999 | B16: goto | D16: 発注 | F16: 999999 | G16: goto | I16: 確認 | P16: 999999 | Q16: SetFromForm | R16: submitPassword | S16: submitPassword
A17: 999999 | B17: checkString | C17: 先物新規注文完了 | F17: 999999 | G17: checkString | H17: 先物返済注文確認 | P17: 999999 | Q17: goto | S17: 発注
A18: 999999 | B18: sendmail | F18: 999999 | G18: SetFromForm | H18: submitPassword | I18: submitPassword | P18: 999999 | Q18: checkString | R18: 先物返済注文完了
F19: 999999 | G19: goto | I19: 発注 | P19: 999999 | Q19: sendmail
F20: 999999 | G20: checkString | H20: 先物返済注文完了
F21: 999999 | G21: sendmail

Sheet config_rakuten (hidden)
A1: 999999 | B1: goto | C1: https://mobile.rakuten-sec.co.jp/?l-id=top_upper_login_member | F1: 999999 | G1: goto | H1: https://mobile.rakuten-sec.co.jp/?l-id=top_upper_login_member | K1: 999999 | L1: goto | M1: https://mobile.rakuten-sec.co.jp/?l-id=top_upper_login_member | P1: 999999 | Q1: goto | R1: https://mobile.rakuten-sec.co.jp/?l-id=top_upper_login_member
A2: 999999 | B2: SetFromForm | C2: loginId | D2: loginId | F2: 999999 | G2: SetFromForm | H2: loginId | I2: loginId | K2: 999999 | L2: SetFromForm | M2: loginId | N2: loginId | P2: 999999 | Q2: SetFromForm | R2: loginId | S2: loginId
A3: 999999 | B3: SetFromForm | C3: loginPassword | D3: loginPassword | F3: 999999 | G3: SetFromForm | H3: loginPassword | I3: loginPassword | K3: 999999 | L3: SetFromForm | M3: loginPassword | N3: loginPassword | P3: 999999 | Q3: SetFromForm | R3: loginPassword | S3: loginPassword
A4: 999999 | B4: goto | D4: ﾛｸﾞｲﾝ | F4: 999999 | G4: goto | I4: ﾛｸﾞｲﾝ | K4: 999999 | L4: goto | N4: ﾛｸﾞｲﾝ | P4: 999999 | Q4: goto | S4: ﾛｸﾞｲﾝ
A5: 999999 | B5: link | D5: /mm900000.do | F5: 999999 | G5: link | I5: /mm900000.do | K5: 999999 | L5: link | N5: /mm900000.do | P5: 999999 | Q5: link | S5: /mm900000.do
A6: 999999 | B6: checkString | C6: 楽天証券 先物･ｵﾌﾟｼｮﾝ | F6: 999999 | G6: link | I6: fopweb/doSearchOrd.do | K6: 999999 | L6: checkString | M6: 楽天証券 先物･ｵﾌﾟｼｮﾝ | P6: 999999 | Q6: checkString | R6: 楽天証券 先物･ｵﾌﾟｼｮﾝ
A7: 999999 | B7: link | D7: fopweb/doSelectInit.do | F7: 999999 | G7: gotoPrice | K7: 999999 | L7: link | N7: /fopweb/doAllListCorInit.do | P7: 999999 | Q7: link | S7: fopweb/doRepList.do
A8: 999999 | B8: checkString | C8: 先物OP新規注文 | F8: 999999 | G8: GetWValue | H8: 価格: | I8: 円 | K8: 999999 | L8: checkString2 | M8: 訂正・取消可能な注文はありません。 | P8: 999999 | Q8: checkString | R8: 数量指定 | S8: 3
A9: 999999 | B9: SetFromForm | C9: optMini | D9: put_or_call | F9: 999999 | G9: link | I9: fopweb/doMenu.do | K9: 999999 | L9: goto | N9: 全注文取消確認 | P9: 999999 | Q9: SetFromForm | R9: TxtOrderQty | S9: 0
A10: 999999 | B10: goto | D10: 決定 | F10: 999999 | G10: checkString | H10: 楽天証券 先物･ｵﾌﾟｼｮﾝ | K10: 999999 | L10: checkString | M10: 確認 全注文取消 | P10: 999999 | Q10: Sleep | R10: 2000
A11: 999999 | B11: checkString | C11: 限月指定 | F11: 999999 | G11: link | I11: fopweb/doRepList.do | K11: 999999 | L11: SetFromForm | M11: TxtTradePassword | N11: pin_no | P11: 999999 | Q11: goto | S11: 一括転売･買戻
A12: 999999 | B12: sleep | C12: 2000 | F12: 999999 | G12: checkString | H12: 数量指定 | I12: 3 | K12: 999999 | L12: goto | N12: 全注文取消執行 | P12: 999999 | Q12: Sleep | R12: 2000
A13: 999999 | B13: SetFromForm | C13: optMonth3 | D13: delivery_month | F13: 999999 | G13: SetFromForm | H13: TxtOrderQty | I13: 0 | K13: 999999 | L13: checkString | M13: 受け付けました。 | P13: 999999 | Q13: checkString | R13: 受付 通常注文
A14: 999999 | B14: goto | D14: 検索 | F14: 999999 | G14: Sleep | H14: 2000 | P14: 999999 | Q14: SetValue | R14: price_type | S14: 2
A15: 999999 | B15: checkString | C15: 受付 通常注文 | F15: 999999 | G15: goto | I15: 一括転売･買戻 | N15: /fopweb/doAllListCorInit.do | P15: 999999 | Q15: SetValue | R15: exec_num_cond_cd | S15: 2
A16: 999999 | B16: SetFromForm | C16: orderInput_btn2 | D16: side | F16: 999999 | G16: Sleep | H16: 2000 | P16: 999999 | Q16: SetValue | R16: validity_type | S16: 1
A17: 999999 | B17: SetFromForm | C17: optFAK | D17: exec_num_cond_cd | F17: 999999 | G17: checkString | H17: 受付 通常注文 | P17: 999999 | Q17: goto | S17: 確認
A18: 999999 | B18: SetFromForm | C18: Qty | D18: order_qty | F18: 999999 | G18: SetValue | H18: order_type | I18: 1 | P18: 999999 | Q18: checkString | R18: 確認 通常注文
A19: 999999 | B19: SetFromForm | C19: FrontOrderType | D19: price_type | F19: 999999 | G19: sleep | H19: 2000 | P19: 999999 | Q19: SetFromForm | R19: TxtTradePassword | S19: pin_no
A20: 999999 | B20: SetFromForm | C20: sashineConditions_Price | D20: order_price | F20: 999999 | G20: goto | I20: 変更 | P20: 999999 | Q20: goto | S20: 注文
A21: 999999 | B21: goto | D21: 確認 | F21: 999999 | G21: checkString | H21: 受付 逆指値付通常注文 | P21: 999999 | Q21: checkString | R21: 転売･買戻注文を受け付けました。
A22: 999999 | B22: checkString | C22: 確認 通常注文 | F22: 999999 | G22: input_rakuten1 | P22: 999999 | Q22: sendmail
A23: 999999 | B23: SetFromForm | C23: TxtTradePassword | D23: pin_no | F23: 999999 | G23: SetFromForm | H23: BeforeTriggerHitPrice | I23: order_price | P23: 999999 | Q23: link | S23: fopweb/IMFR000_003_doLogout.do
A24: 999999 | B24: goto | D24: 注文 | F24: 999999 | G24: gotoupdn | H24: up/dn | I24: pool_cond_type
A25: 999999 | B25: checkString | C25: 新規注文を受け付けました。 | F25: 999999 | G25: SetFromForm | H25: wSashineViewModel_AfterHitPrice | I25: pool_cond_price
A26: 999999 | B26: sendmail | F26: 999999 | G26: SetFromForm | H26: wSashineViewModel_AfterHitPrice | I26: pool_order_price
A27: 999999 | B27: link | D27: fopweb/IMFR000_003_doLogout.do | F27: 999999 | G27: goto | I27: 確認
F28: 999999 | G28: checkString | H28: 確認 逆指値付通常注文
F29: 999999 | G29: SetFromForm | H29: TxtTradePassword | I29: pin_no
A30: 15-org | B30: SetFromForm | C30: orderInput_btn2 | D30: 0 | E30: 2 | F30: 999999 | G30: goto | I30: 注文
A31: 12-org | B31: SetFromForm | C31: optMonth3 | D31: 0 | F31: 999999 | G31: checkString | H31: 転売･買戻注文を受け付けました。
A32: 17-org | B32: SetFromForm | C32: Qty | D32: 1 | F32: 999999 | G32: sendmail
A33: 18-org | B33: SetFromForm | C33: FrontOrderType | D33: 2 | F33: 999999 | G33: link | I33: fopweb/IMFR000_003_doLogout.do
A34: 16-org | B34: SetFromForm | C34: optFAK | D34: 4
A35: 19-org | B35: SetFromForm | C35: sashineConditions_Price | D35: 3
A36: 22-ORG | B36: SetFromForm | C36: TxtTradePassword | D36: 0
C37: TxtTradePassword | D37: 想像するに 一番初めに作ったので 順番を 使った？？
F39: 18-20
F40: 999999 | G40: SetValue | H40: 0 | I40: 逆指値付通常注文
F41: 999999 | G41: goto | I41: 変更
F42: 999999 | G42: checkString | H42: 受付 逆指値付通常注文
F45: 23 | G45: SetFromForm | H45: BeforeTriggerHitPrice | I45: 1
F46: 24 | G46: SetFromForm | H46: wSashineViewModel_AfterHitPrice | I46: 4
F47: 25 | G47: SetFromForm | H47: wSashineViewModel_AfterHitPrice | I47: 6
F49: 6 | G49: link | I49: fopweb/doSearchOrd.do

Sheet config (hidden)
A1: 999999 | B1: goto | C1: https://s10.kabu.co.jp/_mem_bin/light/login.asp?/light | F1: 999999 | G1: goto | H1: https://s10.kabu.co.jp/_mem_bin/light/login.asp?/light | K1: 999999 | L1: goto | M1: https://s10.kabu.co.jp/_mem_bin/light/login.asp?/light | P1: 999999 | Q1: goto | R1: https://s10.kabu.co.jp/_mem_bin/light/login.asp?/light | AO1: Label1 | AQ1: Label8 | AR1: bkwcl@sohu.com
A2: 999999 | B2: SetFromForm | C2: SsLogonUser | D2: SsLogonUser | F2: 999999 | G2: SetFromForm | H2: SsLogonUser | I2: SsLogonUser | K2: 999999 | L2: SetFromForm | M2: SsLogonUser | N2: SsLogonUser | P2: 999999 | Q2: SetFromForm | R2: SsLogonUser | S2: SsLogonUser | AO2: Label2 | AQ2: Label9
A3: 999999 | B3: SetFromForm | C3: SsLogonPassword | D3: SsLogonPassword | F3: 999999 | G3: SetFromForm | H3: SsLogonPassword | I3: SsLogonPassword | K3: 999999 | L3: SetFromForm | M3: SsLogonPassword | N3: SsLogonPassword | P3: 999999 | Q3: SetFromForm | R3: SsLogonPassword | S3: SsLogonPassword | AO3: Label3 | AQ3: Frame1
A4: 999999 | B4: goto | D4: submit1 | F4: 999999 | G4: goto | I4: submit1 | K4: 999999 | L4: goto | N4: submit1 | P4: 999999 | Q4: goto | S4: submit1 | AO4: Label4 | AQ4: Label5
A5: 999999 | B5: link | D5: /Light/Default.asp | F5: 999999 | G5: link | I5: /Light/Default.asp | K5: 999999 | L5: link | N5: /Light/Default.asp | P5: 999999 | Q5: Sleep | R5: 150 | AO5: Qty | AP5: 1 | AQ5: TxtSendAddr | AR5: 1234@123.so-net.ne.jp
A6: 999999 | B6: link | D6: NFuturesSelect.asp | F6: 999999 | G6: link | I6: CloseSelect?commodity=3 | K6: 999999 | L6: link | N6: OrderSelect?commodity=3 | P6: 999999 | Q6: link | S6: CloseSelect?commodity=3 | AO6: Label5 | AQ6: Label4
A7: 999999 | B7: inputFirst | F7: 999999 | G7: inputNext1 | K7: 999999 | L7: sleep | M7: 15000 | P7: 999999 | Q7: inputNext1 | AO7: Label6 | AQ7: Label3
A8: 999999 | B8: goto | D8: B3 | F8: 999999 | G8: GetWValue | H8: 円 | I8: 円 | K8: 999999 | L8: checkData | P8: 999999 | Q8: goto | S8: B3 | AO8: Label7 | AQ8: TxtDesMailAddr | AR8: 1234@yahoo.ne.jp
A9: 999999 | B9: checkString | C9: 先物 新規建玉 → 建玉確認画面 | F9: 999999 | G9: goto | I9: B3 | K9: 999999 | L9: inputNext4 | P9: 999999 | Q9: checkString | R9: 先物 返済注文 → 返済方法設定 | AO9: Label8 | AQ9: TxtSendPwd | AR9: z6PC1234
A10: 999999 | B10: SetFromForm | C10: SsLogonPassword | D10: m_Password | F10: 999999 | G10: checkString | H10: 先物 返済注文 → 返済方法設定 | K10: 999999 | L10: checkString | M10: 訂正/取消確認画面 | P10: 999999 | Q10: link | S10: DispAutoDealing?DispAutoDealing=1 | AO10: Label9 | AQ10: Label6
A11: 999999 | B11: goto | D11: B3 | F11: 999999 | G11: link | I11: DispAutoDealing?DispAutoDealing=1 | K11: 999999 | L11: SetFromForm | M11: SsLogonPassword | N11: m_Password | P11: 999999 | Q11: inputNext3 | AO11: FrontOrderType | AP11: TRUE | AQ11: TxtSendServer | AR11: mail.so-net.ne.jp
A12: 999999 | B12: checkString | C12: ご注文ありがとうございました | F12: 999999 | G12: inputNext2 | K12: 999999 | L12: goto | N12: [ OK ] 取消を行う | P12: 999999 | Q12: goto | S12: B3 | AO12: Label11 | AP12: 17550 | AQ12: CmdOk | AR12: FALSE
A13: 999999 | B13: sendmail | F13: 999999 | G13: goto | I13: B3 | P13: 999999 | Q13: checkString | R13: 先物 返済注文 → 返済確認画面 | AO13: Label12 | AQ13: TxtSendUser | AR13: 1234@123.so-net.ne.jp
A14: 999999 | B14: link | D14: /Members/LogOut.asp | F14: 999999 | G14: checkString | H14: 先物 返済注文 → 返済確認画面 | P14: 999999 | Q14: SetFromForm | R14: SsLogonPassword | S14: m_Password | AO14: Label13 | AQ14: Label10
F15: 999999 | G15: SetFromForm | H15: SsLogonPassword | I15: m_Password | P15: 999999 | Q15: goto | S15: B3 | AO15: TxtOrderQty | AP15: 1 | AQ15: TxtPort | AR15: 587
F16: 999999 | G16: goto | I16: B3 | P16: 999999 | Q16: checkString | R16: ご注文ありがとうございました | AO16: Label14 | AP16: 1 | AQ16: Label11
F17: 999999 | G17: checkString | H17: ご注文ありがとうございました | P17: 999999 | Q17: sendmail | AO17: Label15 | AQ17: TxtTitle | AR17: 17年-手配
F18: 999999 | G18: sendmail | P18: 999999 | Q18: link | S18: /Members/LogOut.asp | AO18: Label16 | AP18: 15280 | AQ18: Label12
F19: 999999 | G19: link | I19: /Members/LogOut.asp | AO19: Label17 | AP19: 18005 | AQ19: CmdCancel | AR19: FALSE
AO20: Label18 | AQ20: Frame2
AO21: Label19 | AP21: 15280 | AQ21: SsLogonPassword | AR21: 556911234
AO22: Label20 | AP22: 17200 | AQ22: Label2
AO23: Label21 | AQ23: Label1 | AR23: FALSE
AO24: FrontOrderType2 | AP24: FALSE | AQ24: SsLogonUser | AR24: 00821234
AO25: optMonth12 | AP25: FALSE | AQ25: CommandButton2 | AR25: FALSE
AO26: optMonth9 | AP26: FALSE | AQ26: Label13 | AR26: 7/23/2012 8:56:00 AM
AO27: optMonth6 | AP27: FALSE | AQ27: Frame3 | AR27: FALSE
AO28: optMonth3 | AP28: TRUE | AQ28: loginPassword | AR28: 62831234
AO29: OptLarge | AP29: FALSE | AQ29: Label14 | AR29: 7/23/2012 9:05:00 AM
AO30: optMini | AP30: TRUE | AQ30: Label15
AO31: orderInput_btn2 | AP31: TRUE | AQ31: loginId | AR31: WPWA1234
AO32: orderInput_btn1 | AP32: FALSE | AQ32: Label16
AO33: OptionButton11 | AP33: FALSE | AQ33: TxtTradePassword | AR33: 6212
AO34: OptionButton10 | AP34: FALSE | AQ34: Label17 | AR34: WPWA4697
AO35: CommandButton1 | AP35: FALSE | AQ35: Frame4
AO36: CommandButton2 | AP36: FALSE | AQ36: Label18 | AR36: 6283
AO37: CommandButton3 | AP37: FALSE | AQ37: Label19
AO38: CommandButton4 | AP38: FALSE | AQ38: Label20
AO39: optFAK | AP39: TRUE | AQ39: Label21
AO40: wSashineViewModel_AfterHitPriceExt | AP40: 145 | AQ40: ChkMorning | AR40: TRUE
AO41: BeforeTriggerHitPriceExt | AP41: 700 | AQ41: Label22
AO42: CommandButton5 | AP42: FALSE | AQ42: ChkAfternoon | AR42: FALSE
AO43: ChkKabu | AP43: FALSE | AQ43: Label23 | AR43: TRUE
AO44: ChkRakuten | AP44: TRUE | AQ44: Label24 | AR44: 1234567
AO45: ChkMatsui | AP45: FALSE | AQ45: Label25 | AR45: FALSE
AO46: Label22 | AP46: FALSE | AQ46: clientCD | AR46: 60121234
AO47: lblMsg | AP47: TRUE | AQ47: passwd | AR47: o1081234
AO48: Label23 | AP48: FALSE | AQ48: submitpassword | AR48: s4312344
AO49: cancel_b | AP49: FALSE | AQ49: DtStartMon | AR49: 08:40:00
AO50: nariyu_order_b | AP50: FALSE | AQ50: DtStartMon2 | AR50: 08:50:00
AO51: optMonth1 | AP51: FALSE | AQ51: DtStartAfter | AR51: 15:10:00
AO52: optMonth2 | AP52: FALSE | AQ52: DtStartMonExt | AR52: 7/23/2012 2:25:00 AM
AO53: optMonth4 | AP53: FALSE | AQ53: DtStartMon2Ext | AR53: 7/23/2012 4:35:00 PM
AO54: optMonth5 | AP54: FALSE | AQ54: DtStartAfterExt | AR54: 7/23/2012 2:57:00 AM
AO55: optMonth7 | AP55: FALSE | AQ55: mailsend | AR55: FALSE
AO56: optMonth8 | AP56: FALSE
AO57: optMonth10 | AP57: FALSE
AO58: optMonth11 | AP58: FALSE
AO59: rakutenn | AP59: 500
AO60: Label24

Sheet Sheet4 (hidden)

Sheet log_config (hidden)
E1: 20
A2: システム日付が間違っています。ご確認のうえもう一度ログインしてください。 | E2: 試用期間
A3: 期間が切れています。ご確認のうえもう一度ログインしてください。
A4: パスワードが間違っています。ご確認のうえもう一度ログインしてください。
A10: R3R[cksy | B10: XfbjjgVyvMD8
B11: BhlddeDY1KVm
B12: S26uutQLiZG5

Sheet データ2 (hidden)
A1: Sub pkill()
A3: ‘Option Explicit
A4: On Error Resume Next
A6: Dim strProcName ‘ 終了するプロセス名
A7: Dim objProcList ‘ プロセス一覧
A8: Dim objProcess ‘ プロセス情報
A9: Dim lngKillNum ‘ 終了したプロセス数
A11: strProcName = “iexplore.exe”
A12: lngKillNum = 0
A14: Set objProcList = GetObject(“winmgmts:”).InstancesOf(“win32_process”)
A15: For Each objProcess In objProcList
A16: If LCase(objProcess.Name) = strProcName Then
A17: objProcess.Terminate
A18: If Err.Number = 0 Then
A19: lngKillNum = lngKillNum + 1
A20: Else
A21: Debug.Print “エラー: ” & Err.Description
A22: End If
A23: End If
A24: Next
A25: If lngKillNum > 0 Then
A26: Debug.Print strProcName & ” を ” & lngKillNum & ” 個強制終了しました。”
A27: Else
A28: Debug.Print strProcName & ” が見つかりませんでした。”
A29: End If
A31: Set objProcList = Nothing
A33: End Sub
